{"text_format":"3","workbook":"xlsx","n_sheets":16,"sheets":["Матрица","Таблица соответствия КЗ ТКХ","Характеристика работ","Должен знать","Примеры работ","ПС16.086 B 01.3 1; 2; 13","ПС 16.086 B 01.3 9; 10","ПС16.086B02.3 1;2;6;7;8;13 ","ПС16.086B03.3 3;4;5;11;12;13","ПС16.086B04.3 3;4;5;9;10;13","ПС 16.086 B 05.3 9; 10","ПС16.086 B 05.3 3;4;5;11;12","ПС 16.086 B 05.3 6; 7; 8; 13","ПС16.089 B 01.3 9; 10; 13","ПС16.089 B 02.3 1;2;3;4;5 ","ПС16.089B02.3 6;7;8;11;12;13 "],"not_rendered":{"defined_names":1},"read":"whole","date_system":"1900"}

{"sheet":"Матрица","index":0,"n_rows":43,"n_cols":10,"rows_kept":43,"merged":[[0,0,0,1],[0,2,0,3],[0,4,0,5],[0,6,0,7],[2,0,40,0],[2,1,40,1],[2,3,3,3],[2,5,3,5],[2,6,5,6],[2,7,3,7],[2,8,3,8],[2,9,3,9],[4,3,5,3],[4,5,5,5],[4,7,5,7],[4,8,5,8],[4,9,5,9],[4,10,5,10],[6,3,8,3],[6,5,8,5],[6,6,14,6],[6,7,8,7],[6,8,8,8],[6,9,8,9],[6,10,8,10],[9,3,11,3],[9,5,11,5],[9,7,11,7],[9,8,11,8],[9,9,11,9],[9,10,11,10],[12,3,14,3],[12,5,14,5],[12,7,14,7],[12,8,14,8],[12,9,14,9],[15,3,16,3],[15,5,16,5],[15,6,20,6],[15,7,16,7],[15,8,16,8],[15,9,16,9],[15,10,16,10],[17,3,18,3],[17,5,18,5],[17,7,18,7],[17,8,18,8],[17,9,18,9],[19,3,20,3],[19,5,20,5],[19,7,20,7],[19,8,20,8],[19,9,20,9],[21,3,23,3],[21,5,23,5],[21,6,26,6],[21,7,23,7],[21,8,23,8],[21,9,23,9],[21,10,23,10],[24,3,26,3],[24,5,26,5],[24,7,26,7],[24,8,26,8],[24,9,26,9],[24,10,26,10],[27,3,28,3],[27,5,28,5],[27,6,30,6],[27,7,28,7],[27,8,28,8],[27,9,28,9],[27,10,28,10],[29,3,30,3],[29,5,30,5],[29,7,30,7],[29,8,30,8],[29,9,30,9],[29,10,30,10],[31,6,40,6],[31,7,40,7],[31,8,35,8],[31,9,35,9],[31,10,40,10],[36,8,40,8],[36,9,40,9],[42,1,42,9]]}
["Обобщенная трудовая функция",null,"Трудовая функция/Основной вид деятельности",null,"ЗУНы \n(из ПС + ФГОС + ЕТКС)",null,"Модуль/Задача",{"$f":"G1","v":"Модуль/Задача"},"Инвариант/вариатив","КО"]
["ПС 16.086 ","ПС 16.089 ","ПС 16.086 ","ПС 16.089 ","ПС 16.086 ","ПС 16.089 ","Модуль","Задача"]
["Выполнение периодического технического обслуживания домовых санитарно-технических систем и оборудования","Выполнение работ средней сложности при монтаже и ремонте систем отопления, водоснабжения, канализации и водостоков объектов капитального строительства непроизводственного и производственного назначения","Обнаружение неисправности домовых санитарно-технических систем и оборудования","Монтаж и ремонт внутренних систем горячего и холодного водоснабжения, канализации и водостоков","Профстандарт 16.086 B/01.3 Задача 1; 2; 13","Профстандарт 16.089 B/02.3 Задача 1; 2; 3; 4; 5","Модуль А. Установка застенных модулей, монтаж системы водоотведения","Задача 1 – Установка застенных модулей и монтаж системы водоотведения из раструбных ПП труб","Инвариант",6.35]
[null,null,"Выполнение периодического технического обслуживания внутренней системы канализации и санитарно-технических приборов",{"$f":"D3","v":"Монтаж и ремонт внутренних систем горячего и холодного водоснабжения, канализации и водостоков"},"Профстандарт 16.086 B/02.3 Задача 1; 2; 6; 7; 8; 13 ",{"$f":"F3","v":"Профстандарт 16.089 B/02.3 Задача 1; 2; 3; 4; 5"},{"$f":"G3","v":"Модуль А. Установка застенных модулей, монтаж системы водоотведения"},{"$f":"H3","v":"Задача 1 – Установка застенных модулей и монтаж системы водоотведения из раструбных ПП труб"}]
[null,null,"Обнаружение неисправности домовых санитарно-технических систем и оборудования","Монтаж и ремонт внутренних систем горячего и холодного водоснабжения, канализации и водостоков","Профстандарт 16.086 B/01.3 Задача 1; 2; 13","Профстандарт 16.089 B/02.3 Задача 1; 2; 3; 4; 5",{"$f":"G3","v":"Модуль А. Установка застенных модулей, монтаж системы водоотведения"},"Задача 2 – Монтаж участка системы водоотведения из безраструбных чугунных канализационных труб","Вариатив",2.65]
[null,null,"Выполнение периодического технического обслуживания внутренней системы канализации и санитарно-технических приборов",{"$f":"D5","v":"Монтаж и ремонт внутренних систем горячего и холодного водоснабжения, канализации и водостоков"},"Профстандарт 16.086 B/02.3 Задача 1; 2; 6; 7; 8; 13 ",{"$f":"F5","v":"Профстандарт 16.089 B/02.3 Задача 1; 2; 3; 4; 5"},{"$f":"G3","v":"Модуль А. Установка застенных модулей, монтаж системы водоотведения"},{"$f":"H5","v":"Задача 2 – Монтаж участка системы водоотведения из безраструбных чугунных канализационных труб"}]
[null,null,"Выполнение периодического технического обслуживания системы водоснабжения, в том числе поливочной системы и системы противопожарного водопровода","Монтаж и ремонт внутренних систем горячего и холодного водоснабжения, канализации и водостоков","Профстандарт 16.086 B/03.3 Задача 3; 4; 5; 11; 12; 13","Профстандарт 16.089 B/02.3 Задача 1; 2; 3; 4; 5","Модуль Б. Монтаж систем холодного и горячего водоснабжения с установкой встраиваемых элементов","Задача 3 – Монтаж системы водоснабжения из металлополимерных труб \n(PE-X/Al/PE-X) ","Инвариант",{"v":21,"d":"21.00"}]
[null,null,"Выполнение периодического технического обслуживания систем отопления и горячего водоснабжения",{"$f":"D7","v":"Монтаж и ремонт внутренних систем горячего и холодного водоснабжения, канализации и водостоков"},"Профстандарт 16.086 B/04.3 Задача 3; 4; 5; 9; 10; 13",null,{"$f":"G7","v":"Модуль Б. Монтаж систем холодного и горячего водоснабжения с установкой встраиваемых элементов"},{"$f":"H7","v":"Задача 3 – Монтаж системы водоснабжения из металлополимерных труб \n(PE-X/Al/PE-X) "},null,{"$f":"J7","v":{"v":21,"d":"21.00"}}]
[null,null,"Проведение простых ремонтных работ при техническом обслуживании и текущем ремонте домовых санитарно-технических систем и оборудования",{"$f":"D7","v":"Монтаж и ремонт внутренних систем горячего и холодного водоснабжения, канализации и водостоков"},"Профстандарт 16.086 B/05.3 Задача 3; 4; 5; 11; 12",null,{"$f":"G7","v":"Модуль Б. Монтаж систем холодного и горячего водоснабжения с установкой встраиваемых элементов"},{"$f":"H7","v":"Задача 3 – Монтаж системы водоснабжения из металлополимерных труб \n(PE-X/Al/PE-X) "},null,{"$f":"J7","v":{"v":21,"d":"21.00"}}]
[null,null,"Выполнение периодического технического обслуживания системы водоснабжения, в том числе поливочной системы и системы противопожарного водопровода","Монтаж и ремонт внутренних систем горячего и холодного водоснабжения, канализации и водостоков","Профстандарт 16.086 B/03.3 Задача 3; 4; 5; 11; 12; 13","Профстандарт 16.089 B/02.3 Задача 1; 2; 3; 4; 5",{"$f":"G7","v":"Модуль Б. Монтаж систем холодного и горячего водоснабжения с установкой встраиваемых элементов"},"Задача 4 – Монтаж участка системы водоснабжения из полипропиленовых труб (PРR) ","Вариатив",5.15]
[null,null,"Выполнение периодического технического обслуживания систем отопления и горячего водоснабжения",{"$f":"D10","v":"Монтаж и ремонт внутренних систем горячего и холодного водоснабжения, канализации и водостоков"},"Профстандарт 16.086 B/04.3 Задача 3; 4; 5; 9; 10; 13",null,{"$f":"G7","v":"Модуль Б. Монтаж систем холодного и горячего водоснабжения с установкой встраиваемых элементов"},{"$f":"H10","v":"Задача 4 – Монтаж участка системы водоснабжения из полипропиленовых труб (PРR) "},null,{"$f":"J10","v":5.15}]
[null,null,"Проведение простых ремонтных работ при техническом обслуживании и текущем ремонте домовых санитарно-технических систем и оборудования",{"$f":"D10","v":"Монтаж и ремонт внутренних систем горячего и холодного водоснабжения, канализации и водостоков"},"Профстандарт 16.086 B/05.3 Задача 3; 4; 5; 11; 12",null,{"$f":"G7","v":"Модуль Б. Монтаж систем холодного и горячего водоснабжения с установкой встраиваемых элементов"},{"$f":"H10","v":"Задача 4 – Монтаж участка системы водоснабжения из полипропиленовых труб (PРR) "},null,{"$f":"J10","v":5.15}]
[null,null,"Выполнение периодического технического обслуживания системы водоснабжения, в том числе поливочной системы и системы противопожарного водопровода","Монтаж и ремонт внутренних систем горячего и холодного водоснабжения, канализации и водостоков","Профстандарт 16.086 B/03.3 Задача 3; 4; 5; 11; 12; 13","Профстандарт 16.089 B/02.3 Задача 1; 2; 3; 4; 5",{"$f":"G7","v":"Модуль Б. Монтаж систем холодного и горячего водоснабжения с установкой встраиваемых элементов"},"Задача 5 – Монтаж участка системы водоснабжения из медных труб (Cu) ","Вариатив",{"v":6.4,"d":"6.40"}]
[null,null,"Выполнение периодического технического обслуживания систем отопления и горячего водоснабжения",{"$f":"D13","v":"Монтаж и ремонт внутренних систем горячего и холодного водоснабжения, канализации и водостоков"},"Профстандарт 16.086 B/04.3 Задача 3; 4; 5; 9; 10; 13",null,{"$f":"G7","v":"Модуль Б. Монтаж систем холодного и горячего водоснабжения с установкой встраиваемых элементов"},{"$f":"H13","v":"Задача 5 – Монтаж участка системы водоснабжения из медных труб (Cu) "},null,{"$f":"J13","v":{"v":6.4,"d":"6.40"}}]
[null,null,"Проведение простых ремонтных работ при техническом обслуживании и текущем ремонте домовых санитарно-технических систем и оборудования",{"$f":"D13","v":"Монтаж и ремонт внутренних систем горячего и холодного водоснабжения, канализации и водостоков"},"Профстандарт 16.086 B/05.3 Задача 3; 4; 5; 11; 12",null,{"$f":"G13","v":"Модуль Б. Монтаж систем холодного и горячего водоснабжения с установкой встраиваемых элементов"},{"$f":"H13","v":"Задача 5 – Монтаж участка системы водоснабжения из медных труб (Cu) "},null,{"$f":"J13","v":{"v":6.4,"d":"6.40"}}]
[null,null,"Выполнение периодического технического обслуживания внутренней системы канализации и санитарно-технических приборов","Монтаж и ремонт внутренних систем горячего и холодного водоснабжения, канализации и водостоков","Профстандарт 16.086 B/02.3 Задача 1; 2; 6; 7; 8; 13 ","Профстандарт 16.089 B/02.3 Задача 6; 7; 8; 11; 12; 13","Модуль В – Установка санитарно-техических приборов","Задача 6 – Установка унитаза и умывальника.","Инвариант",{"v":4.1,"d":"4.10"}]
[null,null,"Проведение простых ремонтных работ при техническом обслуживании и текущем ремонте домовых санитарно-технических систем и оборудования",{"$f":"D16","v":"Монтаж и ремонт внутренних систем горячего и холодного водоснабжения, канализации и водостоков"},"Профстандарт 16.086 B/05.3 Задача 6; 7; 8; 13",{"$f":"F16","v":"Профстандарт 16.089 B/02.3 Задача 6; 7; 8; 11; 12; 13"},{"$f":"G16","v":"Модуль В – Установка санитарно-техических приборов"},{"$f":"H16","v":"Задача 6 – Установка унитаза и умывальника."},null,{"$f":"J16","v":{"v":4.1,"d":"4.10"}}]
[null,null,"Выполнение периодического технического обслуживания внутренней системы канализации и санитарно-технических приборов","Монтаж и ремонт внутренних систем горячего и холодного водоснабжения, канализации и водостоков","Профстандарт 16.086 B/02.3 Задача 1; 2; 6; 7; 8; 13 ","Профстандарт 16.089 B/02.3 Задача 6; 7; 8; 11; 12; 13",{"$f":"G16","v":"Модуль В – Установка санитарно-техических приборов"},"Задача 7 – Установка гигиенического душа","Вариатив",{"v":0.7,"d":"0.70"}]
[null,null,"Проведение простых ремонтных работ при техническом обслуживании и текущем ремонте домовых санитарно-технических систем и оборудования",{"$f":"D18","v":"Монтаж и ремонт внутренних систем горячего и холодного водоснабжения, канализации и водостоков"},"Профстандарт 16.086 B/05.3 Задача 6; 7; 8; 13",{"$f":"F18","v":"Профстандарт 16.089 B/02.3 Задача 6; 7; 8; 11; 12; 13"},{"$f":"G16","v":"Модуль В – Установка санитарно-техических приборов"},{"$f":"H18","v":"Задача 7 – Установка гигиенического душа"},null,{"$f":"J18","v":{"v":0.7,"d":"0.70"}}]
[null,null,"Выполнение периодического технического обслуживания внутренней системы канализации и санитарно-технических приборов","Монтаж и ремонт внутренних систем горячего и холодного водоснабжения, канализации и водостоков","Профстандарт 16.086 B/02.3 Задача 1; 2; 6; 7; 8; 13 ","Профстандарт 16.089 B/02.3 Задача 6; 7; 8; 11; 12; 13",{"$f":"G16","v":"Модуль В – Установка санитарно-техических приборов"},"Задача 8 – Установка тропического душа","Вариатив",{"v":0.7,"d":"0.70"}]
[null,null,"Проведение простых ремонтных работ при техническом обслуживании и текущем ремонте домовых санитарно-технических систем и оборудования",{"$f":"D20","v":"Монтаж и ремонт внутренних систем горячего и холодного водоснабжения, канализации и водостоков"},"Профстандарт 16.086 B/05.3 Задача 6; 7; 8; 13",{"$f":"F20","v":"Профстандарт 16.089 B/02.3 Задача 6; 7; 8; 11; 12; 13"},{"$f":"G16","v":"Модуль В – Установка санитарно-техических приборов"},{"$f":"H20","v":"Задача 8 – Установка тропического душа"},null,{"$f":"J20","v":{"v":0.7,"d":"0.70"}}]
[null,null,"Обнаружение неисправности домовых санитарно-технических систем и оборудования","Монтаж и ремонт систем отопления","Профстандарт 16.086 B/01.3 Задача 9; 10","Профстандарт 16.089 B/01.3 Задача 9; 10; 13","Модуль Г – Монтаж системы отопления/системы «тёплый пол».","Задача 9 – Монтаж системы отопления из тонкостенных оцинкованных стальных труб","Инвариант",23.45]
[null,null,"Выполнение периодического технического обслуживания систем отопления и горячего водоснабжения",{"$f":"D22","v":"Монтаж и ремонт систем отопления"},"Профстандарт 16.086 B/04.3 Задача 3; 4; 5; 9; 10; 13",{"$f":"F22","v":"Профстандарт 16.089 B/01.3 Задача 9; 10; 13"},{"$f":"G22","v":"Модуль Г – Монтаж системы отопления/системы «тёплый пол»."},{"$f":"H22","v":"Задача 9 – Монтаж системы отопления из тонкостенных оцинкованных стальных труб"},null,{"$f":"J22","v":23.45}]
[null,null,"Проведение простых ремонтных работ при техническом обслуживании и текущем ремонте домовых санитарно-технических систем и оборудования",{"$f":"D22","v":"Монтаж и ремонт систем отопления"},"Профстандарт 16.086 B/05.3 Задача 9; 10",{"$f":"F22","v":"Профстандарт 16.089 B/01.3 Задача 9; 10; 13"},{"$f":"G22","v":"Модуль Г – Монтаж системы отопления/системы «тёплый пол»."},{"$f":"H22","v":"Задача 9 – Монтаж системы отопления из тонкостенных оцинкованных стальных труб"},null,{"$f":"J22","v":23.45}]
[null,null,"Обнаружение неисправности домовых санитарно-технических систем и оборудования","Монтаж и ремонт систем отопления","Профстандарт 16.086 B/01.3 Задача 9; 10","Профстандарт 16.089 B/01.3 Задача 9; 10; 13",{"$f":"G22","v":"Модуль Г – Монтаж системы отопления/системы «тёплый пол»."},"Задача 10 – Монтаж системы «тёплый пол» из сшитого полиэтилена (РЕХ)","Вариатив",{"v":5.1,"d":"5.10"}]
[null,null,"Выполнение периодического технического обслуживания систем отопления и горячего водоснабжения",{"$f":"D25","v":"Монтаж и ремонт систем отопления"},"Профстандарт 16.086 B/04.3 Задача 3; 4; 5; 9; 10; 13",{"$f":"F25","v":"Профстандарт 16.089 B/01.3 Задача 9; 10; 13"},{"$f":"G22","v":"Модуль Г – Монтаж системы отопления/системы «тёплый пол»."},{"$f":"H25","v":"Задача 10 – Монтаж системы «тёплый пол» из сшитого полиэтилена (РЕХ)"},null,{"$f":"J25","v":{"v":5.1,"d":"5.10"}}]
[null,null,"Проведение простых ремонтных работ при техническом обслуживании и текущем ремонте домовых санитарно-технических систем и оборудования",{"$f":"D25","v":"Монтаж и ремонт систем отопления"},"Профстандарт 16.086 B/05.3 Задача 9; 10",{"$f":"F25","v":"Профстандарт 16.089 B/01.3 Задача 9; 10; 13"},{"$f":"G22","v":"Модуль Г – Монтаж системы отопления/системы «тёплый пол»."},{"$f":"H25","v":"Задача 10 – Монтаж системы «тёплый пол» из сшитого полиэтилена (РЕХ)"},null,{"$f":"J25","v":{"v":5.1,"d":"5.10"}}]
[null,null,"Выполнение периодического технического обслуживания системы водоснабжения, в том числе поливочной системы и системы противопожарного водопровода","Монтаж и ремонт внутренних систем горячего и холодного водоснабжения, канализации и водостоков","Профстандарт 16.086 B/03.3 Задача 3; 4; 5; 11; 12; 13","Профстандарт 16.089 B/02.3 Задача 6; 7; 8; 11; 12; 13","Модуль Д - Монтаж системы противопожарного водопровода из стальных ВГП труб (скоростной тест)","Задача 11 - Монтаж участка распределительной сети системы противопожарного водопровода из стальных ВГП труб","Инвариант",15.45]
[null,null,"Проведение простых ремонтных работ при техническом обслуживании и текущем ремонте домовых санитарно-технических систем и оборудования",{"$f":"D28","v":"Монтаж и ремонт внутренних систем горячего и холодного водоснабжения, канализации и водостоков"},"Профстандарт 16.086 B/05.3 Задача 3; 4; 5; 11; 12",{"$f":"F28","v":"Профстандарт 16.089 B/02.3 Задача 6; 7; 8; 11; 12; 13"},{"$f":"G28","v":"Модуль Д - Монтаж системы противопожарного водопровода из стальных ВГП труб (скоростной тест)"},{"$f":"H28","v":"Задача 11 - Монтаж участка распределительной сети системы противопожарного водопровода из стальных ВГП труб"},null,{"$f":"J28","v":15.45}]
[null,null,"Выполнение периодического технического обслуживания системы водоснабжения, в том числе поливочной системы и системы противопожарного водопровода","Монтаж и ремонт внутренних систем горячего и холодного водоснабжения, канализации и водостоков","Профстандарт 16.086 B/03.3 Задача 3; 4; 5; 11; 12; 13","Профстандарт 16.089 B/02.3 Задача 6; 7; 8; 11; 12; 13",{"$f":"G28","v":"Модуль Д - Монтаж системы противопожарного водопровода из стальных ВГП труб (скоростной тест)"},"Задача 12 - Монтаж стояка системы противопожарного водопровода из стальных ВГП труб (грувлочные соединения)","Вариатив",3.95]
[null,null,"Проведение простых ремонтных работ при техническом обслуживании и текущем ремонте домовых санитарно-технических систем и оборудования",{"$f":"D30","v":"Монтаж и ремонт внутренних систем горячего и холодного водоснабжения, канализации и водостоков"},"Профстандарт 16.086 B/05.3 Задача 3; 4; 5; 11; 12",{"$f":"F30","v":"Профстандарт 16.089 B/02.3 Задача 6; 7; 8; 11; 12; 13"},{"$f":"G28","v":"Модуль Д - Монтаж системы противопожарного водопровода из стальных ВГП труб (скоростной тест)"},{"$f":"H30","v":"Задача 12 - Монтаж стояка системы противопожарного водопровода из стальных ВГП труб (грувлочные соединения)"},null,{"$f":"J30","v":3.95}]
[null,null,"Обнаружение неисправности домовых санитарно-технических систем и оборудования","Монтаж и ремонт систем отопления","Профстандарт 16.086 B/01.3 Задача 1; 2; 13","Профстандарт 16.089 B/01.3 Задача 9; 10; 13","Модуль Е – Информирование руководства о выполненной работе","Задача 13 – Информирование работника более высокого уровня квалификации о выполненных работах, сдача акта и  документации на установленное оборудование","Инвариант",{"v":4,"d":"4.00"}]
[null,null,"Выполнение периодического технического обслуживания внутренней системы канализации и санитарно-технических приборов","Монтаж и ремонт внутренних систем горячего и холодного водоснабжения, канализации и водостоков","Профстандарт 16.086 B/02.3 Задача 1; 2; 6; 7; 8; 13 ","Профстандарт 16.089 B/02.3 Задача 6; 7; 8; 11; 12; 13",{"$f":"G32","v":"Модуль Е – Информирование руководства о выполненной работе"},{"$f":"H32","v":"Задача 13 – Информирование работника более высокого уровня квалификации о выполненных работах, сдача акта и  документации на установленное оборудование"},null,{"$f":"J32","v":{"v":4,"d":"4.00"}}]
[null,null,"Выполнение периодического технического обслуживания системы водоснабжения, в том числе поливочной системы и системы противопожарного водопровода",null,"Профстандарт 16.086 B/03.3 Задача 3; 4; 5; 11; 12; 13",null,{"$f":"G32","v":"Модуль Е – Информирование руководства о выполненной работе"},{"$f":"H32","v":"Задача 13 – Информирование работника более высокого уровня квалификации о выполненных работах, сдача акта и  документации на установленное оборудование"},null,{"$f":"J32","v":{"v":4,"d":"4.00"}}]
[null,null,"Выполнение периодического технического обслуживания систем отопления и горячего водоснабжения",null,"Профстандарт 16.086 B/04.3 Задача 3; 4; 5; 9; 10; 13",null,{"$f":"G32","v":"Модуль Е – Информирование руководства о выполненной работе"},{"$f":"H32","v":"Задача 13 – Информирование работника более высокого уровня квалификации о выполненных работах, сдача акта и  документации на установленное оборудование"},null,{"$f":"J32","v":{"v":4,"d":"4.00"}}]
[null,null,"Проведение простых ремонтных работ при техническом обслуживании и текущем ремонте домовых санитарно-технических систем и оборудования",null,"Профстандарт 16.086 B/05.3 Задача 6; 7; 8; 13",null,{"$f":"G32","v":"Модуль Е – Информирование руководства о выполненной работе"},{"$f":"H32","v":"Задача 13 – Информирование работника более высокого уровня квалификации о выполненных работах, сдача акта и  документации на установленное оборудование"},null,{"$f":"J32","v":{"v":4,"d":"4.00"}}]
[null,null,"Обнаружение неисправности домовых санитарно-технических систем и оборудования","Монтаж и ремонт систем отопления","Профстандарт 16.086 B/01.3 Задача 1; 2; 13","Профстандарт 16.089 B/01.3 Задача 9; 10; 13","Модуль Е – Информирование руководства о выполненной работе","Задача 13 – Информирование работника более высокого уровня квалификации о выполненных работах, сдача акта и  документации на установленное оборудование","Вариатив",{"v":1,"d":"1.00"}]
[null,null,"Выполнение периодического технического обслуживания внутренней системы канализации и санитарно-технических приборов","Монтаж и ремонт внутренних систем горячего и холодного водоснабжения, канализации и водостоков","Профстандарт 16.086 B/02.3 Задача 1; 2; 6; 7; 8; 13 ","Профстандарт 16.089 B/02.3 Задача 6; 7; 8; 11; 12; 13",{"$f":"G37","v":"Модуль Е – Информирование руководства о выполненной работе"},{"$f":"H37","v":"Задача 13 – Информирование работника более высокого уровня квалификации о выполненных работах, сдача акта и  документации на установленное оборудование"}]
[null,null,"Выполнение периодического технического обслуживания системы водоснабжения, в том числе поливочной системы и системы противопожарного водопровода",null,"Профстандарт 16.086 B/03.3 Задача 3; 4; 5; 11; 12; 13",null,{"$f":"G37","v":"Модуль Е – Информирование руководства о выполненной работе"},{"$f":"H37","v":"Задача 13 – Информирование работника более высокого уровня квалификации о выполненных работах, сдача акта и  документации на установленное оборудование"}]
[null,null,"Выполнение периодического технического обслуживания систем отопления и горячего водоснабжения",null,"Профстандарт 16.086 B/04.3 Задача 3; 4; 5; 9; 10; 13",null,{"$f":"G37","v":"Модуль Е – Информирование руководства о выполненной работе"},{"$f":"H37","v":"Задача 13 – Информирование работника более высокого уровня квалификации о выполненных работах, сдача акта и  документации на установленное оборудование"}]
[null,null,"Проведение простых ремонтных работ при техническом обслуживании и текущем ремонте домовых санитарно-технических систем и оборудования",null,"Профстандарт 16.086 B/05.3 Задача 6; 7; 8; 13",null,{"$f":"G37","v":"Модуль Е – Информирование руководства о выполненной работе"},{"$f":"H37","v":"Задача 13 – Информирование работника более высокого уровня квалификации о выполненных работах, сдача акта и  документации на установленное оборудование"}]
[{"$nulls":9},{"$f":"J3+J5+J7+J10+J13+J16+J18+J20+J22+J25+J28+J30+J32+J37","v":{"v":100,"d":"100.00"}}]
[null,"Для выполнения конкурсного задания при проведения РЧ неизменными являются Задачи 1,3,6,9,11,13 Модулей А, Б, В, Г, Д, Е. Технологии модулей из вариативной части, выбираются регионом самостоятельно в зависимости от потребностей работодателей региона в соответствующих специалистах. В случае если ни одна из технологий вариативной части не подходит под запрос работодателя конкретного региона, то вариативный (е) модуль (и) формируются регионом самостоятельно под запрос работодателя. При этом, время на выполнение модуля (ей) и количество баллов в критериях оценки по аспектам не меняются."]

{"sheet":"Таблица соответствия КЗ ТКХ","index":1,"n_rows":24,"n_cols":7,"rows_kept":24,"merged":[[0,0,0,6],[2,5,2,6],[3,0,5,0],[3,3,5,3],[3,4,5,4],[3,5,5,5],[3,6,5,6],[8,0,9,0],[8,1,9,1],[8,2,9,2],[8,3,9,3],[8,4,8,5],[10,0,16,0],[10,1,16,1],[18,0,18,6]]}
["Соответствие требований тарифно-квалификационной характеристики профессии  \"Монтажник санитарно-технических систем и оборудования\" конкурсному заданию компетенции "]
[]
["Компетенция","Код ФГОС СПО","Наименование ФГОС СПО","Код","Наименование профессий рабочих, должностей служащих","Квалификация (разряд, класс, категория)"]
["Сантехника и отопление","08.01.14.","Монтажник санитарно-технических вентиляционных систем и оборудования",14621,"Монтажник санитарно-технических систем и оборудования","2 уровень квалификации, \n3 разряд.","3 уровень квалификации, \n4 разряд ( ¹При условии опыта практической работы:\nНе менее двух лет в области монтажа санитарно-технических систем и оборудования)."]
[null,"08.02.07.","Монтаж и эксплуатация внутренних сантехнических устройств кондиционирования воздуха и вентиляции"]
[null,"08.02.13.","Монтаж и эксплуатация внутренних сантехнических устройств кондиционирования воздуха и вентиляции"]
[]
[]
["Наименование профессий рабочих, должностей служащих","Квалификация (разряд, класс, категория)","Наименование модуля конкурсного задания","Максимальное количество баллов по модулю","Количество баллов, необходимое  для получения данной квалификации (разряда, класса, категории)"]
[{"$nulls":4},"3 разряд","4 разряд ¹"]
["Монтажник санитарно-технических систем и оборудования","2 уровень квалификации, 3 разряд.\n3 уровень квалификации, 4 разряд (При условии опыта практической работы:\nНе менее двух лет в области монтажа санитарно-технических систем и оборудования).","Модуль А: Установка застенных модулей, монтаж системы водоотведения.",{"v":9,"d":"9.00"},5.62,7.04]
[null,null,"Модуль Б: Монтаж систем холодного и горячего водоснабжения с установкой встраиваемых элементов.",32.55,19.49,25.13]
[null,null,"Модуль В: Установка санитарно-технических приборов.",{"v":5.5,"d":"5.50"},{"v":4.1,"d":"4.10"},{"v":5.5,"d":"5.50"}]
[null,null,"Модуль Г: Монтаж системы отопления и системы «тёплый пол».",28.55,{"v":18.6,"d":"18.60"},22.84]
[null,null,"Модуль Д: Монтаж системы противопожарного водопровода из стальных ВГП труб (скоростной тест)",{"v":19.4,"d":"19.40"},13.47,17.12]
[null,null,"Модуль Е: Информирование руководства о выполненной работе",{"v":5,"d":"5.00"},4.25,4.25]
[null,null,"Итого:",100,{"$f":"SUM(E11:E16)","v":65.53},{"$f":"SUM(F11:F16)","v":{"v":81.88000000000001,"d":"81.88"}}]
[]
["Участнику присваивается квалификация по профессии рабочего (должности служащего) Монтажник санитарно-технических систем и оборудования с присвоением___ разряда (класса,категории) при наборе участником не менее _____% от количества баллов, необходимого для получения квалификации"]
[]
[]
["СОГЛАСОВАНО"]
[]
["Менеджер компетенции ",null,"________________________________","ФИО"]

{"sheet":"Характеристика работ","index":2,"n_rows":21,"n_cols":3,"rows_kept":21,"merged":[[0,0,0,2]]}
["1. Соответствие требований Тарификационно-квалификационных характеристик в части Характеристики работ Модулям конкурсного задания компетенции"]
[]
["Характеристика работ\n2 уровень квалификации, \n3 разряд.","Модуль Конкурсного задания","Соответствование содержания задания по модулю требованиям ТКХ"]
["Выполнение простых работ при монтаже и ремонте систем центрального отопления, водоснабжения, канализации, газоснабжения и водостоков.","Модуль А, Б, Г, Д, Е","Установка застенных модулей, монтаж системы водоотведения;\nМонтаж систем холодного и горячего водоснабжения с установкой встраиваемых элементов;\nМонтаж системы отопления и системы «тёплый пол»;\nМонтаж системы противопожарного водопровода из стальных ВГП труб;\nИнформирование руководства о выполненной работе."]
["Свертывание и сборка простых узлов.","Модуль А, Б, Г, Д","Установка застенных модулей, монтаж системы водоотведения;\nМонтаж систем холодного и горячего водоснабжения с установкой встраиваемых элементов;\nМонтаж системы отопления и системы «тёплый пол»;\nМонтаж системы противопожарного водопровода из стальных ВГП труб."]
["Установка и заделка креплений под приборы и трубопроводы","Модуль А, Б, В, Г, Д","Установка застенных модулей, монтаж системы водоотведения;\nМонтаж систем холодного и горячего водоснабжения с установкой встраиваемых элементов;\nУстановка санитарно-технических приборов;\nМонтаж системы отопления и системы «тёплый пол»;\nМонтаж системы противопожарного водопровода из стальных ВГП труб."]
["Сверление или пробивка отверстий в конструкциях.","Модуль А, Б, В, Г, Д","Установка застенных модулей, монтаж системы водоотведения;\nМонтаж систем холодного и горячего водоснабжения с установкой встраиваемых элементов;\nУстановка санитарно-технических приборов;\nМонтаж системы отопления и системы «тёплый пол»;\nМонтаж системы противопожарного водопровода из стальных ВГП труб."]
["Нарезка резьбы на трубах вручную.","Модуль Д","Монтаж системы противопожарного водопровода из стальных ВГП труб."]
["Комплектование труб и фасонных частей стояков.","Модуль А, Б, В, Г, Д","Установка застенных модулей, монтаж системы водоотведения;\nМонтаж систем холодного и горячего водоснабжения с установкой встраиваемых элементов;\nУстановка санитарно-технических приборов;\nМонтаж системы отопления и системы «тёплый пол»;\nМонтаж системы противопожарного водопровода из стальных ВГП труб."]
["Смена манжет у унитаза","Модуль В","Установка санитарно-технических приборов."]
[]
["Характеристика работ\n3 уровень квалификации, \n4 разряд \n( ¹При условии опыта практической работы:\nНе менее двух лет в области монтажа санитарно-технических систем и оборудования).","Модуль Конкурсного задания","Соответствование содержания задания по модулю требованиям ТКХ"]
["Выполнение работ при монтаже и ремонте систем центрального отопления, водоснабжения, канализации, газоснабжения и водостоков.","Модуль А, Б, Г, Д, Е","Установка застенных модулей, монтаж системы водоотведения;\nМонтаж систем холодного и горячего водоснабжения с установкой встраиваемых элементов;\nМонтаж системы отопления и системы «тёплый пол»;\nМонтаж системы противопожарного водопровода из стальных ВГП труб;\nИнформирование руководства о выполненной работе."]
["Монтаж трубопроводов и запорной арматуры диаметром до 200 мм.","Модуль А, Б, В, Г, Д","Установка застенных модулей, монтаж системы водоотведения;\nМонтаж систем холодного и горячего водоснабжения с установкой встраиваемых элементов;\nУстановка санитарно-технических приборов;\nМонтаж системы отопления и системы «тёплый пол»;\nМонтаж системы противопожарного водопровода из стальных ВГП труб."]
["Установка грязевиков и баков всех видов.","Модуль Б","Монтаж систем холодного и горячего водоснабжения с установкой встраиваемых элементов;"]
["Установка и подсоединение к трубопроводам санитарных приборов с арматурой (раковины, умывальники, мойки, трапы, ванны, унитазы, смывные бачки и т.п.).","Модуль В","Установка санитарно-технических приборов."]
["Разметка мест установки приборов.","Модуль А, Б, В, Г, Д","Установка застенных модулей, монтаж системы водоотведения;\nМонтаж систем холодного и горячего водоснабжения с установкой встраиваемых элементов;\nУстановка санитарно-технических приборов;\nМонтаж системы отопления и системы «тёплый пол»;\nМонтаж системы противопожарного водопровода из стальных ВГП труб."]
["Регулирование смывных бачков.","Модуль В, Е","Установка санитарно-технических приборов;\nИнформирование руководства о выполненной работе."]
["Установка водоразборных, туалетных кранов и смесителей.","Модуль В","Установка санитарно-технических приборов;"]
["Подбор и комплектование материалов, оборудования и изделий для устройства санитарно-технических систем по этажам, стоякам и секциям зданий и сооружений.","Модуль А, Б, В, Г, Д","Установка застенных модулей, монтаж системы водоотведения;\nМонтаж систем холодного и горячего водоснабжения с установкой встраиваемых элементов;\nУстановка санитарно-технических приборов;\nМонтаж системы отопления и системы «тёплый пол»;\nМонтаж системы противопожарного водопровода из стальных ВГП труб."]
["Монтаж водопровода и канализации из полимерных труб на резьбовых, сварных, клеевых или раструбных соединениях.","Модуль А, Б","Установка застенных модулей, монтаж системы водоотведения;\nМонтаж систем холодного и горячего водоснабжения с установкой встраиваемых элементов;"]

{"sheet":"Должен знать","index":3,"n_rows":13,"n_cols":3,"rows_kept":13,"merged":[[0,0,0,2]]}
["2. Соответствие требований Тарифно-квалификационных характеристик в части необходимых Знаний Перечню профессиональных задач специалиста по компетенции (таблица №1 КЗ)"]
[]
["Должен знать по ТКХ\n2 уровень квалификации, \n3 разряд.","Раздел Перечня профессиональных задач специалиста","Соответствие содержания раздела Перечня требованиям ТКХ"]
["виды основных деталей санитарно-технических систем, соединений труб и креплений трубопроводов","2 - Работа с нормативной, сопроводительной документацией, чертежи, \n4 - Менеджмент (дизайн),\n5 - Технологии и ресурсы.","Виды технической и проектной документации систем водоснабжения, водоотведения, отопления и газоснабжения;\nПравила построения монтажных чертежей и замерных эскизов с натуры и по строительным чертежам;\nНазначение каждого вида оборудования, основных деталей и узлов систем водоснабжения, водоотведения, отопления и газоснабжения и их оборудования;\nПравила размещения элементов систем водоснабжения, водоотведения, отопления и газоснабжения с учетом требований эргономики;\nТехнологию работ по монтажу систем водоснабжения, водоотведения, отопления и газоснабжения и их оборудования"]
["назначение, устройство и особенности монтажа внутренних систем центрального отопления, водоснабжения, канализации, газоснабжения и водостоков","4 - Менеджмент (дизайн),\n5 - Технологии и ресурсы,\n8 - Создание и применение решений для обслуживания, ремонта и замены","Назначение каждого вида оборудования, основных деталей и узлов систем водоснабжения, водоотведения, отопления и газоснабжения и их оборудования;\nПравила размещения элементов систем водоснабжения, водоотведения, отопления и газоснабжения с учетом требований эргономики;\nУстройство и способы монтажа трубопроводных систем из стальных, медных и полимерных труб;\nПравила установки санитарных приборов;\nУстройство и способы монтажа трубопроводных систем из стальных, медных, латунных, полимерных, металлополимерных, нержавеющих и оцинкованных труб;\nСпособы разметки мест установки приборов и креплений;\n Устройство, принцип работы и общие технические характеристики домовых санитарно-технических систем и оборудования. "]
["способы сверления и пробивки отверстий","1 - Организация работ, охрана труда,\n2 - Работа с нормативной, сопроводительной документацией, чертежи.","Виды шаблонов для разметки отверстий при установке приборов и правила пользования ими;\nВиды технической и проектной документации систем водоснабжения, водоотведения, отопления и газоснабжения."]
["правила пользования механизированным инструментом","1 - Организация работ, охрана труда\n5 - Технологии и ресурсы.","Требования охраны труда, пожарной и экологической безопасности;\nНазначение и правила применения ручных и механизированных инструментов и приспособлений, необходимых при монтаже систем водоснабжения, водоотведения, отопления и газоснабжения и их оборудования."]
[]
["Должен знать по ТКХ\n3 уровень квалификации, \n4 разряд \n( ¹При условии опыта практической работы:\nНе менее двух лет в области монтажа санитарно-технических систем и оборудования).","Раздел Перечня профессиональных задач специалиста","Соответствие содержания раздела Перечня требованиям ТКХ"]
["системы разводов от стояков","2 - Работа с нормативной, сопроводительной документацией, чертежи, \n4 - Менеджмент (дизайн),\n5 - Технологии и ресурсы.","Виды технической и проектной документации систем водоснабжения, водоотведения, отопления и газоснабжения;\nПравила построения монтажных чертежей и замерных эскизов с натуры и по строительным чертежам;\nНазначение каждого вида оборудования, основных деталей и узлов систем водоснабжения, водоотведения, отопления и газоснабжения и их оборудования;\nПравила размещения элементов систем водоснабжения, водоотведения, отопления и газоснабжения с учетом требований эргономики;\nТехнологию работ по монтажу систем водоснабжения, водоотведения, отопления и газоснабжения и их оборудования"]
["устройство и способы монтажа трубопроводных систем из стальных и полимерных труб","4 - Менеджмент (дизайн),\n5 - Технологии и ресурсы,\n8 - Создание и применение решений для обслуживания, ремонта и замены","Назначение каждого вида оборудования, основных деталей и узлов систем водоснабжения, водоотведения, отопления и газоснабжения и их оборудования;\nПравила размещения элементов систем водоснабжения, водоотведения, отопления и газоснабжения с учетом требований эргономики;\nУстройство и способы монтажа трубопроводных систем из стальных, медных и полимерных труб;\nПравила установки санитарных приборов;\nУстройство и способы монтажа трубопроводных систем из стальных, медных, латунных, полимерных, металлополимерных, нержавеющих и оцинкованных труб;\nСпособы разметки мест установки приборов и креплений;\n Устройство, принцип работы и общие технические характеристики домовых санитарно-технических систем и оборудования. "]
["способы разметки мест установки креплений и приборов","1 - Организация работ, охрана труда,\n2 - Работа с нормативной, сопроводительной документацией, чертежи.","Виды шаблонов для разметки отверстий при установке приборов и правила пользования ими;\nВиды технической и проектной документации систем водоснабжения, водоотведения, отопления и газоснабжения."]
["правила установки санитарно-технических и нагревательных приборов","2 - Работа с нормативной, сопроводительной документацией, чертежи;\n5 - Технологии и ресурсы.","Виды технической и проектной документации систем водоснабжения, водоотведения, отопления и газоснабжения;\nПравила установки санитарных приборов;\nПравила установки отопительных приборов."]

{"sheet":"Примеры работ","index":4,"n_rows":3,"n_cols":2,"rows_kept":3,"merged":[[0,0,0,1]]}
["3. Соответствие Тарифно-квалификационных характеристик в части Примеров работ Конкурсному заданию (если определено в ТКХ)"]
[]
["Примеры работ в ТКХ","Примеры работ в КЗ"]

{"sheet":"ПС16.086 B 01.3 1; 2; 13","index":5,"n_rows":177,"n_cols":3,"rows_kept":177,"merged":[[0,0,0,2],[12,0,12,2],[13,0,13,2],[14,0,14,2],[70,0,70,2],[71,0,71,2],[72,0,72,2],[73,0,73,2],[74,0,74,2],[89,0,89,2],[90,0,90,2],[91,0,91,2],[92,0,92,2],[113,0,113,2],[114,0,114,2],[115,0,115,2],[116,0,116,2],[117,0,117,2],[118,0,118,2],[140,0,140,2],[141,0,158,0],[141,1,141,2],[142,1,142,2],[143,1,143,2],[144,1,144,2],[145,1,145,2],[146,1,146,2],[147,1,147,2],[148,1,148,2],[149,1,149,2],[150,1,150,2],[151,1,151,2],[152,1,152,2],[153,1,153,2],[154,1,154,2],[155,1,155,2],[156,1,156,2],[157,1,157,2],[158,1,158,2],[159,0,164,0],[159,1,159,2],[160,1,160,2],[161,1,161,2],[162,1,162,2],[163,1,163,2],[164,1,164,2],[166,0,166,2],[167,0,171,0],[167,1,167,2],[168,1,168,2],[169,1,169,2],[170,1,170,2],[171,1,171,2],[172,0,176,0],[172,1,172,2],[173,1,173,2],[174,1,174,2],[175,1,175,2],[176,1,176,2]]}
["Профстандарт 16.086 B/01.3"]
["Трудовые действия","Умения","Знания"]
["Получение задания на выполнение работ по обслуживанию, ремонту домовых санитарно-технических систем и оборудования и устранению аварий на домовых санитарно-технических системах и оборудовании","Выполнять работы с соблюдением требований охраны труда, пожарной и экологической безопасности","Устройство, принцип работы и общие технические характеристики домовых санитарно-технических систем и оборудования"]
["Осмотр территории, под которой проложен выпуск канализационного лежака от стены многоквартирного дома (далее - МКД) до первого колодца, на предмет обнаружения промоин, провалов, испарений","Определять рациональные и безопасные маршруты следования для осмотра наружных канализационных сетей (в границах эксплуатационной ответственности - до первого смотрового колодца)","Номенклатура материалов, изделий, инструмента и приспособлений, применяемых при ремонте домовых санитарно-технических систем и оборудования"]
["Осмотр внутридомовых водопроводно-канализационных сетей для выявления неисправностей","Подбирать необходимый инструмент и приспособления для производства работ","Методы оценки технического состояния домовых санитарно-технических систем и оборудования"]
["Замер параметров теплоносителя и воды (давления, температуры, расхода) в помещениях МКД","Выявлять неисправности в работе элементов внутренней канализации, канализационных вытяжек, внутреннего водостока, дренажных систем","Внешние проявления поверхностных дефектов на наружных канализационных и домовых водопроводно-канализационных сетях"]
["Проверка исправности и работоспособности оборудования на домовых индивидуальных тепловых пунктах и водоподкачках","Выявлять неисправности в работе оборудования на домовых индивидуальных тепловых пунктах и водоподкачках","Требования охраны труда при ремонте домовых санитарно-технических систем и оборудования"]
["Осмотр контрольно-измерительных приборов","Измерять параметры теплоносителя и воды (давления, температуры, расхода) в помещениях МКД, в том числе на индивидуальных тепловых пунктах и водоподкачках"]
["Проверка герметичности участков трубопроводов","Определять состояние и выявлять неисправности в работе насосов, запорной арматуры, контрольно-измерительных приборов, коллективных (общедомовых) приборов учета, расширительных баков и элементов, скрытых от постоянного наблюдения (разводящих трубопроводов и оборудования на чердаках, в подвалах и каналах)"]
["Проверка состояния элементов внутренней канализации, канализационных вытяжек, дренажных систем","Выявлять поверхностные дефекты на домовых санитарно-технических системах и оборудовании"]
["Информирование работника более высокого уровня квалификации при выявлении неисправностей, обнаружении дефектов или низкого качества материалов, а также работ, выполненных с отклонением от проекта или технических условий"]
[]
["ФГОС 08.01.10 МАСТЕР ЖИЛИЩНО-КОММУНАЛЬНОГО ХОЗЯЙСТВА"]
["3.4.1. Выполнение работ по эксплуатации и ремонту оборудования систем водоснабжения, водоотведения, отопления жилищно-коммунального хозяйства:"]
["ПК 1.1. Обеспечивать эксплуатацию и ремонт системы водоснабжения и водоотведения здания;"]
["Иметь практический опыт в","Уметь","Знать"]
["работах по эксплуатации зданий, сооружений, конструкций, оборудования систем водоснабжения, водоотведения, отопления зданий и сооружений, жилищно-коммунального хозяйства;","оценивать состояние рабочего места на соответствие требованиям охраны труда и полученному заданию/наряду;","требования по охране труда при проведении работ по техническому обслуживанию, ремонту и монтажу отдельных узлов оборудования систем водоснабжения, водоотведения, отопления объектов жилищно-коммунального хозяйства;"]
["совершении действий в критических ситуациях при эксплуатации зданий, сооружений, конструкций, оборудования систем водоснабжения, водоотведения, отопления, жилищно-коммунального хозяйства.","определять исправность средств индивидуальной защиты;","виды и основные правила построения чертежей, эскизов и схем систем водоснабжения, водоотведения, отопления объектов жилищно-коммунального хозяйства;"]
[null,"читать и выполнять чертежи, эскизы и схемы систем водоснабжения, водоотведения, отопления объектов жилищно-коммунального хозяйства;","виды, назначение, устройство, принципы работы домовых санитарно-технических систем и оборудования, домовых систем водоснабжения, в том числе поливочной системы и системы противопожарного водопровода, систем отопления, отопительных приборов, циркуляционных насосов, элеваторных и тепловых узлов, запорно-регулирующей и водоразборной арматуры и вспомогательного оборудования;"]
[null,"подбирать материалы, инструменты и оборудование согласно технологическому процессу и сменному заданию/наряду;","сущность и содержание технической эксплуатации оборудования систем водоснабжения, водоотведения, отопления;"]
[null,"проводить техническое обслуживание оборудования систем водоснабжения, водоотведения, отопления объектов жилищно-коммунального хозяйства;","правила рациональной эксплуатации зданий, сооружений, конструкций, оборудования систем водоснабжения, водоотведения, отопления;"]
[null,"определять признаки неисправности при эксплуатации зданий, сооружений, конструкций, оборудования систем водоснабжения, водоотведения, отопления жилищно-коммунального хозяйства;","показатели технического уровня эксплуатации оборудования систем водоснабжения, водоотведения, отопления;"]
[null,"проводить плановый осмотр зданий, сооружений, конструкций, оборудования систем водоснабжения, водоотведения, отопления жилищно-коммунального хозяйства;","виды технического обслуживания: текущее (внутрисменное) обслуживание, профилактические осмотры, периодические осмотры, надзор;"]
[null,"заполнять техническую документацию по результатам осмотра;","приемы и методы минимизации издержек на объектах жилищно-коммунального хозяйства;"]
[null,"выполнять профилактические работы, способствующие эффективной работе санитарно-технической системы, системы отопления;","основы \"бережливого производства\", повышающие качество и производительность труда на объектах жилищно-коммунального хозяйства;"]
[null,"выполнять гидравлическое испытание системы водоснабжения, в том числе поливочной системы и системы противопожарного водопровода;","состав и требования к проведению профилактических и регламентных работ в системе водоснабжения, в том числе поливочной системы и системы противопожарного водопровода, повысительных и пожарных насосов, запорно-регулирующей и водоразборной арматуры, системе водоотведения, внутренних водостоков, санитарно-технических приборов и системе отопления объектов жилищно-коммунального хозяйства;"]
[null,"подготавливать внутридомовые системы водоснабжения, отопления, в том числе поливочные системы и системы противопожарного водопровода к сезонной эксплуатации;","технологию и технику обслуживания элеваторных и тепловых узлов и вспомогательного оборудования;"]
[null,"выполнять консервацию внутридомовых систем;","виды деятельности объектов жилищно-коммунального хозяйства, оказывающие негативное влияние на окружающую среду;"]
[null,"применять ручной и механизированный инструмент по назначению и в соответствии с видом работ;","нормативную базу технической эксплуатации;"]
[null,"обнаружить с помощью приборов опасные вещества в воздухе, в воде и в грунте;","эксплуатационную техническую документацию, виды и основное содержание;"]
[null,"определять причины и устранять неисправности конструкций зданий, сооружений, оборудования систем водоснабжения, водоотведения, отопления жилищно-коммунального хозяйства;","правила заполнения технической документации;"]
[null,"проводить слесарные работы при ремонте;","основные понятия, положения и показатели, предусмотренные ГОСТами, по определению надежности оборудования систем водоснабжения, водоотведения, отопления жилищно-коммунального хозяйства, их технико-экономическое значение;"]
[null,"осуществлять ремонт санитарно-технического оборудования и системы отопления;","инженерные показатели и методы обеспечения надежности оборудования систем водоснабжения, водоотведения, отопления жилищно-коммунального хозяйства на стадиях конструирования, изготовления, эксплуатации;"]
[null,"выполнять замену участков трубопроводов, отопительных приборов и их секций, запорно-регулирующей, водоразборной арматуры, внутренних пожарных кранов, контрольно-измерительных приборов с использованием ручного и механизированного инструмента приспособлений и материалов;","основные методы, технологию измерений, средства измерений;"]
[null,"перекладывать канализационный выпуск;","классификацию, принцип действия измерительных преобразователей;"]
[null,"ремонтировать и менять гидрозатворы, санитарно-технические приборы, повысительные, пожарные и циркуляционные насосы, расширительные баки и водоподогреватели;","классификацию и назначение чувствительных элементов;"]
[null,"проводить испытания отремонтированных систем и оборудования жилищно-коммунального хозяйства;","структуру средств измерений;"]
[null,"использовать необходимые инструменты, приспособления и материалы при выполнении ремонтных работ.","понятие о государственной системе приборов;"]
[null,null,"весовые устройства;"]
[null,null,"назначение и принцип действия контрольно-измерительных приборов и аппаратов средней сложности;"]
[null,null,"оптико-механические средства измерений;"]
[null,null,"основные понятия систем автоматического управления и регулирования;"]
[null,null,"основные этапы профилактических работ;"]
[null,null,"способы и средства выполнения профилактических работ;"]
[null,null,"правила применения универсальных и специальных приспособлений и контрольно-измерительного инструмента;"]
[null,null,"влияние температуры на точность измерений;"]
[null,null,"методы и средства испытаний;"]
[null,null,"технические документы на испытание и готовность к работе сооружений, конструкций, оборудования систем водоснабжения, водоотведения, отопления жилищно-коммунального хозяйства;"]
[null,null,"сущность, назначение и содержание технического обслуживания и ремонта зданий, сооружений, конструкций жилищно-коммунального хозяйства;"]
[null,null,"сущность, назначение и содержание ремонта и монтажа отдельных узлов и оборудования систем водоснабжения, водоотведения, отопления объектов жилищно-коммунального хозяйства;"]
[null,null,"методы и приемы расчета необходимых материалов и оборудования при ремонте и монтаже отдельных узлов систем водоснабжения, водоотведения, отопления;"]
[null,null,"нормативно-техническую документацию;"]
[null,null,"ремонтную базу жилищно-коммунального хозяйства;"]
[null,null,"основы слесарного дела;"]
[null,null,"санитарно-техническую систему здания;"]
[null,null,"отопительную систему здания;"]
[null,null,"виды ремонта оборудования: текущий, капитальный (объем, периодичность, продолжительность, трудоемкость, количество);"]
[null,null,"формы организации ремонтных служб (децентрализованная, централизованная, смешанная);"]
[null,null,"формы подготовки ремонта (конструкторская, технологическая, материально-техническая, организационная);"]
[null,null,"применение контрольно-диагностической аппаратуры;"]
[null,null,"ремонтную документацию;"]
[null,null,"методы проведения ремонта;"]
[null,null,"общие принципы технологии ремонта;"]
[null,null,"технические документы на испытание и готовность к работе оборудования систем водоснабжения, водоотведения, отопления объектов жилищно-коммунального хозяйства;"]
[null,null,"предъявляемые требования готовности к проведению испытания отопительной системы;"]
[null,null,"порядок сдачи после ремонта и испытаний оборудования систем водоснабжения, водоотведения, отопления объектов жилищно-коммунального хозяйства;"]
[null,null,"устройство и правила эксплуатации применяемых инструментов, приспособлений;"]
[null,null,"компьютерные системы управления обслуживанием и ремонтом."]
[]
[]
["ФГОС 08.01.14 МОНТАЖНИК САНИТАРНО-ТЕХНИЧЕСКИХ, ВЕНТИЛЯЦИОННЫХ СИСТЕМ И ОБОРУДОВАНИЯ"]
["3.4.1. Выполнение работ по монтажу систем отопления, водоснабжения, водоотведения и газоснабжения:"]
["ПК 1.1. Выполнять подготовительные работы при монтаже систем отопления, водоснабжения, водоотведения и газоснабжения;"]
["ПК 1.2. Осуществлять подбор и проверку оборудования, инструмента, приспособлений и фасонных частей, необходимых при выполнении монтажа систем отопления, водоснабжения, водоотведения и газоснабжения;"]
["ПК 1.3. Осуществлять монтаж систем отопления водоснабжения, водоотведения и газоснабжения в соответствии с требованиями нормативно-технической документации."]
["Иметь практический опыт в","Уметь","Знать"]
["подготовке инструмента, оборудования, узлов и деталей к монтажу систем отопления, водоснабжения, водоотведения и газоснабжения в соответствии с проектом производства работ;","использовать сопроводительную документацию для проверки комплектности и качества санитарно-технических инструментов и оборудования;","виды и назначение санитарно-технических материалов, арматуры и оборудования;"]
["выполнении подготовительных работ при монтаже и ремонте систем отопления, водоснабжения, водоотведения и газоснабжения;","изучать и использовать при монтаже санитарно-технических систем проектную и техническую документацию;","виды и назначение основной проектной и технической документации для производства монтажных работ;"]
["выполнении работ средней сложности при монтаже и ремонте внутренних систем отопления, водоснабжения, водоотведения и газоснабжения;","выполнять слесарные операции при монтаже и ремонте санитарно-технических систем;","правила выполнения слесарных работ при монтаже и ремонте санитарно-технических систем;"]
["выполнении работ средней сложности при монтаже и ремонте наружных систем отопления, водоснабжения, водоотведения и газоснабжения.","использовать ручной и механизированный инструмент и приспособления при монтаже санитарно-технических систем и оборудования;","назначение и правила применения ручного и механизированного инструмента и приспособлений, необходимых при монтаже санитарно-технических систем и оборудования;"]
[null,"разбирать, ремонтировать и собирать детали и узлы систем отопления, водоснабжения, канализации, газоснабжения и водостоков;","назначение, устройство и принцип действия систем отопления, водоснабжения, водоотведения и газоснабжения;"]
[null,"соединять трубопроводы систем отопления, водоснабжения, канализации, газоснабжения и водостоков;","технологию и последовательность подготовительных и монтажных работ наружных сетей систем отопления, водоснабжения, водоотведения и газоснабжения;"]
[null,"выполнять укрупненную сборку узлов внутренних санитарно-технических систем;","технологию, последовательность подготовительных работ и особенности монтажа оборудования и трубопроводов внутренних систем отопления, водоснабжения, водоотведения и газоснабжения;"]
[null,"выполнять установку и крепление санитарно-технического оборудования и трубопроводов;","правила проведения испытаний оборудования и трубопроводов;"]
[null,"соблюдать требования охраны труда, пожарной экологической безопасности при выполнении работ;","правила безопасной эксплуатации монтажного оборудования;"]
[null,"проводить ревизию и испытания санитарно-технической арматуры;","санитарные нормы и правила проведения монтажных работ;"]
[null,"проводить испытания смонтированных санитарно-технических систем;","требования охраны труда."]
[null,"соблюдать требования охраны труда, пожарной и экологической безопасности при выполнении работ."]
[]
["08.01.26 МАСТЕР ПО РЕМОНТУ И ОБСЛУЖИВАНИЮ ИНЖЕНЕРНЫХ СИСТЕМ ЖИЛИЩНО-КОММУНАЛЬНОГО ХОЗЯЙСТВА"]
["3.4.1. Поддержание рабочего состояния оборудования систем водоснабжения, водоотведения, отопления объектов жилищно-коммунального хозяйства:\n"]
["ПК 1.1. Осуществлять техническое обслуживание в соответствии с заданием (нарядом) системы водоснабжения, водоотведения, отопления объектов жилищно-коммунального хозяйства."]
["ПК 1.2. Проводить ремонт и монтаж отдельных узлов системы водоснабжения, водоотведения."]
["Иметь практический опыт в","Уметь","Знать"]
["техническом обслуживании в соответствии с заданием/нарядом системы водоснабжения, водоотведения, отопления объектов жилищно-коммунального хозяйства;","оценивать состояние рабочего места на соответствие требованиям охраны труда и полученному заданию/наряду;","требования по охране труда при проведении работ по техническому обслуживанию, ремонту и монтажу отдельных узлов оборудования систем водоснабжения, водоотведения, отопления объектов жилищно-коммунального хозяйства;"]
["ремонте и монтаже отдельных узлов системы водоснабжения, водоотведения;","определять исправность средств индивидуальной защиты;","виды и основные правила построения чертежей, эскизов и схем систем водоснабжения, водоотведения, отопления объектов жилищно-коммунального хозяйства;"]
["ремонте и монтаже отдельных узлов системы отопления","читать и выполнять чертежи, эскизы и схемы систем водоснабжения, водоотведения, отопления объектов жилищно-коммунального хозяйства;","правила чтения технической и конструкторско-технологической документации;"]
[null,"подбирать материалы, инструменты и оборудование согласно технологическому процессу и сменному заданию/наряду;","правила заполнения технической документации;"]
[null,"проводить техническое обслуживание оборудования систем водоснабжения, водоотведения, отопления объектов жилищно-коммунального хозяйства;","сущности и содержания технической эксплуатации оборудования систем водоснабжения, водоотведения, отопления объектов жилищно-коммунального хозяйства;"]
[null,"заполнять техническую документацию по результатам осмотра;","виды деятельности объектов жилищно-коммунального хозяйства, оказывающих негативное влияние на окружающую среду;"]
[null,"выполнять расчет необходимых материалов и оборудования при ремонте и монтаже отдельных узлов систем водоснабжения, водоотведения, отопления объектов жилищно-коммунального хозяйства;","виды, назначение, устройство, принципы работы домовых санитарно-технических систем и оборудования, домовых системы водоснабжения, в том числе поливочной системы и системы противопожарного водопровода, систем отопления, отопительных приборов, циркуляционных насосов, элеваторных и тепловых узлов, запорно-регулирующей и водоразборной арматуры и вспомогательного оборудования;"]
[null,"использовать инструменты, при выполнении ремонтных работ;","технологию техники обслуживания домовых санитарно-технических систем и оборудования;"]
[null,"устранять неисправности санитарно-технических систем и оборудования;","виды, назначение и принципы работы систем контроля технического состояния оборудования объектов жилищно-коммунального хозяйства;"]
[null,"проводить испытания отремонтированных систем и оборудования водоснабжения, водоотведения, отопления объектов жилищно-коммунального хозяйства;","основные понятия систем автоматического управления и регулирования;"]
[null,"подготавливать внутридомовые системы водоснабжения, отопления, в том числе поливочной системы и системы противопожарного водопровода к сезонной эксплуатации;","назначение и принципы действия контрольно-измерительных приборов и аппаратов;"]
[null,"выполнять консервацию внутридомовых систем.","правила применения контрольно-диагностической аппаратуры;"]
[null,null,"правила применения универсальных и специальных приспособлений и контрольно-измерительного инструмента;"]
[null,null,"сущность и содержание ремонта и монтажа систем водоснабжения, водоотведения, отопления объектов жилищно-коммунального хозяйства;"]
[null,null,"подготовку внутридомовой системы отопления, системы холодного водоснабжения, в том числе поливочной системы и системы противопожарного водопровода к сезонной эксплуатации, опрессовки системы отопления;"]
[null,null,"порядок обслуживания элеваторных и тепловых узлов и вспомогательного оборудования;"]
[null,null,"технические документы на испытание и готовность к работе оборудования систем водоснабжения, водоотведения, отопления объектов жилищно-коммунального хозяйства;"]
[null,null,"порядок сдачи после ремонта и испытаний оборудования систем водоснабжения, водоотведения, отопления объектов жилищно-коммунального хозяйства."]
[]
["ФГОС 08.02.07 МОНТАЖ И ЭКСПЛУАТАЦИЯ ВНУТРЕННИХ САНТЕХНИЧЕСКИХ УСТРОЙСТВ, КОНДИЦИОНИРОВАНИЯ ВОЗДУХА И ВЕНТИЛЯЦИИ"]
["3.4.1. Организация и контроль работ по монтажу систем водоснабжения и водоотведения, отопления, вентиляции и кондиционирования воздуха:"]
["ПК 1.1. Организовывать и выполнять подготовку систем и объектов к монтажу;"]
["ПК 1.2. Организовывать и выполнять монтаж систем водоснабжения и водоотведения, отопления, вентиляции и кондиционирования воздуха;"]
["ПК 1.3. Организовывать и выполнять производственный контроль качества монтажных работ;"]
["ПК 1.4. Выполнять пусконаладочные работы систем водоснабжения и водоотведения, отопления, вентиляции и кондиционирование воздуха;"]
["Иметь практический опыт в","Уметь","Знать"]
["организации и выполнении монтажа систем водоснабжения и водоотведения, отопления, вентиляции и кондиционирования воздуха;","использовать сопроводительную документацию для проверки комплектности и качества изготовления оборудования санитарно-технических систем, вентиляции и кондиционирования воздуха;","классификацию систем водоснабжения и водоотведения, отопления, вентиляции и кондиционирования воздуха;"]
["выполнении пусконаладочных работ систем водоснабжения и водоотведения, отопления, вентиляции и кондиционирования воздуха.","читать и разрабатывать монтажные чертежи систем водоснабжения и водоотведения, отопления, вентиляции и кондиционирования воздуха;","назначение и правила применения ручных инструментов и приспособлений, необходимых при монтаже систем водоснабжения и водоотведения, отопления, вентиляции и кондиционирования воздуха;"]
[null,"составлять ведомости выявленных дефектов (для поставщика оборудования) с целью их устранения;","состав комплекта технической документации и комплектность оборудования и материалов;"]
[null,"оформлять техническую документацию по результатам испытаний;","проектную и нормативную документацию в области монтажа и испытаний систем водоснабжения и водоотведения, отопления, вентиляции и кондиционирования воздуха;"]
[null,"проводить регулирование смонтированных сантехнических систем, вентиляции и кондиционирования воздуха для достижения проектных и паспортных характеристик;","технологию изготовления узлов и деталей трубопроводов и воздуховодов из различных материалов;"]
[null,"руководить работниками в рамках подразделения при выполнении работ по монтажу систем водоснабжения и водоотведения, отопления, вентиляции и кондиционирования воздуха;","технологию сборки монтажных узлов и требования к качеству их изготовления;"]
[null,"производить измерение производительности и давления вентилятора в характерных точках системы;","основы монтажного проектирования;"]
[null,"пользоваться контрольно-измерительными приборами.","правила по охране труда при подготовке оборудования, узлов и деталей к монтажу в соответствии с проектом производства работ;"]
[null,null,"правила по охране труда при монтаже систем вентиляции и кондиционирования воздуха;"]
[null,null,"технологию монтажных работ систем вентиляции;"]
[null,null,"проектную и нормативную документацию по монтажу систем кондиционирования;"]
[null,null,"способы соединения медных труб;"]
[null,null,"методы проведения измерений гидравлических и аэродинамических характеристик монтируемой системы;"]
[null,null,"принципы работы измерительных приборов и правила пуска и регулирования отдельных элементов и системы в целом;"]
[null,null,"принципы работы монтируемых систем и их элементов;"]
[null,null,"методику проведения регулирования смонтированных систем и отдельных элементов;"]
[null,null,"теплоизоляционный материал и способы работы с ним;"]
[null,null,"правила пайки твердым припоем;"]
[null,null,"особенности менеджмента в соответствующей области профессиональной деятельности."]
[]
["ЕТКС работ и профессий рабочих. Выпуск 3. § 201. Монтажник санитарно-технических систем и оборудования 3-го разряда"]
["Характеристика работ.","Выполнение простых работ при монтаже и ремонте систем центрального отопления, водоснабжения, канализации, газоснабжения и водостоков."]
[null,"Свертывание и сборка простых узлов."]
[null,"Сборка фланцевых соединений."]
[null,"Разборка отдельных узлов трубопроводов (при монтаже)."]
[null,"Установка и заделка креплений под приборы и трубопроводы."]
[null,"Сверление или пробивка отверстий в конструкциях."]
[null,"Заделка раструбов чугунных трубопроводов."]
[null,"Нарезка резьбы на трубах вручную."]
[null,"Комплектование труб и фасонных частей стояков."]
[null,"Установка ручного пресса для опрессовки систем."]
[null,"Отсоединение чугунных котлов от трубопроводов."]
[null,"Обрубка кромок швов жаротрубного котла для последующей подварки."]
[null,"Очистка секций чугунного котла снаружи и изнутри с промывкой."]
[null,"Срубка заклепок жаротрубного котла с выбиванием их."]
[null,"Смена манжет у унитаза."]
[null,"Зачистка сварных швов шлифмашинкой."]
[null,"Прокачка канализационных стояков и отводов."]
[null,"Смена прокладок кранов, вентилей."]
["Должен знать:","виды основных деталей санитарно-технических систем, соединений труб и креплений трубопроводов; "]
[null,"назначение, устройство и особенности монтажа внутренних систем центрального отопления, водоснабжения, канализации, газоснабжения и водостоков;"]
[null,"способы сверления и пробивки отверстий;"]
[null,"правила транспортировки баллонов с кислородом и ацетиленом;"]
[null,"правила техники безопасности при транспортировке баллонов;"]
[null,"правила пользования механизированным инструментом."]
[]
["ЕТКС работ и профессий рабочих. Выпуск 2. Часть 2. § 161. Слесарь-сантехник 3-го разряда"]
["Характеристика работ.","Разборка, ремонт и сборка различных деталей и узлов санитарно-технических систем центрального отопления, водоснабжения, канализации и водостоков."]
[null,"Сверление или пробивка отверстий в конструкциях."]
[null,"Нарезка резьб на трубах вручную."]
[null,"Установка и заделка креплений под трубопроводы и приборы."]
[null,"Комплектование труб и фасонных частей стояков."]
["Должен знать:","принцип действия, назначение и особенности ремонта санитарно-технических трубопроводных систем центрального отопления, водоснабжения, канализации и водостоков;"]
[null,"виды основных деталей санитарно-технических систем, соединений труб и креплений трубопроводов;"]
[null,"способы сверления и пробивки отверстий;"]
[null,"правила обращения и транспортирования баллонов с кислородом и ацетиленом;"]
[null,"назначение и правила пользования механизированным инструментом."]

{"sheet":"ПС 16.086 B 01.3 9; 10","index":6,"n_rows":176,"n_cols":3,"rows_kept":176,"merged":[[0,0,0,2],[12,0,12,2],[13,0,13,2],[14,0,14,2],[69,0,69,2],[70,0,70,2],[71,0,71,2],[72,0,72,2],[73,0,73,2],[88,0,88,2],[89,0,89,2],[90,0,90,2],[91,0,91,2],[112,0,112,2],[113,0,113,2],[114,0,114,2],[115,0,115,2],[116,0,116,2],[117,0,117,2],[139,0,139,2],[140,0,157,0],[140,1,140,2],[141,1,141,2],[142,1,142,2],[143,1,143,2],[144,1,144,2],[145,1,145,2],[146,1,146,2],[147,1,147,2],[148,1,148,2],[149,1,149,2],[150,1,150,2],[151,1,151,2],[152,1,152,2],[153,1,153,2],[154,1,154,2],[155,1,155,2],[156,1,156,2],[157,1,157,2],[158,0,163,0],[158,1,158,2],[159,1,159,2],[160,1,160,2],[161,1,161,2],[162,1,162,2],[163,1,163,2],[165,0,165,2],[166,0,170,0],[166,1,166,2],[167,1,167,2],[168,1,168,2],[169,1,169,2],[170,1,170,2],[171,0,175,0],[171,1,171,2],[172,1,172,2],[173,1,173,2],[174,1,174,2],[175,1,175,2]]}
["Профстандарт 16.086 B/01.3"]
["Трудовые действия","Умения","Знания"]
["Получение задания на выполнение работ по обслуживанию, ремонту домовых санитарно-технических систем и оборудования и устранению аварий на домовых санитарно-технических системах и оборудовании","Выполнять работы с соблюдением требований охраны труда, пожарной и экологической безопасности","Устройство, принцип работы и общие технические характеристики домовых санитарно-технических систем и оборудования"]
["Осмотр территории, под которой проложен выпуск канализационного лежака от стены многоквартирного дома (далее - МКД) до первого колодца, на предмет обнаружения промоин, провалов, испарений","Определять рациональные и безопасные маршруты следования для осмотра наружных канализационных сетей (в границах эксплуатационной ответственности - до первого смотрового колодца)","Номенклатура материалов, изделий, инструмента и приспособлений, применяемых при ремонте домовых санитарно-технических систем и оборудования"]
["Осмотр внутридомовых водопроводно-канализационных сетей для выявления неисправностей","Подбирать необходимый инструмент и приспособления для производства работ","Методы оценки технического состояния домовых санитарно-технических систем и оборудования"]
["Замер параметров теплоносителя и воды (давления, температуры, расхода) в помещениях МКД","Выявлять неисправности в работе элементов внутренней канализации, канализационных вытяжек, внутреннего водостока, дренажных систем","Внешние проявления поверхностных дефектов на наружных канализационных и домовых водопроводно-канализационных сетях"]
["Проверка исправности и работоспособности оборудования на домовых индивидуальных тепловых пунктах и водоподкачках","Выявлять неисправности в работе оборудования на домовых индивидуальных тепловых пунктах и водоподкачках","Требования охраны труда при ремонте домовых санитарно-технических систем и оборудования"]
["Осмотр контрольно-измерительных приборов","Измерять параметры теплоносителя и воды (давления, температуры, расхода) в помещениях МКД, в том числе на индивидуальных тепловых пунктах и водоподкачках"]
["Проверка герметичности участков трубопроводов","Определять состояние и выявлять неисправности в работе насосов, запорной арматуры, контрольно-измерительных приборов, коллективных (общедомовых) приборов учета, расширительных баков и элементов, скрытых от постоянного наблюдения (разводящих трубопроводов и оборудования на чердаках, в подвалах и каналах)"]
["Проверка состояния элементов внутренней канализации, канализационных вытяжек, дренажных систем","Выявлять поверхностные дефекты на домовых санитарно-технических системах и оборудовании"]
["Информирование работника более высокого уровня квалификации при выявлении неисправностей, обнаружении дефектов или низкого качества материалов, а также работ, выполненных с отклонением от проекта или технических условий"]
[]
["ФГОС 08.01.10 МАСТЕР ЖИЛИЩНО-КОММУНАЛЬНОГО ХОЗЯЙСТВА"]
["3.4.1. Выполнение работ по эксплуатации и ремонту оборудования систем водоснабжения, водоотведения, отопления жилищно-коммунального хозяйства:"]
["ПК 1.2. Обеспечивать эксплуатацию и ремонт системы отопления здания."]
["Иметь практический опыт в","Уметь","Знать"]
["работах по эксплуатации зданий, сооружений, конструкций, оборудования систем водоснабжения, водоотведения, отопления зданий и сооружений, жилищно-коммунального хозяйства;","оценивать состояние рабочего места на соответствие требованиям охраны труда и полученному заданию/наряду;","требования по охране труда при проведении работ по техническому обслуживанию, ремонту и монтажу отдельных узлов оборудования систем водоснабжения, водоотведения, отопления объектов жилищно-коммунального хозяйства;"]
["совершении действий в критических ситуациях при эксплуатации зданий, сооружений, конструкций, оборудования систем водоснабжения, водоотведения, отопления, жилищно-коммунального хозяйства.","определять исправность средств индивидуальной защиты;","виды и основные правила построения чертежей, эскизов и схем систем водоснабжения, водоотведения, отопления объектов жилищно-коммунального хозяйства;"]
[null,"читать и выполнять чертежи, эскизы и схемы систем водоснабжения, водоотведения, отопления объектов жилищно-коммунального хозяйства;","виды, назначение, устройство, принципы работы домовых санитарно-технических систем и оборудования, домовых систем водоснабжения, в том числе поливочной системы и системы противопожарного водопровода, систем отопления, отопительных приборов, циркуляционных насосов, элеваторных и тепловых узлов, запорно-регулирующей и водоразборной арматуры и вспомогательного оборудования;"]
[null,"подбирать материалы, инструменты и оборудование согласно технологическому процессу и сменному заданию/наряду;","сущность и содержание технической эксплуатации оборудования систем водоснабжения, водоотведения, отопления;"]
[null,"проводить техническое обслуживание оборудования систем водоснабжения, водоотведения, отопления объектов жилищно-коммунального хозяйства;","правила рациональной эксплуатации зданий, сооружений, конструкций, оборудования систем водоснабжения, водоотведения, отопления;"]
[null,"определять признаки неисправности при эксплуатации зданий, сооружений, конструкций, оборудования систем водоснабжения, водоотведения, отопления жилищно-коммунального хозяйства;","показатели технического уровня эксплуатации оборудования систем водоснабжения, водоотведения, отопления;"]
[null,"проводить плановый осмотр зданий, сооружений, конструкций, оборудования систем водоснабжения, водоотведения, отопления жилищно-коммунального хозяйства;","виды технического обслуживания: текущее (внутрисменное) обслуживание, профилактические осмотры, периодические осмотры, надзор;"]
[null,"заполнять техническую документацию по результатам осмотра;","приемы и методы минимизации издержек на объектах жилищно-коммунального хозяйства;"]
[null,"выполнять профилактические работы, способствующие эффективной работе санитарно-технической системы, системы отопления;","основы \"бережливого производства\", повышающие качество и производительность труда на объектах жилищно-коммунального хозяйства;"]
[null,"выполнять гидравлическое испытание системы водоснабжения, в том числе поливочной системы и системы противопожарного водопровода;","состав и требования к проведению профилактических и регламентных работ в системе водоснабжения, в том числе поливочной системы и системы противопожарного водопровода, повысительных и пожарных насосов, запорно-регулирующей и водоразборной арматуры, системе водоотведения, внутренних водостоков, санитарно-технических приборов и системе отопления объектов жилищно-коммунального хозяйства;"]
[null,"подготавливать внутридомовые системы водоснабжения, отопления, в том числе поливочные системы и системы противопожарного водопровода к сезонной эксплуатации;","технологию и технику обслуживания элеваторных и тепловых узлов и вспомогательного оборудования;"]
[null,"выполнять консервацию внутридомовых систем;","виды деятельности объектов жилищно-коммунального хозяйства, оказывающие негативное влияние на окружающую среду;"]
[null,"применять ручной и механизированный инструмент по назначению и в соответствии с видом работ;","нормативную базу технической эксплуатации;"]
[null,"обнаружить с помощью приборов опасные вещества в воздухе, в воде и в грунте;","эксплуатационную техническую документацию, виды и основное содержание;"]
[null,"определять причины и устранять неисправности конструкций зданий, сооружений, оборудования систем водоснабжения, водоотведения, отопления жилищно-коммунального хозяйства;","правила заполнения технической документации;"]
[null,"проводить слесарные работы при ремонте;","основные понятия, положения и показатели, предусмотренные ГОСТами, по определению надежности оборудования систем водоснабжения, водоотведения, отопления жилищно-коммунального хозяйства, их технико-экономическое значение;"]
[null,"осуществлять ремонт санитарно-технического оборудования и системы отопления;","инженерные показатели и методы обеспечения надежности оборудования систем водоснабжения, водоотведения, отопления жилищно-коммунального хозяйства на стадиях конструирования, изготовления, эксплуатации;"]
[null,"выполнять замену участков трубопроводов, отопительных приборов и их секций, запорно-регулирующей, водоразборной арматуры, внутренних пожарных кранов, контрольно-измерительных приборов с использованием ручного и механизированного инструмента приспособлений и материалов;","основные методы, технологию измерений, средства измерений;"]
[null,"перекладывать канализационный выпуск;","классификацию, принцип действия измерительных преобразователей;"]
[null,"ремонтировать и менять гидрозатворы, санитарно-технические приборы, повысительные, пожарные и циркуляционные насосы, расширительные баки и водоподогреватели;","классификацию и назначение чувствительных элементов;"]
[null,"проводить испытания отремонтированных систем и оборудования жилищно-коммунального хозяйства;","структуру средств измерений;"]
[null,"использовать необходимые инструменты, приспособления и материалы при выполнении ремонтных работ.","понятие о государственной системе приборов;"]
[null,null,"весовые устройства;"]
[null,null,"назначение и принцип действия контрольно-измерительных приборов и аппаратов средней сложности;"]
[null,null,"оптико-механические средства измерений;"]
[null,null,"основные понятия систем автоматического управления и регулирования;"]
[null,null,"основные этапы профилактических работ;"]
[null,null,"способы и средства выполнения профилактических работ;"]
[null,null,"правила применения универсальных и специальных приспособлений и контрольно-измерительного инструмента;"]
[null,null,"влияние температуры на точность измерений;"]
[null,null,"методы и средства испытаний;"]
[null,null,"технические документы на испытание и готовность к работе сооружений, конструкций, оборудования систем водоснабжения, водоотведения, отопления жилищно-коммунального хозяйства;"]
[null,null,"сущность, назначение и содержание технического обслуживания и ремонта зданий, сооружений, конструкций жилищно-коммунального хозяйства;"]
[null,null,"сущность, назначение и содержание ремонта и монтажа отдельных узлов и оборудования систем водоснабжения, водоотведения, отопления объектов жилищно-коммунального хозяйства;"]
[null,null,"методы и приемы расчета необходимых материалов и оборудования при ремонте и монтаже отдельных узлов систем водоснабжения, водоотведения, отопления;"]
[null,null,"нормативно-техническую документацию;"]
[null,null,"ремонтную базу жилищно-коммунального хозяйства;"]
[null,null,"основы слесарного дела;"]
[null,null,"санитарно-техническую систему здания;"]
[null,null,"отопительную систему здания;"]
[null,null,"виды ремонта оборудования: текущий, капитальный (объем, периодичность, продолжительность, трудоемкость, количество);"]
[null,null,"формы организации ремонтных служб (децентрализованная, централизованная, смешанная);"]
[null,null,"формы подготовки ремонта (конструкторская, технологическая, материально-техническая, организационная);"]
[null,null,"применение контрольно-диагностической аппаратуры;"]
[null,null,"ремонтную документацию;"]
[null,null,"методы проведения ремонта;"]
[null,null,"общие принципы технологии ремонта;"]
[null,null,"технические документы на испытание и готовность к работе оборудования систем водоснабжения, водоотведения, отопления объектов жилищно-коммунального хозяйства;"]
[null,null,"предъявляемые требования готовности к проведению испытания отопительной системы;"]
[null,null,"порядок сдачи после ремонта и испытаний оборудования систем водоснабжения, водоотведения, отопления объектов жилищно-коммунального хозяйства;"]
[null,null,"устройство и правила эксплуатации применяемых инструментов, приспособлений;"]
[null,null,"компьютерные системы управления обслуживанием и ремонтом."]
[]
["ФГОС 08.01.14 МОНТАЖНИК САНИТАРНО-ТЕХНИЧЕСКИХ, ВЕНТИЛЯЦИОННЫХ СИСТЕМ И ОБОРУДОВАНИЯ"]
["3.4.1. Выполнение работ по монтажу систем отопления, водоснабжения, водоотведения и газоснабжения:"]
["ПК 1.1. Выполнять подготовительные работы при монтаже систем отопления, водоснабжения, водоотведения и газоснабжения;"]
["ПК 1.2. Осуществлять подбор и проверку оборудования, инструмента, приспособлений и фасонных частей, необходимых при выполнении монтажа систем отопления, водоснабжения, водоотведения и газоснабжения;"]
["ПК 1.3. Осуществлять монтаж систем отопления водоснабжения, водоотведения и газоснабжения в соответствии с требованиями нормативно-технической документации."]
["Иметь практический опыт в","Уметь","Знать"]
["подготовке инструмента, оборудования, узлов и деталей к монтажу систем отопления, водоснабжения, водоотведения и газоснабжения в соответствии с проектом производства работ;","использовать сопроводительную документацию для проверки комплектности и качества санитарно-технических инструментов и оборудования;","виды и назначение санитарно-технических материалов, арматуры и оборудования;"]
["выполнении подготовительных работ при монтаже и ремонте систем отопления, водоснабжения, водоотведения и газоснабжения;","изучать и использовать при монтаже санитарно-технических систем проектную и техническую документацию;","виды и назначение основной проектной и технической документации для производства монтажных работ;"]
["выполнении работ средней сложности при монтаже и ремонте внутренних систем отопления, водоснабжения, водоотведения и газоснабжения;","выполнять слесарные операции при монтаже и ремонте санитарно-технических систем;","правила выполнения слесарных работ при монтаже и ремонте санитарно-технических систем;"]
["выполнении работ средней сложности при монтаже и ремонте наружных систем отопления, водоснабжения, водоотведения и газоснабжения.","использовать ручной и механизированный инструмент и приспособления при монтаже санитарно-технических систем и оборудования;","назначение и правила применения ручного и механизированного инструмента и приспособлений, необходимых при монтаже санитарно-технических систем и оборудования;"]
[null,"разбирать, ремонтировать и собирать детали и узлы систем отопления, водоснабжения, канализации, газоснабжения и водостоков;","назначение, устройство и принцип действия систем отопления, водоснабжения, водоотведения и газоснабжения;"]
[null,"соединять трубопроводы систем отопления, водоснабжения, канализации, газоснабжения и водостоков;","технологию и последовательность подготовительных и монтажных работ наружных сетей систем отопления, водоснабжения, водоотведения и газоснабжения;"]
[null,"выполнять укрупненную сборку узлов внутренних санитарно-технических систем;","технологию, последовательность подготовительных работ и особенности монтажа оборудования и трубопроводов внутренних систем отопления, водоснабжения, водоотведения и газоснабжения;"]
[null,"выполнять установку и крепление санитарно-технического оборудования и трубопроводов;","правила проведения испытаний оборудования и трубопроводов;"]
[null,"соблюдать требования охраны труда, пожарной экологической безопасности при выполнении работ;","правила безопасной эксплуатации монтажного оборудования;"]
[null,"проводить ревизию и испытания санитарно-технической арматуры;","санитарные нормы и правила проведения монтажных работ;"]
[null,"проводить испытания смонтированных санитарно-технических систем;","требования охраны труда."]
[null,"соблюдать требования охраны труда, пожарной и экологической безопасности при выполнении работ."]
[]
["08.01.26 МАСТЕР ПО РЕМОНТУ И ОБСЛУЖИВАНИЮ ИНЖЕНЕРНЫХ СИСТЕМ ЖИЛИЩНО-КОММУНАЛЬНОГО ХОЗЯЙСТВА"]
["3.4.1. Поддержание рабочего состояния оборудования систем водоснабжения, водоотведения, отопления объектов жилищно-коммунального хозяйства:\n"]
["ПК 1.1. Осуществлять техническое обслуживание в соответствии с заданием (нарядом) системы водоснабжения, водоотведения, отопления объектов жилищно-коммунального хозяйства."]
["ПК 1.3. Проводить ремонт и монтаж отдельных узлов системы отопления."]
["Иметь практический опыт в","Уметь","Знать"]
["техническом обслуживании в соответствии с заданием/нарядом системы водоснабжения, водоотведения, отопления объектов жилищно-коммунального хозяйства;","оценивать состояние рабочего места на соответствие требованиям охраны труда и полученному заданию/наряду;","требования по охране труда при проведении работ по техническому обслуживанию, ремонту и монтажу отдельных узлов оборудования систем водоснабжения, водоотведения, отопления объектов жилищно-коммунального хозяйства;"]
["ремонте и монтаже отдельных узлов системы водоснабжения, водоотведения;","определять исправность средств индивидуальной защиты;","виды и основные правила построения чертежей, эскизов и схем систем водоснабжения, водоотведения, отопления объектов жилищно-коммунального хозяйства;"]
["ремонте и монтаже отдельных узлов системы отопления","читать и выполнять чертежи, эскизы и схемы систем водоснабжения, водоотведения, отопления объектов жилищно-коммунального хозяйства;","правила чтения технической и конструкторско-технологической документации;"]
[null,"подбирать материалы, инструменты и оборудование согласно технологическому процессу и сменному заданию/наряду;","правила заполнения технической документации;"]
[null,"проводить техническое обслуживание оборудования систем водоснабжения, водоотведения, отопления объектов жилищно-коммунального хозяйства;","сущности и содержания технической эксплуатации оборудования систем водоснабжения, водоотведения, отопления объектов жилищно-коммунального хозяйства;"]
[null,"заполнять техническую документацию по результатам осмотра;","виды деятельности объектов жилищно-коммунального хозяйства, оказывающих негативное влияние на окружающую среду;"]
[null,"выполнять расчет необходимых материалов и оборудования при ремонте и монтаже отдельных узлов систем водоснабжения, водоотведения, отопления объектов жилищно-коммунального хозяйства;","виды, назначение, устройство, принципы работы домовых санитарно-технических систем и оборудования, домовых системы водоснабжения, в том числе поливочной системы и системы противопожарного водопровода, систем отопления, отопительных приборов, циркуляционных насосов, элеваторных и тепловых узлов, запорно-регулирующей и водоразборной арматуры и вспомогательного оборудования;"]
[null,"использовать инструменты, при выполнении ремонтных работ;","технологию техники обслуживания домовых санитарно-технических систем и оборудования;"]
[null,"устранять неисправности санитарно-технических систем и оборудования;","виды, назначение и принципы работы систем контроля технического состояния оборудования объектов жилищно-коммунального хозяйства;"]
[null,"проводить испытания отремонтированных систем и оборудования водоснабжения, водоотведения, отопления объектов жилищно-коммунального хозяйства;","основные понятия систем автоматического управления и регулирования;"]
[null,"подготавливать внутридомовые системы водоснабжения, отопления, в том числе поливочной системы и системы противопожарного водопровода к сезонной эксплуатации;","назначение и принципы действия контрольно-измерительных приборов и аппаратов;"]
[null,"выполнять консервацию внутридомовых систем.","правила применения контрольно-диагностической аппаратуры;"]
[null,null,"правила применения универсальных и специальных приспособлений и контрольно-измерительного инструмента;"]
[null,null,"сущность и содержание ремонта и монтажа систем водоснабжения, водоотведения, отопления объектов жилищно-коммунального хозяйства;"]
[null,null,"подготовку внутридомовой системы отопления, системы холодного водоснабжения, в том числе поливочной системы и системы противопожарного водопровода к сезонной эксплуатации, опрессовки системы отопления;"]
[null,null,"порядок обслуживания элеваторных и тепловых узлов и вспомогательного оборудования;"]
[null,null,"технические документы на испытание и готовность к работе оборудования систем водоснабжения, водоотведения, отопления объектов жилищно-коммунального хозяйства;"]
[null,null,"порядок сдачи после ремонта и испытаний оборудования систем водоснабжения, водоотведения, отопления объектов жилищно-коммунального хозяйства."]
[]
["ФГОС 08.02.07 МОНТАЖ И ЭКСПЛУАТАЦИЯ ВНУТРЕННИХ САНТЕХНИЧЕСКИХ УСТРОЙСТВ, КОНДИЦИОНИРОВАНИЯ ВОЗДУХА И ВЕНТИЛЯЦИИ"]
["3.4.1. Организация и контроль работ по монтажу систем водоснабжения и водоотведения, отопления, вентиляции и кондиционирования воздуха:"]
["ПК 1.1. Организовывать и выполнять подготовку систем и объектов к монтажу;"]
["ПК 1.2. Организовывать и выполнять монтаж систем водоснабжения и водоотведения, отопления, вентиляции и кондиционирования воздуха;"]
["ПК 1.3. Организовывать и выполнять производственный контроль качества монтажных работ;"]
["ПК 1.4. Выполнять пусконаладочные работы систем водоснабжения и водоотведения, отопления, вентиляции и кондиционирование воздуха;"]
["Иметь практический опыт в","Уметь","Знать"]
["организации и выполнении монтажа систем водоснабжения и водоотведения, отопления, вентиляции и кондиционирования воздуха;","использовать сопроводительную документацию для проверки комплектности и качества изготовления оборудования санитарно-технических систем, вентиляции и кондиционирования воздуха;","классификацию систем водоснабжения и водоотведения, отопления, вентиляции и кондиционирования воздуха;"]
["выполнении пусконаладочных работ систем водоснабжения и водоотведения, отопления, вентиляции и кондиционирования воздуха.","читать и разрабатывать монтажные чертежи систем водоснабжения и водоотведения, отопления, вентиляции и кондиционирования воздуха;","назначение и правила применения ручных инструментов и приспособлений, необходимых при монтаже систем водоснабжения и водоотведения, отопления, вентиляции и кондиционирования воздуха;"]
[null,"составлять ведомости выявленных дефектов (для поставщика оборудования) с целью их устранения;","состав комплекта технической документации и комплектность оборудования и материалов;"]
[null,"оформлять техническую документацию по результатам испытаний;","проектную и нормативную документацию в области монтажа и испытаний систем водоснабжения и водоотведения, отопления, вентиляции и кондиционирования воздуха;"]
[null,"проводить регулирование смонтированных сантехнических систем, вентиляции и кондиционирования воздуха для достижения проектных и паспортных характеристик;","технологию изготовления узлов и деталей трубопроводов и воздуховодов из различных материалов;"]
[null,"руководить работниками в рамках подразделения при выполнении работ по монтажу систем водоснабжения и водоотведения, отопления, вентиляции и кондиционирования воздуха;","технологию сборки монтажных узлов и требования к качеству их изготовления;"]
[null,"производить измерение производительности и давления вентилятора в характерных точках системы;","основы монтажного проектирования;"]
[null,"пользоваться контрольно-измерительными приборами.","правила по охране труда при подготовке оборудования, узлов и деталей к монтажу в соответствии с проектом производства работ;"]
[null,null,"правила по охране труда при монтаже систем вентиляции и кондиционирования воздуха;"]
[null,null,"технологию монтажных работ систем вентиляции;"]
[null,null,"проектную и нормативную документацию по монтажу систем кондиционирования;"]
[null,null,"способы соединения медных труб;"]
[null,null,"методы проведения измерений гидравлических и аэродинамических характеристик монтируемой системы;"]
[null,null,"принципы работы измерительных приборов и правила пуска и регулирования отдельных элементов и системы в целом;"]
[null,null,"принципы работы монтируемых систем и их элементов;"]
[null,null,"методику проведения регулирования смонтированных систем и отдельных элементов;"]
[null,null,"теплоизоляционный материал и способы работы с ним;"]
[null,null,"правила пайки твердым припоем;"]
[null,null,"особенности менеджмента в соответствующей области профессиональной деятельности."]
[]
["ЕТКС работ и профессий рабочих. Выпуск 3. § 201. Монтажник санитарно-технических систем и оборудования 3-го разряда"]
["Характеристика работ.","Выполнение простых работ при монтаже и ремонте систем центрального отопления, водоснабжения, канализации, газоснабжения и водостоков."]
[null,"Свертывание и сборка простых узлов."]
[null,"Сборка фланцевых соединений."]
[null,"Разборка отдельных узлов трубопроводов (при монтаже)."]
[null,"Установка и заделка креплений под приборы и трубопроводы."]
[null,"Сверление или пробивка отверстий в конструкциях."]
[null,"Заделка раструбов чугунных трубопроводов."]
[null,"Нарезка резьбы на трубах вручную."]
[null,"Комплектование труб и фасонных частей стояков."]
[null,"Установка ручного пресса для опрессовки систем."]
[null,"Отсоединение чугунных котлов от трубопроводов."]
[null,"Обрубка кромок швов жаротрубного котла для последующей подварки."]
[null,"Очистка секций чугунного котла снаружи и изнутри с промывкой."]
[null,"Срубка заклепок жаротрубного котла с выбиванием их."]
[null,"Смена манжет у унитаза."]
[null,"Зачистка сварных швов шлифмашинкой."]
[null,"Прокачка канализационных стояков и отводов."]
[null,"Смена прокладок кранов, вентилей."]
["Должен знать:","виды основных деталей санитарно-технических систем, соединений труб и креплений трубопроводов; "]
[null,"назначение, устройство и особенности монтажа внутренних систем центрального отопления, водоснабжения, канализации, газоснабжения и водостоков;"]
[null,"способы сверления и пробивки отверстий;"]
[null,"правила транспортировки баллонов с кислородом и ацетиленом;"]
[null,"правила техники безопасности при транспортировке баллонов;"]
[null,"правила пользования механизированным инструментом."]
[]
["ЕТКС работ и профессий рабочих. Выпуск 2. Часть 2. § 161. Слесарь-сантехник 3-го разряда"]
["Характеристика работ.","Разборка, ремонт и сборка различных деталей и узлов санитарно-технических систем центрального отопления, водоснабжения, канализации и водостоков."]
[null,"Сверление или пробивка отверстий в конструкциях."]
[null,"Нарезка резьб на трубах вручную."]
[null,"Установка и заделка креплений под трубопроводы и приборы."]
[null,"Комплектование труб и фасонных частей стояков."]
["Должен знать:","принцип действия, назначение и особенности ремонта санитарно-технических трубопроводных систем центрального отопления, водоснабжения, канализации и водостоков;"]
[null,"виды основных деталей санитарно-технических систем, соединений труб и креплений трубопроводов;"]
[null,"способы сверления и пробивки отверстий;"]
[null,"правила обращения и транспортирования баллонов с кислородом и ацетиленом;"]
[null,"назначение и правила пользования механизированным инструментом."]

{"sheet":"ПС16.086B02.3 1;2;6;7;8;13 ","index":7,"n_rows":181,"n_cols":3,"rows_kept":181,"merged":[[0,0,0,2],[17,0,17,2],[18,0,18,2],[19,0,19,2],[74,0,74,2],[75,0,75,2],[76,0,76,2],[77,0,77,2],[78,0,78,2],[93,0,93,2],[94,0,94,2],[95,0,95,2],[96,0,96,2],[117,0,117,2],[118,0,118,2],[119,0,119,2],[120,0,120,2],[121,0,121,2],[122,0,122,2],[144,0,144,2],[145,0,162,0],[145,1,145,2],[146,1,146,2],[147,1,147,2],[148,1,148,2],[149,1,149,2],[150,1,150,2],[151,1,151,2],[152,1,152,2],[153,1,153,2],[154,1,154,2],[155,1,155,2],[156,1,156,2],[157,1,157,2],[158,1,158,2],[159,1,159,2],[160,1,160,2],[161,1,161,2],[162,1,162,2],[163,0,168,0],[163,1,163,2],[164,1,164,2],[165,1,165,2],[166,1,166,2],[167,1,167,2],[168,1,168,2],[170,0,170,2],[171,0,175,0],[171,1,171,2],[172,1,172,2],[173,1,173,2],[174,1,174,2],[175,1,175,2],[176,0,180,0],[176,1,176,2],[177,1,177,2],[178,1,178,2],[179,1,179,2],[180,1,180,2]]}
["Профстандарт 16.086 B/02.3"]
["Трудовые действия","Умения","Знания"]
["Подбор и проверка материалов и инструментов в соответствии с полученным заданием на проведение работ по облуживанию, ремонту канализационных сетей и устранению аварий на канализационных сетях (в границах эксплуатационной ответственности - до первого смотрового колодца)","Выполнять работы с соблюдением требований охраны труда, пожарной и экологической безопасности","Требования охраны труда, пожарной и экологической безопасности"]
["Ограждение зон, представляющих опасность для населения, в местах обнаружения аварийных ситуаций","Применять механизированный и ручной инструмент по назначению и в соответствии с видом работ","Технология и техника земляных работ на канализационных сетях (в границах эксплуатационной ответственности - до первого смотрового колодца)"]
["Работа в одном звене с трактористом, экскаваторщиком при выполнении земляных работ на канализационных сетях (в границах эксплуатационной ответственности - до первого смотрового колодца)","Работать с инструментом, используемым при прочистке канализационных сетей гибким валом и гидравлическим способом","Способы выявления наличия газа в колодцах"]
["Проверка наличия газа в колодцах","Оценивать состояние трубопроводов и санитарно-технических приборов","Технология и техника прочистки канализационных сетей на глубине до 8 м различными способами"]
["Прочистка канализационной сети и коллекторов гидравлическим способом","Определять наличие утечек и засоров","Технология и техника устранения протечек и засоров системы водоотведения, внутренних водостоков"]
["Устранение засоров в системах водоотведения (канализации), внутренних водостоков и санитарно-технических приборах","Выполнять прочистку стояков и лежаков, гидравлических затворов","Химический состав, структура и свойства веществ, используемых в трудовой деятельности"]
["Выполнение простых слесарных работ на канализационных сетях (в границах эксплуатационной ответственности - до первого смотрового колодца)","Выполнять подчеканку раструбов канализационных труб","Виды и назначение ограждений в местах обнаружения аварийных ситуаций"]
["Информирование работника более высокого уровня квалификации в случае затруднения выполнения работ","Выполнять крепление трубопроводов и санитарно-технических приборов","Виды, назначение и правила применения ручного и механизированного инструмента"]
["Прочистка и восстановление работоспособности стояков и лежаков системы канализации","Пользоваться средствами связи","Нормативные уклоны трубопроводов, каналов и лотков"]
["Прочистка и восстановление работоспособности гидравлических затворов (сифонов)"]
["Устранение протечек в раструбных соединениях и в местах присоединения санитарно-технических приборов к трубопроводу"]
["Восстановление крепления трубопроводов системы водоотведения, внутренних водостоков"]
["Укрепление расшатавшихся санитарно-технических приборов"]
["Информирование работника более высокого уровня квалификации при выявлении неисправностей, обнаружении дефектов или низкого качества материалов, а также работ, выполненных с отклонением от проекта или технических условий"]
[]
["ФГОС 08.01.10 МАСТЕР ЖИЛИЩНО-КОММУНАЛЬНОГО ХОЗЯЙСТВА"]
["3.4.1. Выполнение работ по эксплуатации и ремонту оборудования систем водоснабжения, водоотведения, отопления жилищно-коммунального хозяйства:"]
["ПК 1.1. Обеспечивать эксплуатацию и ремонт системы водоснабжения и водоотведения здания;"]
["Иметь практический опыт в","Уметь","Знать"]
["работах по эксплуатации зданий, сооружений, конструкций, оборудования систем водоснабжения, водоотведения, отопления зданий и сооружений, жилищно-коммунального хозяйства;","оценивать состояние рабочего места на соответствие требованиям охраны труда и полученному заданию/наряду;","требования по охране труда при проведении работ по техническому обслуживанию, ремонту и монтажу отдельных узлов оборудования систем водоснабжения, водоотведения, отопления объектов жилищно-коммунального хозяйства;"]
["совершении действий в критических ситуациях при эксплуатации зданий, сооружений, конструкций, оборудования систем водоснабжения, водоотведения, отопления, жилищно-коммунального хозяйства.","определять исправность средств индивидуальной защиты;","виды и основные правила построения чертежей, эскизов и схем систем водоснабжения, водоотведения, отопления объектов жилищно-коммунального хозяйства;"]
[null,"читать и выполнять чертежи, эскизы и схемы систем водоснабжения, водоотведения, отопления объектов жилищно-коммунального хозяйства;","виды, назначение, устройство, принципы работы домовых санитарно-технических систем и оборудования, домовых систем водоснабжения, в том числе поливочной системы и системы противопожарного водопровода, систем отопления, отопительных приборов, циркуляционных насосов, элеваторных и тепловых узлов, запорно-регулирующей и водоразборной арматуры и вспомогательного оборудования;"]
[null,"подбирать материалы, инструменты и оборудование согласно технологическому процессу и сменному заданию/наряду;","сущность и содержание технической эксплуатации оборудования систем водоснабжения, водоотведения, отопления;"]
[null,"проводить техническое обслуживание оборудования систем водоснабжения, водоотведения, отопления объектов жилищно-коммунального хозяйства;","правила рациональной эксплуатации зданий, сооружений, конструкций, оборудования систем водоснабжения, водоотведения, отопления;"]
[null,"определять признаки неисправности при эксплуатации зданий, сооружений, конструкций, оборудования систем водоснабжения, водоотведения, отопления жилищно-коммунального хозяйства;","показатели технического уровня эксплуатации оборудования систем водоснабжения, водоотведения, отопления;"]
[null,"проводить плановый осмотр зданий, сооружений, конструкций, оборудования систем водоснабжения, водоотведения, отопления жилищно-коммунального хозяйства;","виды технического обслуживания: текущее (внутрисменное) обслуживание, профилактические осмотры, периодические осмотры, надзор;"]
[null,"заполнять техническую документацию по результатам осмотра;","приемы и методы минимизации издержек на объектах жилищно-коммунального хозяйства;"]
[null,"выполнять профилактические работы, способствующие эффективной работе санитарно-технической системы, системы отопления;","основы \"бережливого производства\", повышающие качество и производительность труда на объектах жилищно-коммунального хозяйства;"]
[null,"выполнять гидравлическое испытание системы водоснабжения, в том числе поливочной системы и системы противопожарного водопровода;","состав и требования к проведению профилактических и регламентных работ в системе водоснабжения, в том числе поливочной системы и системы противопожарного водопровода, повысительных и пожарных насосов, запорно-регулирующей и водоразборной арматуры, системе водоотведения, внутренних водостоков, санитарно-технических приборов и системе отопления объектов жилищно-коммунального хозяйства;"]
[null,"подготавливать внутридомовые системы водоснабжения, отопления, в том числе поливочные системы и системы противопожарного водопровода к сезонной эксплуатации;","технологию и технику обслуживания элеваторных и тепловых узлов и вспомогательного оборудования;"]
[null,"выполнять консервацию внутридомовых систем;","виды деятельности объектов жилищно-коммунального хозяйства, оказывающие негативное влияние на окружающую среду;"]
[null,"применять ручной и механизированный инструмент по назначению и в соответствии с видом работ;","нормативную базу технической эксплуатации;"]
[null,"обнаружить с помощью приборов опасные вещества в воздухе, в воде и в грунте;","эксплуатационную техническую документацию, виды и основное содержание;"]
[null,"определять причины и устранять неисправности конструкций зданий, сооружений, оборудования систем водоснабжения, водоотведения, отопления жилищно-коммунального хозяйства;","правила заполнения технической документации;"]
[null,"проводить слесарные работы при ремонте;","основные понятия, положения и показатели, предусмотренные ГОСТами, по определению надежности оборудования систем водоснабжения, водоотведения, отопления жилищно-коммунального хозяйства, их технико-экономическое значение;"]
[null,"осуществлять ремонт санитарно-технического оборудования и системы отопления;","инженерные показатели и методы обеспечения надежности оборудования систем водоснабжения, водоотведения, отопления жилищно-коммунального хозяйства на стадиях конструирования, изготовления, эксплуатации;"]
[null,"выполнять замену участков трубопроводов, отопительных приборов и их секций, запорно-регулирующей, водоразборной арматуры, внутренних пожарных кранов, контрольно-измерительных приборов с использованием ручного и механизированного инструмента приспособлений и материалов;","основные методы, технологию измерений, средства измерений;"]
[null,"перекладывать канализационный выпуск;","классификацию, принцип действия измерительных преобразователей;"]
[null,"ремонтировать и менять гидрозатворы, санитарно-технические приборы, повысительные, пожарные и циркуляционные насосы, расширительные баки и водоподогреватели;","классификацию и назначение чувствительных элементов;"]
[null,"проводить испытания отремонтированных систем и оборудования жилищно-коммунального хозяйства;","структуру средств измерений;"]
[null,"использовать необходимые инструменты, приспособления и материалы при выполнении ремонтных работ.","понятие о государственной системе приборов;"]
[null,null,"весовые устройства;"]
[null,null,"назначение и принцип действия контрольно-измерительных приборов и аппаратов средней сложности;"]
[null,null,"оптико-механические средства измерений;"]
[null,null,"основные понятия систем автоматического управления и регулирования;"]
[null,null,"основные этапы профилактических работ;"]
[null,null,"способы и средства выполнения профилактических работ;"]
[null,null,"правила применения универсальных и специальных приспособлений и контрольно-измерительного инструмента;"]
[null,null,"влияние температуры на точность измерений;"]
[null,null,"методы и средства испытаний;"]
[null,null,"технические документы на испытание и готовность к работе сооружений, конструкций, оборудования систем водоснабжения, водоотведения, отопления жилищно-коммунального хозяйства;"]
[null,null,"сущность, назначение и содержание технического обслуживания и ремонта зданий, сооружений, конструкций жилищно-коммунального хозяйства;"]
[null,null,"сущность, назначение и содержание ремонта и монтажа отдельных узлов и оборудования систем водоснабжения, водоотведения, отопления объектов жилищно-коммунального хозяйства;"]
[null,null,"методы и приемы расчета необходимых материалов и оборудования при ремонте и монтаже отдельных узлов систем водоснабжения, водоотведения, отопления;"]
[null,null,"нормативно-техническую документацию;"]
[null,null,"ремонтную базу жилищно-коммунального хозяйства;"]
[null,null,"основы слесарного дела;"]
[null,null,"санитарно-техническую систему здания;"]
[null,null,"отопительную систему здания;"]
[null,null,"виды ремонта оборудования: текущий, капитальный (объем, периодичность, продолжительность, трудоемкость, количество);"]
[null,null,"формы организации ремонтных служб (децентрализованная, централизованная, смешанная);"]
[null,null,"формы подготовки ремонта (конструкторская, технологическая, материально-техническая, организационная);"]
[null,null,"применение контрольно-диагностической аппаратуры;"]
[null,null,"ремонтную документацию;"]
[null,null,"методы проведения ремонта;"]
[null,null,"общие принципы технологии ремонта;"]
[null,null,"технические документы на испытание и готовность к работе оборудования систем водоснабжения, водоотведения, отопления объектов жилищно-коммунального хозяйства;"]
[null,null,"предъявляемые требования готовности к проведению испытания отопительной системы;"]
[null,null,"порядок сдачи после ремонта и испытаний оборудования систем водоснабжения, водоотведения, отопления объектов жилищно-коммунального хозяйства;"]
[null,null,"устройство и правила эксплуатации применяемых инструментов, приспособлений;"]
[null,null,"компьютерные системы управления обслуживанием и ремонтом."]
[]
["ФГОС 08.01.14 МОНТАЖНИК САНИТАРНО-ТЕХНИЧЕСКИХ, ВЕНТИЛЯЦИОННЫХ СИСТЕМ И ОБОРУДОВАНИЯ"]
["3.4.1. Выполнение работ по монтажу систем отопления, водоснабжения, водоотведения и газоснабжения:"]
["ПК 1.1. Выполнять подготовительные работы при монтаже систем отопления, водоснабжения, водоотведения и газоснабжения;"]
["ПК 1.2. Осуществлять подбор и проверку оборудования, инструмента, приспособлений и фасонных частей, необходимых при выполнении монтажа систем отопления, водоснабжения, водоотведения и газоснабжения;"]
["ПК 1.3. Осуществлять монтаж систем отопления водоснабжения, водоотведения и газоснабжения в соответствии с требованиями нормативно-технической документации."]
["Иметь практический опыт в","Уметь","Знать"]
["подготовке инструмента, оборудования, узлов и деталей к монтажу систем отопления, водоснабжения, водоотведения и газоснабжения в соответствии с проектом производства работ;","использовать сопроводительную документацию для проверки комплектности и качества санитарно-технических инструментов и оборудования;","виды и назначение санитарно-технических материалов, арматуры и оборудования;"]
["выполнении подготовительных работ при монтаже и ремонте систем отопления, водоснабжения, водоотведения и газоснабжения;","изучать и использовать при монтаже санитарно-технических систем проектную и техническую документацию;","виды и назначение основной проектной и технической документации для производства монтажных работ;"]
["выполнении работ средней сложности при монтаже и ремонте внутренних систем отопления, водоснабжения, водоотведения и газоснабжения;","выполнять слесарные операции при монтаже и ремонте санитарно-технических систем;","правила выполнения слесарных работ при монтаже и ремонте санитарно-технических систем;"]
["выполнении работ средней сложности при монтаже и ремонте наружных систем отопления, водоснабжения, водоотведения и газоснабжения.","использовать ручной и механизированный инструмент и приспособления при монтаже санитарно-технических систем и оборудования;","назначение и правила применения ручного и механизированного инструмента и приспособлений, необходимых при монтаже санитарно-технических систем и оборудования;"]
[null,"разбирать, ремонтировать и собирать детали и узлы систем отопления, водоснабжения, канализации, газоснабжения и водостоков;","назначение, устройство и принцип действия систем отопления, водоснабжения, водоотведения и газоснабжения;"]
[null,"соединять трубопроводы систем отопления, водоснабжения, канализации, газоснабжения и водостоков;","технологию и последовательность подготовительных и монтажных работ наружных сетей систем отопления, водоснабжения, водоотведения и газоснабжения;"]
[null,"выполнять укрупненную сборку узлов внутренних санитарно-технических систем;","технологию, последовательность подготовительных работ и особенности монтажа оборудования и трубопроводов внутренних систем отопления, водоснабжения, водоотведения и газоснабжения;"]
[null,"выполнять установку и крепление санитарно-технического оборудования и трубопроводов;","правила проведения испытаний оборудования и трубопроводов;"]
[null,"соблюдать требования охраны труда, пожарной экологической безопасности при выполнении работ;","правила безопасной эксплуатации монтажного оборудования;"]
[null,"проводить ревизию и испытания санитарно-технической арматуры;","санитарные нормы и правила проведения монтажных работ;"]
[null,"проводить испытания смонтированных санитарно-технических систем;","требования охраны труда."]
[null,"соблюдать требования охраны труда, пожарной и экологической безопасности при выполнении работ."]
[]
["08.01.26 МАСТЕР ПО РЕМОНТУ И ОБСЛУЖИВАНИЮ ИНЖЕНЕРНЫХ СИСТЕМ ЖИЛИЩНО-КОММУНАЛЬНОГО ХОЗЯЙСТВА"]
["3.4.1. Поддержание рабочего состояния оборудования систем водоснабжения, водоотведения, отопления объектов жилищно-коммунального хозяйства:\n"]
["ПК 1.1. Осуществлять техническое обслуживание в соответствии с заданием (нарядом) системы водоснабжения, водоотведения, отопления объектов жилищно-коммунального хозяйства."]
["ПК 1.2. Проводить ремонт и монтаж отдельных узлов системы водоснабжения, водоотведения."]
["Иметь практический опыт в","Уметь","Знать"]
["техническом обслуживании в соответствии с заданием/нарядом системы водоснабжения, водоотведения, отопления объектов жилищно-коммунального хозяйства;","оценивать состояние рабочего места на соответствие требованиям охраны труда и полученному заданию/наряду;","требования по охране труда при проведении работ по техническому обслуживанию, ремонту и монтажу отдельных узлов оборудования систем водоснабжения, водоотведения, отопления объектов жилищно-коммунального хозяйства;"]
["ремонте и монтаже отдельных узлов системы водоснабжения, водоотведения;","определять исправность средств индивидуальной защиты;","виды и основные правила построения чертежей, эскизов и схем систем водоснабжения, водоотведения, отопления объектов жилищно-коммунального хозяйства;"]
["ремонте и монтаже отдельных узлов системы отопления","читать и выполнять чертежи, эскизы и схемы систем водоснабжения, водоотведения, отопления объектов жилищно-коммунального хозяйства;","правила чтения технической и конструкторско-технологической документации;"]
[null,"подбирать материалы, инструменты и оборудование согласно технологическому процессу и сменному заданию/наряду;","правила заполнения технической документации;"]
[null,"проводить техническое обслуживание оборудования систем водоснабжения, водоотведения, отопления объектов жилищно-коммунального хозяйства;","сущности и содержания технической эксплуатации оборудования систем водоснабжения, водоотведения, отопления объектов жилищно-коммунального хозяйства;"]
[null,"заполнять техническую документацию по результатам осмотра;","виды деятельности объектов жилищно-коммунального хозяйства, оказывающих негативное влияние на окружающую среду;"]
[null,"выполнять расчет необходимых материалов и оборудования при ремонте и монтаже отдельных узлов систем водоснабжения, водоотведения, отопления объектов жилищно-коммунального хозяйства;","виды, назначение, устройство, принципы работы домовых санитарно-технических систем и оборудования, домовых системы водоснабжения, в том числе поливочной системы и системы противопожарного водопровода, систем отопления, отопительных приборов, циркуляционных насосов, элеваторных и тепловых узлов, запорно-регулирующей и водоразборной арматуры и вспомогательного оборудования;"]
[null,"использовать инструменты, при выполнении ремонтных работ;","технологию техники обслуживания домовых санитарно-технических систем и оборудования;"]
[null,"устранять неисправности санитарно-технических систем и оборудования;","виды, назначение и принципы работы систем контроля технического состояния оборудования объектов жилищно-коммунального хозяйства;"]
[null,"проводить испытания отремонтированных систем и оборудования водоснабжения, водоотведения, отопления объектов жилищно-коммунального хозяйства;","основные понятия систем автоматического управления и регулирования;"]
[null,"подготавливать внутридомовые системы водоснабжения, отопления, в том числе поливочной системы и системы противопожарного водопровода к сезонной эксплуатации;","назначение и принципы действия контрольно-измерительных приборов и аппаратов;"]
[null,"выполнять консервацию внутридомовых систем.","правила применения контрольно-диагностической аппаратуры;"]
[null,null,"правила применения универсальных и специальных приспособлений и контрольно-измерительного инструмента;"]
[null,null,"сущность и содержание ремонта и монтажа систем водоснабжения, водоотведения, отопления объектов жилищно-коммунального хозяйства;"]
[null,null,"подготовку внутридомовой системы отопления, системы холодного водоснабжения, в том числе поливочной системы и системы противопожарного водопровода к сезонной эксплуатации, опрессовки системы отопления;"]
[null,null,"порядок обслуживания элеваторных и тепловых узлов и вспомогательного оборудования;"]
[null,null,"технические документы на испытание и готовность к работе оборудования систем водоснабжения, водоотведения, отопления объектов жилищно-коммунального хозяйства;"]
[null,null,"порядок сдачи после ремонта и испытаний оборудования систем водоснабжения, водоотведения, отопления объектов жилищно-коммунального хозяйства."]
[]
["ФГОС 08.02.07 МОНТАЖ И ЭКСПЛУАТАЦИЯ ВНУТРЕННИХ САНТЕХНИЧЕСКИХ УСТРОЙСТВ, КОНДИЦИОНИРОВАНИЯ ВОЗДУХА И ВЕНТИЛЯЦИИ"]
["3.4.1. Организация и контроль работ по монтажу систем водоснабжения и водоотведения, отопления, вентиляции и кондиционирования воздуха:"]
["ПК 1.1. Организовывать и выполнять подготовку систем и объектов к монтажу;"]
["ПК 1.2. Организовывать и выполнять монтаж систем водоснабжения и водоотведения, отопления, вентиляции и кондиционирования воздуха;"]
["ПК 1.3. Организовывать и выполнять производственный контроль качества монтажных работ;"]
["ПК 1.4. Выполнять пусконаладочные работы систем водоснабжения и водоотведения, отопления, вентиляции и кондиционирование воздуха;"]
["Иметь практический опыт в","Уметь","Знать"]
["организации и выполнении монтажа систем водоснабжения и водоотведения, отопления, вентиляции и кондиционирования воздуха;","использовать сопроводительную документацию для проверки комплектности и качества изготовления оборудования санитарно-технических систем, вентиляции и кондиционирования воздуха;","классификацию систем водоснабжения и водоотведения, отопления, вентиляции и кондиционирования воздуха;"]
["выполнении пусконаладочных работ систем водоснабжения и водоотведения, отопления, вентиляции и кондиционирования воздуха.","читать и разрабатывать монтажные чертежи систем водоснабжения и водоотведения, отопления, вентиляции и кондиционирования воздуха;","назначение и правила применения ручных инструментов и приспособлений, необходимых при монтаже систем водоснабжения и водоотведения, отопления, вентиляции и кондиционирования воздуха;"]
[null,"составлять ведомости выявленных дефектов (для поставщика оборудования) с целью их устранения;","состав комплекта технической документации и комплектность оборудования и материалов;"]
[null,"оформлять техническую документацию по результатам испытаний;","проектную и нормативную документацию в области монтажа и испытаний систем водоснабжения и водоотведения, отопления, вентиляции и кондиционирования воздуха;"]
[null,"проводить регулирование смонтированных сантехнических систем, вентиляции и кондиционирования воздуха для достижения проектных и паспортных характеристик;","технологию изготовления узлов и деталей трубопроводов и воздуховодов из различных материалов;"]
[null,"руководить работниками в рамках подразделения при выполнении работ по монтажу систем водоснабжения и водоотведения, отопления, вентиляции и кондиционирования воздуха;","технологию сборки монтажных узлов и требования к качеству их изготовления;"]
[null,"производить измерение производительности и давления вентилятора в характерных точках системы;","основы монтажного проектирования;"]
[null,"пользоваться контрольно-измерительными приборами.","правила по охране труда при подготовке оборудования, узлов и деталей к монтажу в соответствии с проектом производства работ;"]
[null,null,"правила по охране труда при монтаже систем вентиляции и кондиционирования воздуха;"]
[null,null,"технологию монтажных работ систем вентиляции;"]
[null,null,"проектную и нормативную документацию по монтажу систем кондиционирования;"]
[null,null,"способы соединения медных труб;"]
[null,null,"методы проведения измерений гидравлических и аэродинамических характеристик монтируемой системы;"]
[null,null,"принципы работы измерительных приборов и правила пуска и регулирования отдельных элементов и системы в целом;"]
[null,null,"принципы работы монтируемых систем и их элементов;"]
[null,null,"методику проведения регулирования смонтированных систем и отдельных элементов;"]
[null,null,"теплоизоляционный материал и способы работы с ним;"]
[null,null,"правила пайки твердым припоем;"]
[null,null,"особенности менеджмента в соответствующей области профессиональной деятельности."]
[]
["ЕТКС работ и профессий рабочих. Выпуск 3. § 201. Монтажник санитарно-технических систем и оборудования 3-го разряда"]
["Характеристика работ.","Выполнение простых работ при монтаже и ремонте систем центрального отопления, водоснабжения, канализации, газоснабжения и водостоков."]
[null,"Свертывание и сборка простых узлов."]
[null,"Сборка фланцевых соединений."]
[null,"Разборка отдельных узлов трубопроводов (при монтаже)."]
[null,"Установка и заделка креплений под приборы и трубопроводы."]
[null,"Сверление или пробивка отверстий в конструкциях."]
[null,"Заделка раструбов чугунных трубопроводов."]
[null,"Нарезка резьбы на трубах вручную."]
[null,"Комплектование труб и фасонных частей стояков."]
[null,"Установка ручного пресса для опрессовки систем."]
[null,"Отсоединение чугунных котлов от трубопроводов."]
[null,"Обрубка кромок швов жаротрубного котла для последующей подварки."]
[null,"Очистка секций чугунного котла снаружи и изнутри с промывкой."]
[null,"Срубка заклепок жаротрубного котла с выбиванием их."]
[null,"Смена манжет у унитаза."]
[null,"Зачистка сварных швов шлифмашинкой."]
[null,"Прокачка канализационных стояков и отводов."]
[null,"Смена прокладок кранов, вентилей."]
["Должен знать:","виды основных деталей санитарно-технических систем, соединений труб и креплений трубопроводов; "]
[null,"назначение, устройство и особенности монтажа внутренних систем центрального отопления, водоснабжения, канализации, газоснабжения и водостоков;"]
[null,"способы сверления и пробивки отверстий;"]
[null,"правила транспортировки баллонов с кислородом и ацетиленом;"]
[null,"правила техники безопасности при транспортировке баллонов;"]
[null,"правила пользования механизированным инструментом."]
[]
["ЕТКС работ и профессий рабочих. Выпуск 2. Часть 2. § 161. Слесарь-сантехник 3-го разряда"]
["Характеристика работ.","Разборка, ремонт и сборка различных деталей и узлов санитарно-технических систем центрального отопления, водоснабжения, канализации и водостоков."]
[null,"Сверление или пробивка отверстий в конструкциях."]
[null,"Нарезка резьб на трубах вручную."]
[null,"Установка и заделка креплений под трубопроводы и приборы."]
[null,"Комплектование труб и фасонных частей стояков."]
["Должен знать:","принцип действия, назначение и особенности ремонта санитарно-технических трубопроводных систем центрального отопления, водоснабжения, канализации и водостоков;"]
[null,"виды основных деталей санитарно-технических систем, соединений труб и креплений трубопроводов;"]
[null,"способы сверления и пробивки отверстий;"]
[null,"правила обращения и транспортирования баллонов с кислородом и ацетиленом;"]
[null,"назначение и правила пользования механизированным инструментом."]

{"sheet":"ПС16.086B03.3 3;4;5;11;12;13","index":8,"n_rows":177,"n_cols":3,"rows_kept":177,"merged":[[0,0,0,2],[13,0,13,2],[14,0,14,2],[15,0,15,2],[70,0,70,2],[71,0,71,2],[72,0,72,2],[73,0,73,2],[74,0,74,2],[89,0,89,2],[90,0,90,2],[91,0,91,2],[92,0,92,2],[113,0,113,2],[114,0,114,2],[115,0,115,2],[116,0,116,2],[117,0,117,2],[118,0,118,2],[140,0,140,2],[141,0,158,0],[141,1,141,2],[142,1,142,2],[143,1,143,2],[144,1,144,2],[145,1,145,2],[146,1,146,2],[147,1,147,2],[148,1,148,2],[149,1,149,2],[150,1,150,2],[151,1,151,2],[152,1,152,2],[153,1,153,2],[154,1,154,2],[155,1,155,2],[156,1,156,2],[157,1,157,2],[158,1,158,2],[159,0,164,0],[159,1,159,2],[160,1,160,2],[161,1,161,2],[162,1,162,2],[163,1,163,2],[164,1,164,2],[166,0,166,2],[167,0,171,0],[167,1,167,2],[168,1,168,2],[169,1,169,2],[170,1,170,2],[171,1,171,2],[172,0,176,0],[172,1,172,2],[173,1,173,2],[174,1,174,2],[175,1,175,2],[176,1,176,2]]}
["Профстандарт 16.086 B/03.3"]
["Трудовые действия","Умения","Знания"]
["Выбор и проверка средств индивидуальной защиты в соответствии с требованиями охраны труда","Определять исправность средств индивидуальной защиты","Требования охраны труда при проведении работ по техническому обслуживанию домовых санитарно-технических систем и оборудования"]
["Подбор и проверка материалов и инструментов в соответствии с полученным заданием","Оценивать состояние рабочего места на соответствие требованиям охраны труда","Технология и техника обслуживания домовых санитарно-технических систем и оборудования"]
["Промывка участков водопровода после выполнения ремонтно-строительных работ на водопроводе","Подбирать инструмент согласно технологическому процессу","Виды, назначение, устройство, принцип работы домовых систем водоснабжения, в том числе поливочной системы и системы противопожарного водопровода"]
["Промывка систем водоснабжения для удаления накипно-коррозионных отложений","Применять ручной и механизированный инструмент по назначению и в соответствии с видом работ","Виды, назначение, устройство, принцип работы повысительных и пожарных насосов"]
["Очистка и промывка водонапорных баков","Применять технологические приемы технического обслуживания системы водоснабжения, в том числе поливочной системы и системы противопожарного водопровода","Виды, назначение и способы применения труб, фитингов, фасонных частей, арматуры, средств крепления, смазочных и эксплуатационных материалов"]
["Устранение течи в трубопроводах и арматуре системы водоснабжения, в том числе поливочной системы и системы противопожарного водопровода","Промывать водонапорные баки, участки водопровода и системы водоснабжения в целом","Виды, назначение и правила применения ручного и механизированного инструмента"]
["Восстановление крепления трубопроводов, приборов и оборудования системы водоснабжения, в том числе поливочной системы и системы противопожарного водопровода","Определять качество и вид труб, фитингов, фасонных частей, арматуры, средств крепления, смазочных и эксплуатационных материалов"]
["Выполнение обслуживания циркуляционных, повысительных и пожарных насосов","Оценивать состояние основного и вспомогательного оборудования системы водоснабжения, в том числе поливочной системы и системы противопожарного водопровода"]
["Очищение от пыли и грязи наружных поверхностей оборудования и контрольно-измерительных приборов системы водоснабжения, в том числе поливочной системы и системы противопожарного водопровода","Выполнять смену прокладок, набивку сальников"]
["Информирование работника более высокого уровня квалификации при выявлении неисправностей, обнаружении дефектов или низкого качества материалов, а также работ, выполненных с отклонением от проекта или технических условий","Выполнять крепление трубопроводов, приборов и оборудования"]
[]
["ФГОС 08.01.10 МАСТЕР ЖИЛИЩНО-КОММУНАЛЬНОГО ХОЗЯЙСТВА"]
["3.4.1. Выполнение работ по эксплуатации и ремонту оборудования систем водоснабжения, водоотведения, отопления жилищно-коммунального хозяйства:"]
["ПК 1.1. Обеспечивать эксплуатацию и ремонт системы водоснабжения и водоотведения здания;"]
["Иметь практический опыт в","Уметь","Знать"]
["работах по эксплуатации зданий, сооружений, конструкций, оборудования систем водоснабжения, водоотведения, отопления зданий и сооружений, жилищно-коммунального хозяйства;","оценивать состояние рабочего места на соответствие требованиям охраны труда и полученному заданию/наряду;","требования по охране труда при проведении работ по техническому обслуживанию, ремонту и монтажу отдельных узлов оборудования систем водоснабжения, водоотведения, отопления объектов жилищно-коммунального хозяйства;"]
["совершении действий в критических ситуациях при эксплуатации зданий, сооружений, конструкций, оборудования систем водоснабжения, водоотведения, отопления, жилищно-коммунального хозяйства.","определять исправность средств индивидуальной защиты;","виды и основные правила построения чертежей, эскизов и схем систем водоснабжения, водоотведения, отопления объектов жилищно-коммунального хозяйства;"]
[null,"читать и выполнять чертежи, эскизы и схемы систем водоснабжения, водоотведения, отопления объектов жилищно-коммунального хозяйства;","виды, назначение, устройство, принципы работы домовых санитарно-технических систем и оборудования, домовых систем водоснабжения, в том числе поливочной системы и системы противопожарного водопровода, систем отопления, отопительных приборов, циркуляционных насосов, элеваторных и тепловых узлов, запорно-регулирующей и водоразборной арматуры и вспомогательного оборудования;"]
[null,"подбирать материалы, инструменты и оборудование согласно технологическому процессу и сменному заданию/наряду;","сущность и содержание технической эксплуатации оборудования систем водоснабжения, водоотведения, отопления;"]
[null,"проводить техническое обслуживание оборудования систем водоснабжения, водоотведения, отопления объектов жилищно-коммунального хозяйства;","правила рациональной эксплуатации зданий, сооружений, конструкций, оборудования систем водоснабжения, водоотведения, отопления;"]
[null,"определять признаки неисправности при эксплуатации зданий, сооружений, конструкций, оборудования систем водоснабжения, водоотведения, отопления жилищно-коммунального хозяйства;","показатели технического уровня эксплуатации оборудования систем водоснабжения, водоотведения, отопления;"]
[null,"проводить плановый осмотр зданий, сооружений, конструкций, оборудования систем водоснабжения, водоотведения, отопления жилищно-коммунального хозяйства;","виды технического обслуживания: текущее (внутрисменное) обслуживание, профилактические осмотры, периодические осмотры, надзор;"]
[null,"заполнять техническую документацию по результатам осмотра;","приемы и методы минимизации издержек на объектах жилищно-коммунального хозяйства;"]
[null,"выполнять профилактические работы, способствующие эффективной работе санитарно-технической системы, системы отопления;","основы \"бережливого производства\", повышающие качество и производительность труда на объектах жилищно-коммунального хозяйства;"]
[null,"выполнять гидравлическое испытание системы водоснабжения, в том числе поливочной системы и системы противопожарного водопровода;","состав и требования к проведению профилактических и регламентных работ в системе водоснабжения, в том числе поливочной системы и системы противопожарного водопровода, повысительных и пожарных насосов, запорно-регулирующей и водоразборной арматуры, системе водоотведения, внутренних водостоков, санитарно-технических приборов и системе отопления объектов жилищно-коммунального хозяйства;"]
[null,"подготавливать внутридомовые системы водоснабжения, отопления, в том числе поливочные системы и системы противопожарного водопровода к сезонной эксплуатации;","технологию и технику обслуживания элеваторных и тепловых узлов и вспомогательного оборудования;"]
[null,"выполнять консервацию внутридомовых систем;","виды деятельности объектов жилищно-коммунального хозяйства, оказывающие негативное влияние на окружающую среду;"]
[null,"применять ручной и механизированный инструмент по назначению и в соответствии с видом работ;","нормативную базу технической эксплуатации;"]
[null,"обнаружить с помощью приборов опасные вещества в воздухе, в воде и в грунте;","эксплуатационную техническую документацию, виды и основное содержание;"]
[null,"определять причины и устранять неисправности конструкций зданий, сооружений, оборудования систем водоснабжения, водоотведения, отопления жилищно-коммунального хозяйства;","правила заполнения технической документации;"]
[null,"проводить слесарные работы при ремонте;","основные понятия, положения и показатели, предусмотренные ГОСТами, по определению надежности оборудования систем водоснабжения, водоотведения, отопления жилищно-коммунального хозяйства, их технико-экономическое значение;"]
[null,"осуществлять ремонт санитарно-технического оборудования и системы отопления;","инженерные показатели и методы обеспечения надежности оборудования систем водоснабжения, водоотведения, отопления жилищно-коммунального хозяйства на стадиях конструирования, изготовления, эксплуатации;"]
[null,"выполнять замену участков трубопроводов, отопительных приборов и их секций, запорно-регулирующей, водоразборной арматуры, внутренних пожарных кранов, контрольно-измерительных приборов с использованием ручного и механизированного инструмента приспособлений и материалов;","основные методы, технологию измерений, средства измерений;"]
[null,"перекладывать канализационный выпуск;","классификацию, принцип действия измерительных преобразователей;"]
[null,"ремонтировать и менять гидрозатворы, санитарно-технические приборы, повысительные, пожарные и циркуляционные насосы, расширительные баки и водоподогреватели;","классификацию и назначение чувствительных элементов;"]
[null,"проводить испытания отремонтированных систем и оборудования жилищно-коммунального хозяйства;","структуру средств измерений;"]
[null,"использовать необходимые инструменты, приспособления и материалы при выполнении ремонтных работ.","понятие о государственной системе приборов;"]
[null,null,"весовые устройства;"]
[null,null,"назначение и принцип действия контрольно-измерительных приборов и аппаратов средней сложности;"]
[null,null,"оптико-механические средства измерений;"]
[null,null,"основные понятия систем автоматического управления и регулирования;"]
[null,null,"основные этапы профилактических работ;"]
[null,null,"способы и средства выполнения профилактических работ;"]
[null,null,"правила применения универсальных и специальных приспособлений и контрольно-измерительного инструмента;"]
[null,null,"влияние температуры на точность измерений;"]
[null,null,"методы и средства испытаний;"]
[null,null,"технические документы на испытание и готовность к работе сооружений, конструкций, оборудования систем водоснабжения, водоотведения, отопления жилищно-коммунального хозяйства;"]
[null,null,"сущность, назначение и содержание технического обслуживания и ремонта зданий, сооружений, конструкций жилищно-коммунального хозяйства;"]
[null,null,"сущность, назначение и содержание ремонта и монтажа отдельных узлов и оборудования систем водоснабжения, водоотведения, отопления объектов жилищно-коммунального хозяйства;"]
[null,null,"методы и приемы расчета необходимых материалов и оборудования при ремонте и монтаже отдельных узлов систем водоснабжения, водоотведения, отопления;"]
[null,null,"нормативно-техническую документацию;"]
[null,null,"ремонтную базу жилищно-коммунального хозяйства;"]
[null,null,"основы слесарного дела;"]
[null,null,"санитарно-техническую систему здания;"]
[null,null,"отопительную систему здания;"]
[null,null,"виды ремонта оборудования: текущий, капитальный (объем, периодичность, продолжительность, трудоемкость, количество);"]
[null,null,"формы организации ремонтных служб (децентрализованная, централизованная, смешанная);"]
[null,null,"формы подготовки ремонта (конструкторская, технологическая, материально-техническая, организационная);"]
[null,null,"применение контрольно-диагностической аппаратуры;"]
[null,null,"ремонтную документацию;"]
[null,null,"методы проведения ремонта;"]
[null,null,"общие принципы технологии ремонта;"]
[null,null,"технические документы на испытание и готовность к работе оборудования систем водоснабжения, водоотведения, отопления объектов жилищно-коммунального хозяйства;"]
[null,null,"предъявляемые требования готовности к проведению испытания отопительной системы;"]
[null,null,"порядок сдачи после ремонта и испытаний оборудования систем водоснабжения, водоотведения, отопления объектов жилищно-коммунального хозяйства;"]
[null,null,"устройство и правила эксплуатации применяемых инструментов, приспособлений;"]
[null,null,"компьютерные системы управления обслуживанием и ремонтом."]
[]
["ФГОС 08.01.14 МОНТАЖНИК САНИТАРНО-ТЕХНИЧЕСКИХ, ВЕНТИЛЯЦИОННЫХ СИСТЕМ И ОБОРУДОВАНИЯ"]
["3.4.1. Выполнение работ по монтажу систем отопления, водоснабжения, водоотведения и газоснабжения:"]
["ПК 1.1. Выполнять подготовительные работы при монтаже систем отопления, водоснабжения, водоотведения и газоснабжения;"]
["ПК 1.2. Осуществлять подбор и проверку оборудования, инструмента, приспособлений и фасонных частей, необходимых при выполнении монтажа систем отопления, водоснабжения, водоотведения и газоснабжения;"]
["ПК 1.3. Осуществлять монтаж систем отопления водоснабжения, водоотведения и газоснабжения в соответствии с требованиями нормативно-технической документации."]
["Иметь практический опыт в","Уметь","Знать"]
["подготовке инструмента, оборудования, узлов и деталей к монтажу систем отопления, водоснабжения, водоотведения и газоснабжения в соответствии с проектом производства работ;","использовать сопроводительную документацию для проверки комплектности и качества санитарно-технических инструментов и оборудования;","виды и назначение санитарно-технических материалов, арматуры и оборудования;"]
["выполнении подготовительных работ при монтаже и ремонте систем отопления, водоснабжения, водоотведения и газоснабжения;","изучать и использовать при монтаже санитарно-технических систем проектную и техническую документацию;","виды и назначение основной проектной и технической документации для производства монтажных работ;"]
["выполнении работ средней сложности при монтаже и ремонте внутренних систем отопления, водоснабжения, водоотведения и газоснабжения;","выполнять слесарные операции при монтаже и ремонте санитарно-технических систем;","правила выполнения слесарных работ при монтаже и ремонте санитарно-технических систем;"]
["выполнении работ средней сложности при монтаже и ремонте наружных систем отопления, водоснабжения, водоотведения и газоснабжения.","использовать ручной и механизированный инструмент и приспособления при монтаже санитарно-технических систем и оборудования;","назначение и правила применения ручного и механизированного инструмента и приспособлений, необходимых при монтаже санитарно-технических систем и оборудования;"]
[null,"разбирать, ремонтировать и собирать детали и узлы систем отопления, водоснабжения, канализации, газоснабжения и водостоков;","назначение, устройство и принцип действия систем отопления, водоснабжения, водоотведения и газоснабжения;"]
[null,"соединять трубопроводы систем отопления, водоснабжения, канализации, газоснабжения и водостоков;","технологию и последовательность подготовительных и монтажных работ наружных сетей систем отопления, водоснабжения, водоотведения и газоснабжения;"]
[null,"выполнять укрупненную сборку узлов внутренних санитарно-технических систем;","технологию, последовательность подготовительных работ и особенности монтажа оборудования и трубопроводов внутренних систем отопления, водоснабжения, водоотведения и газоснабжения;"]
[null,"выполнять установку и крепление санитарно-технического оборудования и трубопроводов;","правила проведения испытаний оборудования и трубопроводов;"]
[null,"соблюдать требования охраны труда, пожарной экологической безопасности при выполнении работ;","правила безопасной эксплуатации монтажного оборудования;"]
[null,"проводить ревизию и испытания санитарно-технической арматуры;","санитарные нормы и правила проведения монтажных работ;"]
[null,"проводить испытания смонтированных санитарно-технических систем;","требования охраны труда."]
[null,"соблюдать требования охраны труда, пожарной и экологической безопасности при выполнении работ."]
[]
["08.01.26 МАСТЕР ПО РЕМОНТУ И ОБСЛУЖИВАНИЮ ИНЖЕНЕРНЫХ СИСТЕМ ЖИЛИЩНО-КОММУНАЛЬНОГО ХОЗЯЙСТВА"]
["3.4.1. Поддержание рабочего состояния оборудования систем водоснабжения, водоотведения, отопления объектов жилищно-коммунального хозяйства:\n"]
["ПК 1.1. Осуществлять техническое обслуживание в соответствии с заданием (нарядом) системы водоснабжения, водоотведения, отопления объектов жилищно-коммунального хозяйства."]
["ПК 1.2. Проводить ремонт и монтаж отдельных узлов системы водоснабжения, водоотведения."]
["Иметь практический опыт в","Уметь","Знать"]
["техническом обслуживании в соответствии с заданием/нарядом системы водоснабжения, водоотведения, отопления объектов жилищно-коммунального хозяйства;","оценивать состояние рабочего места на соответствие требованиям охраны труда и полученному заданию/наряду;","требования по охране труда при проведении работ по техническому обслуживанию, ремонту и монтажу отдельных узлов оборудования систем водоснабжения, водоотведения, отопления объектов жилищно-коммунального хозяйства;"]
["ремонте и монтаже отдельных узлов системы водоснабжения, водоотведения;","определять исправность средств индивидуальной защиты;","виды и основные правила построения чертежей, эскизов и схем систем водоснабжения, водоотведения, отопления объектов жилищно-коммунального хозяйства;"]
["ремонте и монтаже отдельных узлов системы отопления","читать и выполнять чертежи, эскизы и схемы систем водоснабжения, водоотведения, отопления объектов жилищно-коммунального хозяйства;","правила чтения технической и конструкторско-технологической документации;"]
[null,"подбирать материалы, инструменты и оборудование согласно технологическому процессу и сменному заданию/наряду;","правила заполнения технической документации;"]
[null,"проводить техническое обслуживание оборудования систем водоснабжения, водоотведения, отопления объектов жилищно-коммунального хозяйства;","сущности и содержания технической эксплуатации оборудования систем водоснабжения, водоотведения, отопления объектов жилищно-коммунального хозяйства;"]
[null,"заполнять техническую документацию по результатам осмотра;","виды деятельности объектов жилищно-коммунального хозяйства, оказывающих негативное влияние на окружающую среду;"]
[null,"выполнять расчет необходимых материалов и оборудования при ремонте и монтаже отдельных узлов систем водоснабжения, водоотведения, отопления объектов жилищно-коммунального хозяйства;","виды, назначение, устройство, принципы работы домовых санитарно-технических систем и оборудования, домовых системы водоснабжения, в том числе поливочной системы и системы противопожарного водопровода, систем отопления, отопительных приборов, циркуляционных насосов, элеваторных и тепловых узлов, запорно-регулирующей и водоразборной арматуры и вспомогательного оборудования;"]
[null,"использовать инструменты, при выполнении ремонтных работ;","технологию техники обслуживания домовых санитарно-технических систем и оборудования;"]
[null,"устранять неисправности санитарно-технических систем и оборудования;","виды, назначение и принципы работы систем контроля технического состояния оборудования объектов жилищно-коммунального хозяйства;"]
[null,"проводить испытания отремонтированных систем и оборудования водоснабжения, водоотведения, отопления объектов жилищно-коммунального хозяйства;","основные понятия систем автоматического управления и регулирования;"]
[null,"подготавливать внутридомовые системы водоснабжения, отопления, в том числе поливочной системы и системы противопожарного водопровода к сезонной эксплуатации;","назначение и принципы действия контрольно-измерительных приборов и аппаратов;"]
[null,"выполнять консервацию внутридомовых систем.","правила применения контрольно-диагностической аппаратуры;"]
[null,null,"правила применения универсальных и специальных приспособлений и контрольно-измерительного инструмента;"]
[null,null,"сущность и содержание ремонта и монтажа систем водоснабжения, водоотведения, отопления объектов жилищно-коммунального хозяйства;"]
[null,null,"подготовку внутридомовой системы отопления, системы холодного водоснабжения, в том числе поливочной системы и системы противопожарного водопровода к сезонной эксплуатации, опрессовки системы отопления;"]
[null,null,"порядок обслуживания элеваторных и тепловых узлов и вспомогательного оборудования;"]
[null,null,"технические документы на испытание и готовность к работе оборудования систем водоснабжения, водоотведения, отопления объектов жилищно-коммунального хозяйства;"]
[null,null,"порядок сдачи после ремонта и испытаний оборудования систем водоснабжения, водоотведения, отопления объектов жилищно-коммунального хозяйства."]
[]
["ФГОС 08.02.07 МОНТАЖ И ЭКСПЛУАТАЦИЯ ВНУТРЕННИХ САНТЕХНИЧЕСКИХ УСТРОЙСТВ, КОНДИЦИОНИРОВАНИЯ ВОЗДУХА И ВЕНТИЛЯЦИИ"]
["3.4.1. Организация и контроль работ по монтажу систем водоснабжения и водоотведения, отопления, вентиляции и кондиционирования воздуха:"]
["ПК 1.1. Организовывать и выполнять подготовку систем и объектов к монтажу;"]
["ПК 1.2. Организовывать и выполнять монтаж систем водоснабжения и водоотведения, отопления, вентиляции и кондиционирования воздуха;"]
["ПК 1.3. Организовывать и выполнять производственный контроль качества монтажных работ;"]
["ПК 1.4. Выполнять пусконаладочные работы систем водоснабжения и водоотведения, отопления, вентиляции и кондиционирование воздуха;"]
["Иметь практический опыт в","Уметь","Знать"]
["организации и выполнении монтажа систем водоснабжения и водоотведения, отопления, вентиляции и кондиционирования воздуха;","использовать сопроводительную документацию для проверки комплектности и качества изготовления оборудования санитарно-технических систем, вентиляции и кондиционирования воздуха;","классификацию систем водоснабжения и водоотведения, отопления, вентиляции и кондиционирования воздуха;"]
["выполнении пусконаладочных работ систем водоснабжения и водоотведения, отопления, вентиляции и кондиционирования воздуха.","читать и разрабатывать монтажные чертежи систем водоснабжения и водоотведения, отопления, вентиляции и кондиционирования воздуха;","назначение и правила применения ручных инструментов и приспособлений, необходимых при монтаже систем водоснабжения и водоотведения, отопления, вентиляции и кондиционирования воздуха;"]
[null,"составлять ведомости выявленных дефектов (для поставщика оборудования) с целью их устранения;","состав комплекта технической документации и комплектность оборудования и материалов;"]
[null,"оформлять техническую документацию по результатам испытаний;","проектную и нормативную документацию в области монтажа и испытаний систем водоснабжения и водоотведения, отопления, вентиляции и кондиционирования воздуха;"]
[null,"проводить регулирование смонтированных сантехнических систем, вентиляции и кондиционирования воздуха для достижения проектных и паспортных характеристик;","технологию изготовления узлов и деталей трубопроводов и воздуховодов из различных материалов;"]
[null,"руководить работниками в рамках подразделения при выполнении работ по монтажу систем водоснабжения и водоотведения, отопления, вентиляции и кондиционирования воздуха;","технологию сборки монтажных узлов и требования к качеству их изготовления;"]
[null,"производить измерение производительности и давления вентилятора в характерных точках системы;","основы монтажного проектирования;"]
[null,"пользоваться контрольно-измерительными приборами.","правила по охране труда при подготовке оборудования, узлов и деталей к монтажу в соответствии с проектом производства работ;"]
[null,null,"правила по охране труда при монтаже систем вентиляции и кондиционирования воздуха;"]
[null,null,"технологию монтажных работ систем вентиляции;"]
[null,null,"проектную и нормативную документацию по монтажу систем кондиционирования;"]
[null,null,"способы соединения медных труб;"]
[null,null,"методы проведения измерений гидравлических и аэродинамических характеристик монтируемой системы;"]
[null,null,"принципы работы измерительных приборов и правила пуска и регулирования отдельных элементов и системы в целом;"]
[null,null,"принципы работы монтируемых систем и их элементов;"]
[null,null,"методику проведения регулирования смонтированных систем и отдельных элементов;"]
[null,null,"теплоизоляционный материал и способы работы с ним;"]
[null,null,"правила пайки твердым припоем;"]
[null,null,"особенности менеджмента в соответствующей области профессиональной деятельности."]
[]
["ЕТКС работ и профессий рабочих. Выпуск 3. § 201. Монтажник санитарно-технических систем и оборудования 3-го разряда"]
["Характеристика работ.","Выполнение простых работ при монтаже и ремонте систем центрального отопления, водоснабжения, канализации, газоснабжения и водостоков."]
[null,"Свертывание и сборка простых узлов."]
[null,"Сборка фланцевых соединений."]
[null,"Разборка отдельных узлов трубопроводов (при монтаже)."]
[null,"Установка и заделка креплений под приборы и трубопроводы."]
[null,"Сверление или пробивка отверстий в конструкциях."]
[null,"Заделка раструбов чугунных трубопроводов."]
[null,"Нарезка резьбы на трубах вручную."]
[null,"Комплектование труб и фасонных частей стояков."]
[null,"Установка ручного пресса для опрессовки систем."]
[null,"Отсоединение чугунных котлов от трубопроводов."]
[null,"Обрубка кромок швов жаротрубного котла для последующей подварки."]
[null,"Очистка секций чугунного котла снаружи и изнутри с промывкой."]
[null,"Срубка заклепок жаротрубного котла с выбиванием их."]
[null,"Смена манжет у унитаза."]
[null,"Зачистка сварных швов шлифмашинкой."]
[null,"Прокачка канализационных стояков и отводов."]
[null,"Смена прокладок кранов, вентилей."]
["Должен знать:","виды основных деталей санитарно-технических систем, соединений труб и креплений трубопроводов; "]
[null,"назначение, устройство и особенности монтажа внутренних систем центрального отопления, водоснабжения, канализации, газоснабжения и водостоков;"]
[null,"способы сверления и пробивки отверстий;"]
[null,"правила транспортировки баллонов с кислородом и ацетиленом;"]
[null,"правила техники безопасности при транспортировке баллонов;"]
[null,"правила пользования механизированным инструментом."]
[]
["ЕТКС работ и профессий рабочих. Выпуск 2. Часть 2. § 161. Слесарь-сантехник 3-го разряда"]
["Характеристика работ.","Разборка, ремонт и сборка различных деталей и узлов санитарно-технических систем центрального отопления, водоснабжения, канализации и водостоков."]
[null,"Сверление или пробивка отверстий в конструкциях."]
[null,"Нарезка резьб на трубах вручную."]
[null,"Установка и заделка креплений под трубопроводы и приборы."]
[null,"Комплектование труб и фасонных частей стояков."]
["Должен знать:","принцип действия, назначение и особенности ремонта санитарно-технических трубопроводных систем центрального отопления, водоснабжения, канализации и водостоков;"]
[null,"виды основных деталей санитарно-технических систем, соединений труб и креплений трубопроводов;"]
[null,"способы сверления и пробивки отверстий;"]
[null,"правила обращения и транспортирования баллонов с кислородом и ацетиленом;"]
[null,"назначение и правила пользования механизированным инструментом."]

{"sheet":"ПС16.086B04.3 3;4;5;9;10;13","index":9,"n_rows":180,"n_cols":3,"rows_kept":180,"merged":[[0,0,0,2],[14,0,14,2],[15,0,15,2],[16,0,16,2],[17,0,17,2],[72,0,72,2],[73,0,73,2],[74,0,74,2],[75,0,75,2],[76,0,76,2],[91,0,91,2],[92,0,92,2],[93,0,93,2],[94,0,94,2],[95,0,95,2],[116,0,116,2],[117,0,117,2],[118,0,118,2],[119,0,119,2],[120,0,120,2],[121,0,121,2],[143,0,143,2],[144,0,161,0],[144,1,144,2],[145,1,145,2],[146,1,146,2],[147,1,147,2],[148,1,148,2],[149,1,149,2],[150,1,150,2],[151,1,151,2],[152,1,152,2],[153,1,153,2],[154,1,154,2],[155,1,155,2],[156,1,156,2],[157,1,157,2],[158,1,158,2],[159,1,159,2],[160,1,160,2],[161,1,161,2],[162,0,167,0],[162,1,162,2],[163,1,163,2],[164,1,164,2],[165,1,165,2],[166,1,166,2],[167,1,167,2],[169,0,169,2],[170,0,174,0],[170,1,170,2],[171,1,171,2],[172,1,172,2],[173,1,173,2],[174,1,174,2],[175,0,179,0],[175,1,175,2],[176,1,176,2],[177,1,177,2],[178,1,178,2],[179,1,179,2]]}
["Профстандарт 16.086 B/04.3"]
["Трудовые действия","Умения","Знания"]
["Выбор и проверка средств индивидуальной защиты в соответствии с требованиями охраны труда","Определять исправность средств индивидуальной защиты","Требования охраны труда при проведении работ по техническому обслуживанию домовых санитарно-технических систем и оборудования"]
["Подбор и проверка материалов и инструментов в соответствии с полученным заданием","Подбирать инструмент согласно техническому процессу","Технология и техника обслуживания домовых санитарно-технических систем и оборудования"]
["Устранение течи в трубопроводах, водонагревателях, приборах и арматуре системы отопления и горячего водоснабжения","Применять ручной и механизированный инструмент по назначению и в соответствии с видом работ","Виды, назначение, устройство, принцип работы домовых систем отопления и горячего водоснабжения, теплообменников"]
["Устранение местных непрогревов с промывкой нагревательных приборов и участков трубопроводов","Выполнять технологические приемы технического обслуживания системы отопления и горячего водоснабжения","Виды, назначение, устройство, принцип работы циркуляционных насосов"]
["Проведение простых работ по очистке теплообменного оборудования для удаления накипно-коррозионных отложений","Определять качество и вид труб, фитингов, фасонных частей, арматуры, средств крепления, смазочных и эксплуатационных материалов","Виды, назначение и правила применения ручного и механизированного инструмента"]
["Регулировка и техническое обслуживание насосов, запорной арматуры, расширительных баков и элементов, скрытых от постоянного наблюдения (разводящих трубопроводов и оборудования на чердаках, в подвалах и каналах)","Оценивать степень прогрева отопительных приборов","Виды, назначение и способы применения труб, фитингов, фасонных частей, арматуры, средств крепления, смазочных и эксплуатационных материалов"]
["Устранение воздушных пробок в системе отопления","Оценивать состояние основного и вспомогательного оборудования системы отопления и горячего водоснабжения","Принципы гидравлической балансировки системы отопления в МКД"]
["Очистка грязевиков, воздухосборников","Выполнять крепление трубопроводов, приборов и оборудования системы отопления и горячего водоснабжения","Системы отопления в зависимости от конструкции стояков и схем присоединения к ним радиаторов"]
["Восстановление крепления трубопроводов, приборов и оборудования системы отопления и горячего водоснабжения","Пользоваться средствами связи","Параметры давления и температуры, допустимые в системах отопления и горячего водоснабжения, и методика их измерения"]
["Очистка от пыли и грязи наружных поверхностей оборудования и контрольно-измерительных приборов системы отопления и горячего водоснабжения"]
["Информирование работника более высокого уровня квалификации при выявлении неисправностей, обнаружении дефектов или низкого качества материалов, а также работ, выполненных с отклонением от проекта или технических условий"]
[]
["ФГОС 08.01.10 МАСТЕР ЖИЛИЩНО-КОММУНАЛЬНОГО ХОЗЯЙСТВА"]
["3.4.1. Выполнение работ по эксплуатации и ремонту оборудования систем водоснабжения, водоотведения, отопления жилищно-коммунального хозяйства:"]
["ПК 1.1. Обеспечивать эксплуатацию и ремонт системы водоснабжения и водоотведения здания;"]
["ПК 1.2. Обеспечивать эксплуатацию и ремонт системы отопления здания."]
["Иметь практический опыт в","Уметь","Знать"]
["работах по эксплуатации зданий, сооружений, конструкций, оборудования систем водоснабжения, водоотведения, отопления зданий и сооружений, жилищно-коммунального хозяйства;","оценивать состояние рабочего места на соответствие требованиям охраны труда и полученному заданию/наряду;","требования по охране труда при проведении работ по техническому обслуживанию, ремонту и монтажу отдельных узлов оборудования систем водоснабжения, водоотведения, отопления объектов жилищно-коммунального хозяйства;"]
["совершении действий в критических ситуациях при эксплуатации зданий, сооружений, конструкций, оборудования систем водоснабжения, водоотведения, отопления, жилищно-коммунального хозяйства.","определять исправность средств индивидуальной защиты;","виды и основные правила построения чертежей, эскизов и схем систем водоснабжения, водоотведения, отопления объектов жилищно-коммунального хозяйства;"]
[null,"читать и выполнять чертежи, эскизы и схемы систем водоснабжения, водоотведения, отопления объектов жилищно-коммунального хозяйства;","виды, назначение, устройство, принципы работы домовых санитарно-технических систем и оборудования, домовых систем водоснабжения, в том числе поливочной системы и системы противопожарного водопровода, систем отопления, отопительных приборов, циркуляционных насосов, элеваторных и тепловых узлов, запорно-регулирующей и водоразборной арматуры и вспомогательного оборудования;"]
[null,"подбирать материалы, инструменты и оборудование согласно технологическому процессу и сменному заданию/наряду;","сущность и содержание технической эксплуатации оборудования систем водоснабжения, водоотведения, отопления;"]
[null,"проводить техническое обслуживание оборудования систем водоснабжения, водоотведения, отопления объектов жилищно-коммунального хозяйства;","правила рациональной эксплуатации зданий, сооружений, конструкций, оборудования систем водоснабжения, водоотведения, отопления;"]
[null,"определять признаки неисправности при эксплуатации зданий, сооружений, конструкций, оборудования систем водоснабжения, водоотведения, отопления жилищно-коммунального хозяйства;","показатели технического уровня эксплуатации оборудования систем водоснабжения, водоотведения, отопления;"]
[null,"проводить плановый осмотр зданий, сооружений, конструкций, оборудования систем водоснабжения, водоотведения, отопления жилищно-коммунального хозяйства;","виды технического обслуживания: текущее (внутрисменное) обслуживание, профилактические осмотры, периодические осмотры, надзор;"]
[null,"заполнять техническую документацию по результатам осмотра;","приемы и методы минимизации издержек на объектах жилищно-коммунального хозяйства;"]
[null,"выполнять профилактические работы, способствующие эффективной работе санитарно-технической системы, системы отопления;","основы \"бережливого производства\", повышающие качество и производительность труда на объектах жилищно-коммунального хозяйства;"]
[null,"выполнять гидравлическое испытание системы водоснабжения, в том числе поливочной системы и системы противопожарного водопровода;","состав и требования к проведению профилактических и регламентных работ в системе водоснабжения, в том числе поливочной системы и системы противопожарного водопровода, повысительных и пожарных насосов, запорно-регулирующей и водоразборной арматуры, системе водоотведения, внутренних водостоков, санитарно-технических приборов и системе отопления объектов жилищно-коммунального хозяйства;"]
[null,"подготавливать внутридомовые системы водоснабжения, отопления, в том числе поливочные системы и системы противопожарного водопровода к сезонной эксплуатации;","технологию и технику обслуживания элеваторных и тепловых узлов и вспомогательного оборудования;"]
[null,"выполнять консервацию внутридомовых систем;","виды деятельности объектов жилищно-коммунального хозяйства, оказывающие негативное влияние на окружающую среду;"]
[null,"применять ручной и механизированный инструмент по назначению и в соответствии с видом работ;","нормативную базу технической эксплуатации;"]
[null,"обнаружить с помощью приборов опасные вещества в воздухе, в воде и в грунте;","эксплуатационную техническую документацию, виды и основное содержание;"]
[null,"определять причины и устранять неисправности конструкций зданий, сооружений, оборудования систем водоснабжения, водоотведения, отопления жилищно-коммунального хозяйства;","правила заполнения технической документации;"]
[null,"проводить слесарные работы при ремонте;","основные понятия, положения и показатели, предусмотренные ГОСТами, по определению надежности оборудования систем водоснабжения, водоотведения, отопления жилищно-коммунального хозяйства, их технико-экономическое значение;"]
[null,"осуществлять ремонт санитарно-технического оборудования и системы отопления;","инженерные показатели и методы обеспечения надежности оборудования систем водоснабжения, водоотведения, отопления жилищно-коммунального хозяйства на стадиях конструирования, изготовления, эксплуатации;"]
[null,"выполнять замену участков трубопроводов, отопительных приборов и их секций, запорно-регулирующей, водоразборной арматуры, внутренних пожарных кранов, контрольно-измерительных приборов с использованием ручного и механизированного инструмента приспособлений и материалов;","основные методы, технологию измерений, средства измерений;"]
[null,"перекладывать канализационный выпуск;","классификацию, принцип действия измерительных преобразователей;"]
[null,"ремонтировать и менять гидрозатворы, санитарно-технические приборы, повысительные, пожарные и циркуляционные насосы, расширительные баки и водоподогреватели;","классификацию и назначение чувствительных элементов;"]
[null,"проводить испытания отремонтированных систем и оборудования жилищно-коммунального хозяйства;","структуру средств измерений;"]
[null,"использовать необходимые инструменты, приспособления и материалы при выполнении ремонтных работ.","понятие о государственной системе приборов;"]
[null,null,"весовые устройства;"]
[null,null,"назначение и принцип действия контрольно-измерительных приборов и аппаратов средней сложности;"]
[null,null,"оптико-механические средства измерений;"]
[null,null,"основные понятия систем автоматического управления и регулирования;"]
[null,null,"основные этапы профилактических работ;"]
[null,null,"способы и средства выполнения профилактических работ;"]
[null,null,"правила применения универсальных и специальных приспособлений и контрольно-измерительного инструмента;"]
[null,null,"влияние температуры на точность измерений;"]
[null,null,"методы и средства испытаний;"]
[null,null,"технические документы на испытание и готовность к работе сооружений, конструкций, оборудования систем водоснабжения, водоотведения, отопления жилищно-коммунального хозяйства;"]
[null,null,"сущность, назначение и содержание технического обслуживания и ремонта зданий, сооружений, конструкций жилищно-коммунального хозяйства;"]
[null,null,"сущность, назначение и содержание ремонта и монтажа отдельных узлов и оборудования систем водоснабжения, водоотведения, отопления объектов жилищно-коммунального хозяйства;"]
[null,null,"методы и приемы расчета необходимых материалов и оборудования при ремонте и монтаже отдельных узлов систем водоснабжения, водоотведения, отопления;"]
[null,null,"нормативно-техническую документацию;"]
[null,null,"ремонтную базу жилищно-коммунального хозяйства;"]
[null,null,"основы слесарного дела;"]
[null,null,"санитарно-техническую систему здания;"]
[null,null,"отопительную систему здания;"]
[null,null,"виды ремонта оборудования: текущий, капитальный (объем, периодичность, продолжительность, трудоемкость, количество);"]
[null,null,"формы организации ремонтных служб (децентрализованная, централизованная, смешанная);"]
[null,null,"формы подготовки ремонта (конструкторская, технологическая, материально-техническая, организационная);"]
[null,null,"применение контрольно-диагностической аппаратуры;"]
[null,null,"ремонтную документацию;"]
[null,null,"методы проведения ремонта;"]
[null,null,"общие принципы технологии ремонта;"]
[null,null,"технические документы на испытание и готовность к работе оборудования систем водоснабжения, водоотведения, отопления объектов жилищно-коммунального хозяйства;"]
[null,null,"предъявляемые требования готовности к проведению испытания отопительной системы;"]
[null,null,"порядок сдачи после ремонта и испытаний оборудования систем водоснабжения, водоотведения, отопления объектов жилищно-коммунального хозяйства;"]
[null,null,"устройство и правила эксплуатации применяемых инструментов, приспособлений;"]
[null,null,"компьютерные системы управления обслуживанием и ремонтом."]
[]
["ФГОС 08.01.14 МОНТАЖНИК САНИТАРНО-ТЕХНИЧЕСКИХ, ВЕНТИЛЯЦИОННЫХ СИСТЕМ И ОБОРУДОВАНИЯ"]
["3.4.1. Выполнение работ по монтажу систем отопления, водоснабжения, водоотведения и газоснабжения:"]
["ПК 1.1. Выполнять подготовительные работы при монтаже систем отопления, водоснабжения, водоотведения и газоснабжения;"]
["ПК 1.2. Осуществлять подбор и проверку оборудования, инструмента, приспособлений и фасонных частей, необходимых при выполнении монтажа систем отопления, водоснабжения, водоотведения и газоснабжения;"]
["ПК 1.3. Осуществлять монтаж систем отопления водоснабжения, водоотведения и газоснабжения в соответствии с требованиями нормативно-технической документации."]
["Иметь практический опыт в","Уметь","Знать"]
["подготовке инструмента, оборудования, узлов и деталей к монтажу систем отопления, водоснабжения, водоотведения и газоснабжения в соответствии с проектом производства работ;","использовать сопроводительную документацию для проверки комплектности и качества санитарно-технических инструментов и оборудования;","виды и назначение санитарно-технических материалов, арматуры и оборудования;"]
["выполнении подготовительных работ при монтаже и ремонте систем отопления, водоснабжения, водоотведения и газоснабжения;","изучать и использовать при монтаже санитарно-технических систем проектную и техническую документацию;","виды и назначение основной проектной и технической документации для производства монтажных работ;"]
["выполнении работ средней сложности при монтаже и ремонте внутренних систем отопления, водоснабжения, водоотведения и газоснабжения;","выполнять слесарные операции при монтаже и ремонте санитарно-технических систем;","правила выполнения слесарных работ при монтаже и ремонте санитарно-технических систем;"]
["выполнении работ средней сложности при монтаже и ремонте наружных систем отопления, водоснабжения, водоотведения и газоснабжения.","использовать ручной и механизированный инструмент и приспособления при монтаже санитарно-технических систем и оборудования;","назначение и правила применения ручного и механизированного инструмента и приспособлений, необходимых при монтаже санитарно-технических систем и оборудования;"]
[null,"разбирать, ремонтировать и собирать детали и узлы систем отопления, водоснабжения, канализации, газоснабжения и водостоков;","назначение, устройство и принцип действия систем отопления, водоснабжения, водоотведения и газоснабжения;"]
[null,"соединять трубопроводы систем отопления, водоснабжения, канализации, газоснабжения и водостоков;","технологию и последовательность подготовительных и монтажных работ наружных сетей систем отопления, водоснабжения, водоотведения и газоснабжения;"]
[null,"выполнять укрупненную сборку узлов внутренних санитарно-технических систем;","технологию, последовательность подготовительных работ и особенности монтажа оборудования и трубопроводов внутренних систем отопления, водоснабжения, водоотведения и газоснабжения;"]
[null,"выполнять установку и крепление санитарно-технического оборудования и трубопроводов;","правила проведения испытаний оборудования и трубопроводов;"]
[null,"соблюдать требования охраны труда, пожарной экологической безопасности при выполнении работ;","правила безопасной эксплуатации монтажного оборудования;"]
[null,"проводить ревизию и испытания санитарно-технической арматуры;","санитарные нормы и правила проведения монтажных работ;"]
[null,"проводить испытания смонтированных санитарно-технических систем;","требования охраны труда."]
[null,"соблюдать требования охраны труда, пожарной и экологической безопасности при выполнении работ."]
[]
["08.01.26 МАСТЕР ПО РЕМОНТУ И ОБСЛУЖИВАНИЮ ИНЖЕНЕРНЫХ СИСТЕМ ЖИЛИЩНО-КОММУНАЛЬНОГО ХОЗЯЙСТВА"]
["3.4.1. Поддержание рабочего состояния оборудования систем водоснабжения, водоотведения, отопления объектов жилищно-коммунального хозяйства:\n"]
["ПК 1.1. Осуществлять техническое обслуживание в соответствии с заданием (нарядом) системы водоснабжения, водоотведения, отопления объектов жилищно-коммунального хозяйства."]
["ПК 1.2. Проводить ремонт и монтаж отдельных узлов системы водоснабжения, водоотведения."]
["ПК 1.3. Проводить ремонт и монтаж отдельных узлов системы отопления."]
["Иметь практический опыт в","Уметь","Знать"]
["техническом обслуживании в соответствии с заданием/нарядом системы водоснабжения, водоотведения, отопления объектов жилищно-коммунального хозяйства;","оценивать состояние рабочего места на соответствие требованиям охраны труда и полученному заданию/наряду;","требования по охране труда при проведении работ по техническому обслуживанию, ремонту и монтажу отдельных узлов оборудования систем водоснабжения, водоотведения, отопления объектов жилищно-коммунального хозяйства;"]
["ремонте и монтаже отдельных узлов системы водоснабжения, водоотведения;","определять исправность средств индивидуальной защиты;","виды и основные правила построения чертежей, эскизов и схем систем водоснабжения, водоотведения, отопления объектов жилищно-коммунального хозяйства;"]
["ремонте и монтаже отдельных узлов системы отопления","читать и выполнять чертежи, эскизы и схемы систем водоснабжения, водоотведения, отопления объектов жилищно-коммунального хозяйства;","правила чтения технической и конструкторско-технологической документации;"]
[null,"подбирать материалы, инструменты и оборудование согласно технологическому процессу и сменному заданию/наряду;","правила заполнения технической документации;"]
[null,"проводить техническое обслуживание оборудования систем водоснабжения, водоотведения, отопления объектов жилищно-коммунального хозяйства;","сущности и содержания технической эксплуатации оборудования систем водоснабжения, водоотведения, отопления объектов жилищно-коммунального хозяйства;"]
[null,"заполнять техническую документацию по результатам осмотра;","виды деятельности объектов жилищно-коммунального хозяйства, оказывающих негативное влияние на окружающую среду;"]
[null,"выполнять расчет необходимых материалов и оборудования при ремонте и монтаже отдельных узлов систем водоснабжения, водоотведения, отопления объектов жилищно-коммунального хозяйства;","виды, назначение, устройство, принципы работы домовых санитарно-технических систем и оборудования, домовых системы водоснабжения, в том числе поливочной системы и системы противопожарного водопровода, систем отопления, отопительных приборов, циркуляционных насосов, элеваторных и тепловых узлов, запорно-регулирующей и водоразборной арматуры и вспомогательного оборудования;"]
[null,"использовать инструменты, при выполнении ремонтных работ;","технологию техники обслуживания домовых санитарно-технических систем и оборудования;"]
[null,"устранять неисправности санитарно-технических систем и оборудования;","виды, назначение и принципы работы систем контроля технического состояния оборудования объектов жилищно-коммунального хозяйства;"]
[null,"проводить испытания отремонтированных систем и оборудования водоснабжения, водоотведения, отопления объектов жилищно-коммунального хозяйства;","основные понятия систем автоматического управления и регулирования;"]
[null,"подготавливать внутридомовые системы водоснабжения, отопления, в том числе поливочной системы и системы противопожарного водопровода к сезонной эксплуатации;","назначение и принципы действия контрольно-измерительных приборов и аппаратов;"]
[null,"выполнять консервацию внутридомовых систем.","правила применения контрольно-диагностической аппаратуры;"]
[null,null,"правила применения универсальных и специальных приспособлений и контрольно-измерительного инструмента;"]
[null,null,"сущность и содержание ремонта и монтажа систем водоснабжения, водоотведения, отопления объектов жилищно-коммунального хозяйства;"]
[null,null,"подготовку внутридомовой системы отопления, системы холодного водоснабжения, в том числе поливочной системы и системы противопожарного водопровода к сезонной эксплуатации, опрессовки системы отопления;"]
[null,null,"порядок обслуживания элеваторных и тепловых узлов и вспомогательного оборудования;"]
[null,null,"технические документы на испытание и готовность к работе оборудования систем водоснабжения, водоотведения, отопления объектов жилищно-коммунального хозяйства;"]
[null,null,"порядок сдачи после ремонта и испытаний оборудования систем водоснабжения, водоотведения, отопления объектов жилищно-коммунального хозяйства."]
[]
["ФГОС 08.02.07 МОНТАЖ И ЭКСПЛУАТАЦИЯ ВНУТРЕННИХ САНТЕХНИЧЕСКИХ УСТРОЙСТВ, КОНДИЦИОНИРОВАНИЯ ВОЗДУХА И ВЕНТИЛЯЦИИ"]
["3.4.1. Организация и контроль работ по монтажу систем водоснабжения и водоотведения, отопления, вентиляции и кондиционирования воздуха:"]
["ПК 1.1. Организовывать и выполнять подготовку систем и объектов к монтажу;"]
["ПК 1.2. Организовывать и выполнять монтаж систем водоснабжения и водоотведения, отопления, вентиляции и кондиционирования воздуха;"]
["ПК 1.3. Организовывать и выполнять производственный контроль качества монтажных работ;"]
["ПК 1.4. Выполнять пусконаладочные работы систем водоснабжения и водоотведения, отопления, вентиляции и кондиционирование воздуха;"]
["Иметь практический опыт в","Уметь","Знать"]
["организации и выполнении монтажа систем водоснабжения и водоотведения, отопления, вентиляции и кондиционирования воздуха;","использовать сопроводительную документацию для проверки комплектности и качества изготовления оборудования санитарно-технических систем, вентиляции и кондиционирования воздуха;","классификацию систем водоснабжения и водоотведения, отопления, вентиляции и кондиционирования воздуха;"]
["выполнении пусконаладочных работ систем водоснабжения и водоотведения, отопления, вентиляции и кондиционирования воздуха.","читать и разрабатывать монтажные чертежи систем водоснабжения и водоотведения, отопления, вентиляции и кондиционирования воздуха;","назначение и правила применения ручных инструментов и приспособлений, необходимых при монтаже систем водоснабжения и водоотведения, отопления, вентиляции и кондиционирования воздуха;"]
[null,"составлять ведомости выявленных дефектов (для поставщика оборудования) с целью их устранения;","состав комплекта технической документации и комплектность оборудования и материалов;"]
[null,"оформлять техническую документацию по результатам испытаний;","проектную и нормативную документацию в области монтажа и испытаний систем водоснабжения и водоотведения, отопления, вентиляции и кондиционирования воздуха;"]
[null,"проводить регулирование смонтированных сантехнических систем, вентиляции и кондиционирования воздуха для достижения проектных и паспортных характеристик;","технологию изготовления узлов и деталей трубопроводов и воздуховодов из различных материалов;"]
[null,"руководить работниками в рамках подразделения при выполнении работ по монтажу систем водоснабжения и водоотведения, отопления, вентиляции и кондиционирования воздуха;","технологию сборки монтажных узлов и требования к качеству их изготовления;"]
[null,"производить измерение производительности и давления вентилятора в характерных точках системы;","основы монтажного проектирования;"]
[null,"пользоваться контрольно-измерительными приборами.","правила по охране труда при подготовке оборудования, узлов и деталей к монтажу в соответствии с проектом производства работ;"]
[null,null,"правила по охране труда при монтаже систем вентиляции и кондиционирования воздуха;"]
[null,null,"технологию монтажных работ систем вентиляции;"]
[null,null,"проектную и нормативную документацию по монтажу систем кондиционирования;"]
[null,null,"способы соединения медных труб;"]
[null,null,"методы проведения измерений гидравлических и аэродинамических характеристик монтируемой системы;"]
[null,null,"принципы работы измерительных приборов и правила пуска и регулирования отдельных элементов и системы в целом;"]
[null,null,"принципы работы монтируемых систем и их элементов;"]
[null,null,"методику проведения регулирования смонтированных систем и отдельных элементов;"]
[null,null,"теплоизоляционный материал и способы работы с ним;"]
[null,null,"правила пайки твердым припоем;"]
[null,null,"особенности менеджмента в соответствующей области профессиональной деятельности."]
[]
["ЕТКС работ и профессий рабочих. Выпуск 3. § 201. Монтажник санитарно-технических систем и оборудования 3-го разряда"]
["Характеристика работ.","Выполнение простых работ при монтаже и ремонте систем центрального отопления, водоснабжения, канализации, газоснабжения и водостоков."]
[null,"Свертывание и сборка простых узлов."]
[null,"Сборка фланцевых соединений."]
[null,"Разборка отдельных узлов трубопроводов (при монтаже)."]
[null,"Установка и заделка креплений под приборы и трубопроводы."]
[null,"Сверление или пробивка отверстий в конструкциях."]
[null,"Заделка раструбов чугунных трубопроводов."]
[null,"Нарезка резьбы на трубах вручную."]
[null,"Комплектование труб и фасонных частей стояков."]
[null,"Установка ручного пресса для опрессовки систем."]
[null,"Отсоединение чугунных котлов от трубопроводов."]
[null,"Обрубка кромок швов жаротрубного котла для последующей подварки."]
[null,"Очистка секций чугунного котла снаружи и изнутри с промывкой."]
[null,"Срубка заклепок жаротрубного котла с выбиванием их."]
[null,"Смена манжет у унитаза."]
[null,"Зачистка сварных швов шлифмашинкой."]
[null,"Прокачка канализационных стояков и отводов."]
[null,"Смена прокладок кранов, вентилей."]
["Должен знать:","виды основных деталей санитарно-технических систем, соединений труб и креплений трубопроводов; "]
[null,"назначение, устройство и особенности монтажа внутренних систем центрального отопления, водоснабжения, канализации, газоснабжения и водостоков;"]
[null,"способы сверления и пробивки отверстий;"]
[null,"правила транспортировки баллонов с кислородом и ацетиленом;"]
[null,"правила техники безопасности при транспортировке баллонов;"]
[null,"правила пользования механизированным инструментом."]
[]
["ЕТКС работ и профессий рабочих. Выпуск 2. Часть 2. § 161. Слесарь-сантехник 3-го разряда"]
["Характеристика работ.","Разборка, ремонт и сборка различных деталей и узлов санитарно-технических систем центрального отопления, водоснабжения, канализации и водостоков."]
[null,"Сверление или пробивка отверстий в конструкциях."]
[null,"Нарезка резьб на трубах вручную."]
[null,"Установка и заделка креплений под трубопроводы и приборы."]
[null,"Комплектование труб и фасонных частей стояков."]
["Должен знать:","принцип действия, назначение и особенности ремонта санитарно-технических трубопроводных систем центрального отопления, водоснабжения, канализации и водостоков;"]
[null,"виды основных деталей санитарно-технических систем, соединений труб и креплений трубопроводов;"]
[null,"способы сверления и пробивки отверстий;"]
[null,"правила обращения и транспортирования баллонов с кислородом и ацетиленом;"]
[null,"назначение и правила пользования механизированным инструментом."]

{"sheet":"ПС 16.086 B 05.3 9; 10","index":10,"n_rows":196,"n_cols":3,"rows_kept":196,"merged":[[0,0,0,2],[32,0,32,2],[33,0,33,2],[34,0,34,2],[89,0,89,2],[90,0,90,2],[91,0,91,2],[92,0,92,2],[93,0,93,2],[108,0,108,2],[109,0,109,2],[110,0,110,2],[111,0,111,2],[132,0,132,2],[133,0,133,2],[134,0,134,2],[135,0,135,2],[136,0,136,2],[137,0,137,2],[159,0,159,2],[160,0,177,0],[160,1,160,2],[161,1,161,2],[162,1,162,2],[163,1,163,2],[164,1,164,2],[165,1,165,2],[166,1,166,2],[167,1,167,2],[168,1,168,2],[169,1,169,2],[170,1,170,2],[171,1,171,2],[172,1,172,2],[173,1,173,2],[174,1,174,2],[175,1,175,2],[176,1,176,2],[177,1,177,2],[178,0,183,0],[178,1,178,2],[179,1,179,2],[180,1,180,2],[181,1,181,2],[182,1,182,2],[183,1,183,2],[185,0,185,2],[186,0,190,0],[186,1,186,2],[187,1,187,2],[188,1,188,2],[189,1,189,2],[190,1,190,2],[191,0,195,0],[191,1,191,2],[192,1,192,2],[193,1,193,2],[194,1,194,2],[195,1,195,2]]}
["Профстандарт 16.086 B/05.3"]
["Трудовые действия","Умения","Знания"]
["Выбор и проверка средств индивидуальной защиты в соответствии с требованиями охраны труда","Оценивать состояние основного и вспомогательного оборудования системы водоснабжения, в том числе поливочной системы и системы противопожарного водопровода","Требования охраны труда при проведении работ по подготовке домовых санитарно-технических систем и оборудования к сезонной эксплуатации"]
["Подбор и проверка материалов и инструментов в соответствии с полученным заданием","Выполнять крепление трубопроводов, приборов и оборудования","Виды, назначение, устройство, принцип работы домовых санитарно-технических систем и оборудования"]
["Выполнение консервации и расконсервации поливочной системы","Выполнять смену прокладок, набивку сальников","Виды, назначение и правила применения ручного и механизированного инструмента"]
["Выполнение ревизии запорно-регулирующей, водоразборной арматуры и внутренних пожарных кранов","Выполнять замену отдельных участков трубопроводов","Виды, назначение, устройство, принцип работы циркуляционных, повысительных и пожарных насосов"]
["Сборка фланцевых соединений","Выполнять замену фасонных частей, трапов, гидрозатворов (сифонов), ревизий","Виды, назначение, устройство, принцип работы запорно-регулирующей и водоразборной арматуры"]
["Промывка централизованных систем теплоснабжения для удаления накипно-коррозионных отложений","Выполнять перекладку канализационного выпуска","Виды, назначение, устройство, принцип работы систем отопления и водоснабжения"]
["Проведение вспомогательных работ при гидравлических и тепловых испытаниях оборудования индивидуальных тепловых пунктов и водоподкачек, узлов ввода и систем отопления","Промывать водонапорные баки, участки водопровода и системы водоснабжения в целом","Виды, назначение, устройство, принцип работы контрольно-измерительных приборов"]
["Выполнение вспомогательных работ при проведении пробных пусконаладочных работ (пробных топок)","Выполнять ремонт и замену отдельных санитарно-технических приборов","Виды, назначение, устройство, принцип работы отопительных приборов"]
["Удаление воздуха из системы отопления","Пользоваться средствами связи","Способы разметки мест установки креплений и приборов"]
["Проведение простых вспомогательных работ по очистке теплообменного оборудования для удаления накипно-коррозионных отложений",null,"Виды шаблонов для разметки отверстий при установке приборов и правила пользования ими"]
["Выполнение вспомогательных работ в ходе регулировки и технического обслуживания насосов, запорной арматуры, расширительных баков и элементов, скрытых от постоянного наблюдения (разводящих трубопроводов и оборудования на чердаках, в подвалах и каналах)",null,"Устройство и принцип действия электродвигателей, трансформаторов, сварочного оборудования"]
["Свертывание и сборка простых узлов",null,"Свойства металлов и сплавов, неметаллических материалов"]
["Установка и заделка креплений под приборы и трубопроводы",null,"Технология и техника подготовки домовых санитарно-технических систем и оборудования к сезонной эксплуатации"]
["Сверление и пробивка отверстий в конструкциях",null,"Технология и техника проведения работ по ремонту систем отопления и горячего водоснабжения"]
["Заделка раструбов чугунных трубопроводов"]
["Нарезка резьбы на трубах вручную"]
["Смена манжет у унитаза"]
["Смена прокладок кранов, вентилей"]
["Присоединение подводок к трубам с помощью фланцев (заглушек)"]
["Выполнение вспомогательных работ при подсоединении к трубопроводам отопительных приборов"]
["Соединение полимерных труб"]
["Сборка стальных труб на фланцах и с помощью накидной гайки"]
["Ремонт и замена неисправных гидрозатворов (сифонов)"]
["Мелкий ремонт и замена неисправных частей санитарно-технических приборов"]
["Ремонт и утепление наружных водоразборных кранов и колонок"]
["Утепление трубопроводов в чердачных и подвальных помещениях"]
["Консервация (расконсервация) и ремонт поливочной системы"]
["Укрепление водосточных труб, колен и воронок"]
["Информирование работника более высокого уровня квалификации при выявлении неисправностей, обнаружении дефектов или низкого качества материалов, а также работ, выполненных с отклонением от проекта или технических условий"]
[]
["ФГОС 08.01.10 МАСТЕР ЖИЛИЩНО-КОММУНАЛЬНОГО ХОЗЯЙСТВА"]
["3.4.1. Выполнение работ по эксплуатации и ремонту оборудования систем водоснабжения, водоотведения, отопления жилищно-коммунального хозяйства:"]
["ПК 1.2. Обеспечивать эксплуатацию и ремонт системы отопления здания."]
["Иметь практический опыт в","Уметь","Знать"]
["работах по эксплуатации зданий, сооружений, конструкций, оборудования систем водоснабжения, водоотведения, отопления зданий и сооружений, жилищно-коммунального хозяйства;","оценивать состояние рабочего места на соответствие требованиям охраны труда и полученному заданию/наряду;","требования по охране труда при проведении работ по техническому обслуживанию, ремонту и монтажу отдельных узлов оборудования систем водоснабжения, водоотведения, отопления объектов жилищно-коммунального хозяйства;"]
["совершении действий в критических ситуациях при эксплуатации зданий, сооружений, конструкций, оборудования систем водоснабжения, водоотведения, отопления, жилищно-коммунального хозяйства.","определять исправность средств индивидуальной защиты;","виды и основные правила построения чертежей, эскизов и схем систем водоснабжения, водоотведения, отопления объектов жилищно-коммунального хозяйства;"]
[null,"читать и выполнять чертежи, эскизы и схемы систем водоснабжения, водоотведения, отопления объектов жилищно-коммунального хозяйства;","виды, назначение, устройство, принципы работы домовых санитарно-технических систем и оборудования, домовых систем водоснабжения, в том числе поливочной системы и системы противопожарного водопровода, систем отопления, отопительных приборов, циркуляционных насосов, элеваторных и тепловых узлов, запорно-регулирующей и водоразборной арматуры и вспомогательного оборудования;"]
[null,"подбирать материалы, инструменты и оборудование согласно технологическому процессу и сменному заданию/наряду;","сущность и содержание технической эксплуатации оборудования систем водоснабжения, водоотведения, отопления;"]
[null,"проводить техническое обслуживание оборудования систем водоснабжения, водоотведения, отопления объектов жилищно-коммунального хозяйства;","правила рациональной эксплуатации зданий, сооружений, конструкций, оборудования систем водоснабжения, водоотведения, отопления;"]
[null,"определять признаки неисправности при эксплуатации зданий, сооружений, конструкций, оборудования систем водоснабжения, водоотведения, отопления жилищно-коммунального хозяйства;","показатели технического уровня эксплуатации оборудования систем водоснабжения, водоотведения, отопления;"]
[null,"проводить плановый осмотр зданий, сооружений, конструкций, оборудования систем водоснабжения, водоотведения, отопления жилищно-коммунального хозяйства;","виды технического обслуживания: текущее (внутрисменное) обслуживание, профилактические осмотры, периодические осмотры, надзор;"]
[null,"заполнять техническую документацию по результатам осмотра;","приемы и методы минимизации издержек на объектах жилищно-коммунального хозяйства;"]
[null,"выполнять профилактические работы, способствующие эффективной работе санитарно-технической системы, системы отопления;","основы \"бережливого производства\", повышающие качество и производительность труда на объектах жилищно-коммунального хозяйства;"]
[null,"выполнять гидравлическое испытание системы водоснабжения, в том числе поливочной системы и системы противопожарного водопровода;","состав и требования к проведению профилактических и регламентных работ в системе водоснабжения, в том числе поливочной системы и системы противопожарного водопровода, повысительных и пожарных насосов, запорно-регулирующей и водоразборной арматуры, системе водоотведения, внутренних водостоков, санитарно-технических приборов и системе отопления объектов жилищно-коммунального хозяйства;"]
[null,"подготавливать внутридомовые системы водоснабжения, отопления, в том числе поливочные системы и системы противопожарного водопровода к сезонной эксплуатации;","технологию и технику обслуживания элеваторных и тепловых узлов и вспомогательного оборудования;"]
[null,"выполнять консервацию внутридомовых систем;","виды деятельности объектов жилищно-коммунального хозяйства, оказывающие негативное влияние на окружающую среду;"]
[null,"применять ручной и механизированный инструмент по назначению и в соответствии с видом работ;","нормативную базу технической эксплуатации;"]
[null,"обнаружить с помощью приборов опасные вещества в воздухе, в воде и в грунте;","эксплуатационную техническую документацию, виды и основное содержание;"]
[null,"определять причины и устранять неисправности конструкций зданий, сооружений, оборудования систем водоснабжения, водоотведения, отопления жилищно-коммунального хозяйства;","правила заполнения технической документации;"]
[null,"проводить слесарные работы при ремонте;","основные понятия, положения и показатели, предусмотренные ГОСТами, по определению надежности оборудования систем водоснабжения, водоотведения, отопления жилищно-коммунального хозяйства, их технико-экономическое значение;"]
[null,"осуществлять ремонт санитарно-технического оборудования и системы отопления;","инженерные показатели и методы обеспечения надежности оборудования систем водоснабжения, водоотведения, отопления жилищно-коммунального хозяйства на стадиях конструирования, изготовления, эксплуатации;"]
[null,"выполнять замену участков трубопроводов, отопительных приборов и их секций, запорно-регулирующей, водоразборной арматуры, внутренних пожарных кранов, контрольно-измерительных приборов с использованием ручного и механизированного инструмента приспособлений и материалов;","основные методы, технологию измерений, средства измерений;"]
[null,"перекладывать канализационный выпуск;","классификацию, принцип действия измерительных преобразователей;"]
[null,"ремонтировать и менять гидрозатворы, санитарно-технические приборы, повысительные, пожарные и циркуляционные насосы, расширительные баки и водоподогреватели;","классификацию и назначение чувствительных элементов;"]
[null,"проводить испытания отремонтированных систем и оборудования жилищно-коммунального хозяйства;","структуру средств измерений;"]
[null,"использовать необходимые инструменты, приспособления и материалы при выполнении ремонтных работ.","понятие о государственной системе приборов;"]
[null,null,"весовые устройства;"]
[null,null,"назначение и принцип действия контрольно-измерительных приборов и аппаратов средней сложности;"]
[null,null,"оптико-механические средства измерений;"]
[null,null,"основные понятия систем автоматического управления и регулирования;"]
[null,null,"основные этапы профилактических работ;"]
[null,null,"способы и средства выполнения профилактических работ;"]
[null,null,"правила применения универсальных и специальных приспособлений и контрольно-измерительного инструмента;"]
[null,null,"влияние температуры на точность измерений;"]
[null,null,"методы и средства испытаний;"]
[null,null,"технические документы на испытание и готовность к работе сооружений, конструкций, оборудования систем водоснабжения, водоотведения, отопления жилищно-коммунального хозяйства;"]
[null,null,"сущность, назначение и содержание технического обслуживания и ремонта зданий, сооружений, конструкций жилищно-коммунального хозяйства;"]
[null,null,"сущность, назначение и содержание ремонта и монтажа отдельных узлов и оборудования систем водоснабжения, водоотведения, отопления объектов жилищно-коммунального хозяйства;"]
[null,null,"методы и приемы расчета необходимых материалов и оборудования при ремонте и монтаже отдельных узлов систем водоснабжения, водоотведения, отопления;"]
[null,null,"нормативно-техническую документацию;"]
[null,null,"ремонтную базу жилищно-коммунального хозяйства;"]
[null,null,"основы слесарного дела;"]
[null,null,"санитарно-техническую систему здания;"]
[null,null,"отопительную систему здания;"]
[null,null,"виды ремонта оборудования: текущий, капитальный (объем, периодичность, продолжительность, трудоемкость, количество);"]
[null,null,"формы организации ремонтных служб (децентрализованная, централизованная, смешанная);"]
[null,null,"формы подготовки ремонта (конструкторская, технологическая, материально-техническая, организационная);"]
[null,null,"применение контрольно-диагностической аппаратуры;"]
[null,null,"ремонтную документацию;"]
[null,null,"методы проведения ремонта;"]
[null,null,"общие принципы технологии ремонта;"]
[null,null,"технические документы на испытание и готовность к работе оборудования систем водоснабжения, водоотведения, отопления объектов жилищно-коммунального хозяйства;"]
[null,null,"предъявляемые требования готовности к проведению испытания отопительной системы;"]
[null,null,"порядок сдачи после ремонта и испытаний оборудования систем водоснабжения, водоотведения, отопления объектов жилищно-коммунального хозяйства;"]
[null,null,"устройство и правила эксплуатации применяемых инструментов, приспособлений;"]
[null,null,"компьютерные системы управления обслуживанием и ремонтом."]
[]
["ФГОС 08.01.14 МОНТАЖНИК САНИТАРНО-ТЕХНИЧЕСКИХ, ВЕНТИЛЯЦИОННЫХ СИСТЕМ И ОБОРУДОВАНИЯ"]
["3.4.1. Выполнение работ по монтажу систем отопления, водоснабжения, водоотведения и газоснабжения:"]
["ПК 1.1. Выполнять подготовительные работы при монтаже систем отопления, водоснабжения, водоотведения и газоснабжения;"]
["ПК 1.2. Осуществлять подбор и проверку оборудования, инструмента, приспособлений и фасонных частей, необходимых при выполнении монтажа систем отопления, водоснабжения, водоотведения и газоснабжения;"]
["ПК 1.3. Осуществлять монтаж систем отопления водоснабжения, водоотведения и газоснабжения в соответствии с требованиями нормативно-технической документации."]
["Иметь практический опыт в","Уметь","Знать"]
["подготовке инструмента, оборудования, узлов и деталей к монтажу систем отопления, водоснабжения, водоотведения и газоснабжения в соответствии с проектом производства работ;","использовать сопроводительную документацию для проверки комплектности и качества санитарно-технических инструментов и оборудования;","виды и назначение санитарно-технических материалов, арматуры и оборудования;"]
["выполнении подготовительных работ при монтаже и ремонте систем отопления, водоснабжения, водоотведения и газоснабжения;","изучать и использовать при монтаже санитарно-технических систем проектную и техническую документацию;","виды и назначение основной проектной и технической документации для производства монтажных работ;"]
["выполнении работ средней сложности при монтаже и ремонте внутренних систем отопления, водоснабжения, водоотведения и газоснабжения;","выполнять слесарные операции при монтаже и ремонте санитарно-технических систем;","правила выполнения слесарных работ при монтаже и ремонте санитарно-технических систем;"]
["выполнении работ средней сложности при монтаже и ремонте наружных систем отопления, водоснабжения, водоотведения и газоснабжения.","использовать ручной и механизированный инструмент и приспособления при монтаже санитарно-технических систем и оборудования;","назначение и правила применения ручного и механизированного инструмента и приспособлений, необходимых при монтаже санитарно-технических систем и оборудования;"]
[null,"разбирать, ремонтировать и собирать детали и узлы систем отопления, водоснабжения, канализации, газоснабжения и водостоков;","назначение, устройство и принцип действия систем отопления, водоснабжения, водоотведения и газоснабжения;"]
[null,"соединять трубопроводы систем отопления, водоснабжения, канализации, газоснабжения и водостоков;","технологию и последовательность подготовительных и монтажных работ наружных сетей систем отопления, водоснабжения, водоотведения и газоснабжения;"]
[null,"выполнять укрупненную сборку узлов внутренних санитарно-технических систем;","технологию, последовательность подготовительных работ и особенности монтажа оборудования и трубопроводов внутренних систем отопления, водоснабжения, водоотведения и газоснабжения;"]
[null,"выполнять установку и крепление санитарно-технического оборудования и трубопроводов;","правила проведения испытаний оборудования и трубопроводов;"]
[null,"соблюдать требования охраны труда, пожарной экологической безопасности при выполнении работ;","правила безопасной эксплуатации монтажного оборудования;"]
[null,"проводить ревизию и испытания санитарно-технической арматуры;","санитарные нормы и правила проведения монтажных работ;"]
[null,"проводить испытания смонтированных санитарно-технических систем;","требования охраны труда."]
[null,"соблюдать требования охраны труда, пожарной и экологической безопасности при выполнении работ."]
[]
["08.01.26 МАСТЕР ПО РЕМОНТУ И ОБСЛУЖИВАНИЮ ИНЖЕНЕРНЫХ СИСТЕМ ЖИЛИЩНО-КОММУНАЛЬНОГО ХОЗЯЙСТВА"]
["3.4.1. Поддержание рабочего состояния оборудования систем водоснабжения, водоотведения, отопления объектов жилищно-коммунального хозяйства:\n"]
["ПК 1.1. Осуществлять техническое обслуживание в соответствии с заданием (нарядом) системы водоснабжения, водоотведения, отопления объектов жилищно-коммунального хозяйства."]
["ПК 1.3. Проводить ремонт и монтаж отдельных узлов системы отопления."]
["Иметь практический опыт в","Уметь","Знать"]
["техническом обслуживании в соответствии с заданием/нарядом системы водоснабжения, водоотведения, отопления объектов жилищно-коммунального хозяйства;","оценивать состояние рабочего места на соответствие требованиям охраны труда и полученному заданию/наряду;","требования по охране труда при проведении работ по техническому обслуживанию, ремонту и монтажу отдельных узлов оборудования систем водоснабжения, водоотведения, отопления объектов жилищно-коммунального хозяйства;"]
["ремонте и монтаже отдельных узлов системы водоснабжения, водоотведения;","определять исправность средств индивидуальной защиты;","виды и основные правила построения чертежей, эскизов и схем систем водоснабжения, водоотведения, отопления объектов жилищно-коммунального хозяйства;"]
["ремонте и монтаже отдельных узлов системы отопления","читать и выполнять чертежи, эскизы и схемы систем водоснабжения, водоотведения, отопления объектов жилищно-коммунального хозяйства;","правила чтения технической и конструкторско-технологической документации;"]
[null,"подбирать материалы, инструменты и оборудование согласно технологическому процессу и сменному заданию/наряду;","правила заполнения технической документации;"]
[null,"проводить техническое обслуживание оборудования систем водоснабжения, водоотведения, отопления объектов жилищно-коммунального хозяйства;","сущности и содержания технической эксплуатации оборудования систем водоснабжения, водоотведения, отопления объектов жилищно-коммунального хозяйства;"]
[null,"заполнять техническую документацию по результатам осмотра;","виды деятельности объектов жилищно-коммунального хозяйства, оказывающих негативное влияние на окружающую среду;"]
[null,"выполнять расчет необходимых материалов и оборудования при ремонте и монтаже отдельных узлов систем водоснабжения, водоотведения, отопления объектов жилищно-коммунального хозяйства;","виды, назначение, устройство, принципы работы домовых санитарно-технических систем и оборудования, домовых системы водоснабжения, в том числе поливочной системы и системы противопожарного водопровода, систем отопления, отопительных приборов, циркуляционных насосов, элеваторных и тепловых узлов, запорно-регулирующей и водоразборной арматуры и вспомогательного оборудования;"]
[null,"использовать инструменты, при выполнении ремонтных работ;","технологию техники обслуживания домовых санитарно-технических систем и оборудования;"]
[null,"устранять неисправности санитарно-технических систем и оборудования;","виды, назначение и принципы работы систем контроля технического состояния оборудования объектов жилищно-коммунального хозяйства;"]
[null,"проводить испытания отремонтированных систем и оборудования водоснабжения, водоотведения, отопления объектов жилищно-коммунального хозяйства;","основные понятия систем автоматического управления и регулирования;"]
[null,"подготавливать внутридомовые системы водоснабжения, отопления, в том числе поливочной системы и системы противопожарного водопровода к сезонной эксплуатации;","назначение и принципы действия контрольно-измерительных приборов и аппаратов;"]
[null,"выполнять консервацию внутридомовых систем.","правила применения контрольно-диагностической аппаратуры;"]
[null,null,"правила применения универсальных и специальных приспособлений и контрольно-измерительного инструмента;"]
[null,null,"сущность и содержание ремонта и монтажа систем водоснабжения, водоотведения, отопления объектов жилищно-коммунального хозяйства;"]
[null,null,"подготовку внутридомовой системы отопления, системы холодного водоснабжения, в том числе поливочной системы и системы противопожарного водопровода к сезонной эксплуатации, опрессовки системы отопления;"]
[null,null,"порядок обслуживания элеваторных и тепловых узлов и вспомогательного оборудования;"]
[null,null,"технические документы на испытание и готовность к работе оборудования систем водоснабжения, водоотведения, отопления объектов жилищно-коммунального хозяйства;"]
[null,null,"порядок сдачи после ремонта и испытаний оборудования систем водоснабжения, водоотведения, отопления объектов жилищно-коммунального хозяйства."]
[]
["ФГОС 08.02.07 МОНТАЖ И ЭКСПЛУАТАЦИЯ ВНУТРЕННИХ САНТЕХНИЧЕСКИХ УСТРОЙСТВ, КОНДИЦИОНИРОВАНИЯ ВОЗДУХА И ВЕНТИЛЯЦИИ"]
["3.4.1. Организация и контроль работ по монтажу систем водоснабжения и водоотведения, отопления, вентиляции и кондиционирования воздуха:"]
["ПК 1.1. Организовывать и выполнять подготовку систем и объектов к монтажу;"]
["ПК 1.2. Организовывать и выполнять монтаж систем водоснабжения и водоотведения, отопления, вентиляции и кондиционирования воздуха;"]
["ПК 1.3. Организовывать и выполнять производственный контроль качества монтажных работ;"]
["ПК 1.4. Выполнять пусконаладочные работы систем водоснабжения и водоотведения, отопления, вентиляции и кондиционирование воздуха;"]
["Иметь практический опыт в","Уметь","Знать"]
["организации и выполнении монтажа систем водоснабжения и водоотведения, отопления, вентиляции и кондиционирования воздуха;","использовать сопроводительную документацию для проверки комплектности и качества изготовления оборудования санитарно-технических систем, вентиляции и кондиционирования воздуха;","классификацию систем водоснабжения и водоотведения, отопления, вентиляции и кондиционирования воздуха;"]
["выполнении пусконаладочных работ систем водоснабжения и водоотведения, отопления, вентиляции и кондиционирования воздуха.","читать и разрабатывать монтажные чертежи систем водоснабжения и водоотведения, отопления, вентиляции и кондиционирования воздуха;","назначение и правила применения ручных инструментов и приспособлений, необходимых при монтаже систем водоснабжения и водоотведения, отопления, вентиляции и кондиционирования воздуха;"]
[null,"составлять ведомости выявленных дефектов (для поставщика оборудования) с целью их устранения;","состав комплекта технической документации и комплектность оборудования и материалов;"]
[null,"оформлять техническую документацию по результатам испытаний;","проектную и нормативную документацию в области монтажа и испытаний систем водоснабжения и водоотведения, отопления, вентиляции и кондиционирования воздуха;"]
[null,"проводить регулирование смонтированных сантехнических систем, вентиляции и кондиционирования воздуха для достижения проектных и паспортных характеристик;","технологию изготовления узлов и деталей трубопроводов и воздуховодов из различных материалов;"]
[null,"руководить работниками в рамках подразделения при выполнении работ по монтажу систем водоснабжения и водоотведения, отопления, вентиляции и кондиционирования воздуха;","технологию сборки монтажных узлов и требования к качеству их изготовления;"]
[null,"производить измерение производительности и давления вентилятора в характерных точках системы;","основы монтажного проектирования;"]
[null,"пользоваться контрольно-измерительными приборами.","правила по охране труда при подготовке оборудования, узлов и деталей к монтажу в соответствии с проектом производства работ;"]
[null,null,"правила по охране труда при монтаже систем вентиляции и кондиционирования воздуха;"]
[null,null,"технологию монтажных работ систем вентиляции;"]
[null,null,"проектную и нормативную документацию по монтажу систем кондиционирования;"]
[null,null,"способы соединения медных труб;"]
[null,null,"методы проведения измерений гидравлических и аэродинамических характеристик монтируемой системы;"]
[null,null,"принципы работы измерительных приборов и правила пуска и регулирования отдельных элементов и системы в целом;"]
[null,null,"принципы работы монтируемых систем и их элементов;"]
[null,null,"методику проведения регулирования смонтированных систем и отдельных элементов;"]
[null,null,"теплоизоляционный материал и способы работы с ним;"]
[null,null,"правила пайки твердым припоем;"]
[null,null,"особенности менеджмента в соответствующей области профессиональной деятельности."]
[]
["ЕТКС работ и профессий рабочих. Выпуск 3. § 201. Монтажник санитарно-технических систем и оборудования 3-го разряда"]
["Характеристика работ.","Выполнение простых работ при монтаже и ремонте систем центрального отопления, водоснабжения, канализации, газоснабжения и водостоков."]
[null,"Свертывание и сборка простых узлов."]
[null,"Сборка фланцевых соединений."]
[null,"Разборка отдельных узлов трубопроводов (при монтаже)."]
[null,"Установка и заделка креплений под приборы и трубопроводы."]
[null,"Сверление или пробивка отверстий в конструкциях."]
[null,"Заделка раструбов чугунных трубопроводов."]
[null,"Нарезка резьбы на трубах вручную."]
[null,"Комплектование труб и фасонных частей стояков."]
[null,"Установка ручного пресса для опрессовки систем."]
[null,"Отсоединение чугунных котлов от трубопроводов."]
[null,"Обрубка кромок швов жаротрубного котла для последующей подварки."]
[null,"Очистка секций чугунного котла снаружи и изнутри с промывкой."]
[null,"Срубка заклепок жаротрубного котла с выбиванием их."]
[null,"Смена манжет у унитаза."]
[null,"Зачистка сварных швов шлифмашинкой."]
[null,"Прокачка канализационных стояков и отводов."]
[null,"Смена прокладок кранов, вентилей."]
["Должен знать:","виды основных деталей санитарно-технических систем, соединений труб и креплений трубопроводов; "]
[null,"назначение, устройство и особенности монтажа внутренних систем центрального отопления, водоснабжения, канализации, газоснабжения и водостоков;"]
[null,"способы сверления и пробивки отверстий;"]
[null,"правила транспортировки баллонов с кислородом и ацетиленом;"]
[null,"правила техники безопасности при транспортировке баллонов;"]
[null,"правила пользования механизированным инструментом."]
[]
["ЕТКС работ и профессий рабочих. Выпуск 2. Часть 2. § 161. Слесарь-сантехник 3-го разряда"]
["Характеристика работ.","Разборка, ремонт и сборка различных деталей и узлов санитарно-технических систем центрального отопления, водоснабжения, канализации и водостоков."]
[null,"Сверление или пробивка отверстий в конструкциях."]
[null,"Нарезка резьб на трубах вручную."]
[null,"Установка и заделка креплений под трубопроводы и приборы."]
[null,"Комплектование труб и фасонных частей стояков."]
["Должен знать:","принцип действия, назначение и особенности ремонта санитарно-технических трубопроводных систем центрального отопления, водоснабжения, канализации и водостоков;"]
[null,"виды основных деталей санитарно-технических систем, соединений труб и креплений трубопроводов;"]
[null,"способы сверления и пробивки отверстий;"]
[null,"правила обращения и транспортирования баллонов с кислородом и ацетиленом;"]
[null,"назначение и правила пользования механизированным инструментом."]

{"sheet":"ПС16.086 B 05.3 3;4;5;11;12","index":11,"n_rows":196,"n_cols":3,"rows_kept":196,"merged":[[0,0,0,2],[32,0,32,2],[33,0,33,2],[34,0,34,2],[89,0,89,2],[90,0,90,2],[91,0,91,2],[92,0,92,2],[93,0,93,2],[108,0,108,2],[109,0,109,2],[110,0,110,2],[111,0,111,2],[132,0,132,2],[133,0,133,2],[134,0,134,2],[135,0,135,2],[136,0,136,2],[137,0,137,2],[159,0,159,2],[160,0,177,0],[160,1,160,2],[161,1,161,2],[162,1,162,2],[163,1,163,2],[164,1,164,2],[165,1,165,2],[166,1,166,2],[167,1,167,2],[168,1,168,2],[169,1,169,2],[170,1,170,2],[171,1,171,2],[172,1,172,2],[173,1,173,2],[174,1,174,2],[175,1,175,2],[176,1,176,2],[177,1,177,2],[178,0,183,0],[178,1,178,2],[179,1,179,2],[180,1,180,2],[181,1,181,2],[182,1,182,2],[183,1,183,2],[185,0,185,2],[186,0,190,0],[186,1,186,2],[187,1,187,2],[188,1,188,2],[189,1,189,2],[190,1,190,2],[191,0,195,0],[191,1,191,2],[192,1,192,2],[193,1,193,2],[194,1,194,2],[195,1,195,2]]}
["Профстандарт 16.086 B/05.3"]
["Трудовые действия","Умения","Знания"]
["Выбор и проверка средств индивидуальной защиты в соответствии с требованиями охраны труда","Оценивать состояние основного и вспомогательного оборудования системы водоснабжения, в том числе поливочной системы и системы противопожарного водопровода","Требования охраны труда при проведении работ по подготовке домовых санитарно-технических систем и оборудования к сезонной эксплуатации"]
["Подбор и проверка материалов и инструментов в соответствии с полученным заданием","Выполнять крепление трубопроводов, приборов и оборудования","Виды, назначение, устройство, принцип работы домовых санитарно-технических систем и оборудования"]
["Выполнение консервации и расконсервации поливочной системы","Выполнять смену прокладок, набивку сальников","Виды, назначение и правила применения ручного и механизированного инструмента"]
["Выполнение ревизии запорно-регулирующей, водоразборной арматуры и внутренних пожарных кранов","Выполнять замену отдельных участков трубопроводов","Виды, назначение, устройство, принцип работы циркуляционных, повысительных и пожарных насосов"]
["Сборка фланцевых соединений","Выполнять замену фасонных частей, трапов, гидрозатворов (сифонов), ревизий","Виды, назначение, устройство, принцип работы запорно-регулирующей и водоразборной арматуры"]
["Промывка централизованных систем теплоснабжения для удаления накипно-коррозионных отложений","Выполнять перекладку канализационного выпуска","Виды, назначение, устройство, принцип работы систем отопления и водоснабжения"]
["Проведение вспомогательных работ при гидравлических и тепловых испытаниях оборудования индивидуальных тепловых пунктов и водоподкачек, узлов ввода и систем отопления","Промывать водонапорные баки, участки водопровода и системы водоснабжения в целом","Виды, назначение, устройство, принцип работы контрольно-измерительных приборов"]
["Выполнение вспомогательных работ при проведении пробных пусконаладочных работ (пробных топок)","Выполнять ремонт и замену отдельных санитарно-технических приборов","Виды, назначение, устройство, принцип работы отопительных приборов"]
["Удаление воздуха из системы отопления","Пользоваться средствами связи","Способы разметки мест установки креплений и приборов"]
["Проведение простых вспомогательных работ по очистке теплообменного оборудования для удаления накипно-коррозионных отложений",null,"Виды шаблонов для разметки отверстий при установке приборов и правила пользования ими"]
["Выполнение вспомогательных работ в ходе регулировки и технического обслуживания насосов, запорной арматуры, расширительных баков и элементов, скрытых от постоянного наблюдения (разводящих трубопроводов и оборудования на чердаках, в подвалах и каналах)",null,"Устройство и принцип действия электродвигателей, трансформаторов, сварочного оборудования"]
["Свертывание и сборка простых узлов",null,"Свойства металлов и сплавов, неметаллических материалов"]
["Установка и заделка креплений под приборы и трубопроводы",null,"Технология и техника подготовки домовых санитарно-технических систем и оборудования к сезонной эксплуатации"]
["Сверление и пробивка отверстий в конструкциях",null,"Технология и техника проведения работ по ремонту систем отопления и горячего водоснабжения"]
["Заделка раструбов чугунных трубопроводов"]
["Нарезка резьбы на трубах вручную"]
["Смена манжет у унитаза"]
["Смена прокладок кранов, вентилей"]
["Присоединение подводок к трубам с помощью фланцев (заглушек)"]
["Выполнение вспомогательных работ при подсоединении к трубопроводам отопительных приборов"]
["Соединение полимерных труб"]
["Сборка стальных труб на фланцах и с помощью накидной гайки"]
["Ремонт и замена неисправных гидрозатворов (сифонов)"]
["Мелкий ремонт и замена неисправных частей санитарно-технических приборов"]
["Ремонт и утепление наружных водоразборных кранов и колонок"]
["Утепление трубопроводов в чердачных и подвальных помещениях"]
["Консервация (расконсервация) и ремонт поливочной системы"]
["Укрепление водосточных труб, колен и воронок"]
["Информирование работника более высокого уровня квалификации при выявлении неисправностей, обнаружении дефектов или низкого качества материалов, а также работ, выполненных с отклонением от проекта или технических условий"]
[]
["ФГОС 08.01.10 МАСТЕР ЖИЛИЩНО-КОММУНАЛЬНОГО ХОЗЯЙСТВА"]
["3.4.1. Выполнение работ по эксплуатации и ремонту оборудования систем водоснабжения, водоотведения, отопления жилищно-коммунального хозяйства:"]
["ПК 1.1. Обеспечивать эксплуатацию и ремонт системы водоснабжения и водоотведения здания;"]
["Иметь практический опыт в","Уметь","Знать"]
["работах по эксплуатации зданий, сооружений, конструкций, оборудования систем водоснабжения, водоотведения, отопления зданий и сооружений, жилищно-коммунального хозяйства;","оценивать состояние рабочего места на соответствие требованиям охраны труда и полученному заданию/наряду;","требования по охране труда при проведении работ по техническому обслуживанию, ремонту и монтажу отдельных узлов оборудования систем водоснабжения, водоотведения, отопления объектов жилищно-коммунального хозяйства;"]
["совершении действий в критических ситуациях при эксплуатации зданий, сооружений, конструкций, оборудования систем водоснабжения, водоотведения, отопления, жилищно-коммунального хозяйства.","определять исправность средств индивидуальной защиты;","виды и основные правила построения чертежей, эскизов и схем систем водоснабжения, водоотведения, отопления объектов жилищно-коммунального хозяйства;"]
[null,"читать и выполнять чертежи, эскизы и схемы систем водоснабжения, водоотведения, отопления объектов жилищно-коммунального хозяйства;","виды, назначение, устройство, принципы работы домовых санитарно-технических систем и оборудования, домовых систем водоснабжения, в том числе поливочной системы и системы противопожарного водопровода, систем отопления, отопительных приборов, циркуляционных насосов, элеваторных и тепловых узлов, запорно-регулирующей и водоразборной арматуры и вспомогательного оборудования;"]
[null,"подбирать материалы, инструменты и оборудование согласно технологическому процессу и сменному заданию/наряду;","сущность и содержание технической эксплуатации оборудования систем водоснабжения, водоотведения, отопления;"]
[null,"проводить техническое обслуживание оборудования систем водоснабжения, водоотведения, отопления объектов жилищно-коммунального хозяйства;","правила рациональной эксплуатации зданий, сооружений, конструкций, оборудования систем водоснабжения, водоотведения, отопления;"]
[null,"определять признаки неисправности при эксплуатации зданий, сооружений, конструкций, оборудования систем водоснабжения, водоотведения, отопления жилищно-коммунального хозяйства;","показатели технического уровня эксплуатации оборудования систем водоснабжения, водоотведения, отопления;"]
[null,"проводить плановый осмотр зданий, сооружений, конструкций, оборудования систем водоснабжения, водоотведения, отопления жилищно-коммунального хозяйства;","виды технического обслуживания: текущее (внутрисменное) обслуживание, профилактические осмотры, периодические осмотры, надзор;"]
[null,"заполнять техническую документацию по результатам осмотра;","приемы и методы минимизации издержек на объектах жилищно-коммунального хозяйства;"]
[null,"выполнять профилактические работы, способствующие эффективной работе санитарно-технической системы, системы отопления;","основы \"бережливого производства\", повышающие качество и производительность труда на объектах жилищно-коммунального хозяйства;"]
[null,"выполнять гидравлическое испытание системы водоснабжения, в том числе поливочной системы и системы противопожарного водопровода;","состав и требования к проведению профилактических и регламентных работ в системе водоснабжения, в том числе поливочной системы и системы противопожарного водопровода, повысительных и пожарных насосов, запорно-регулирующей и водоразборной арматуры, системе водоотведения, внутренних водостоков, санитарно-технических приборов и системе отопления объектов жилищно-коммунального хозяйства;"]
[null,"подготавливать внутридомовые системы водоснабжения, отопления, в том числе поливочные системы и системы противопожарного водопровода к сезонной эксплуатации;","технологию и технику обслуживания элеваторных и тепловых узлов и вспомогательного оборудования;"]
[null,"выполнять консервацию внутридомовых систем;","виды деятельности объектов жилищно-коммунального хозяйства, оказывающие негативное влияние на окружающую среду;"]
[null,"применять ручной и механизированный инструмент по назначению и в соответствии с видом работ;","нормативную базу технической эксплуатации;"]
[null,"обнаружить с помощью приборов опасные вещества в воздухе, в воде и в грунте;","эксплуатационную техническую документацию, виды и основное содержание;"]
[null,"определять причины и устранять неисправности конструкций зданий, сооружений, оборудования систем водоснабжения, водоотведения, отопления жилищно-коммунального хозяйства;","правила заполнения технической документации;"]
[null,"проводить слесарные работы при ремонте;","основные понятия, положения и показатели, предусмотренные ГОСТами, по определению надежности оборудования систем водоснабжения, водоотведения, отопления жилищно-коммунального хозяйства, их технико-экономическое значение;"]
[null,"осуществлять ремонт санитарно-технического оборудования и системы отопления;","инженерные показатели и методы обеспечения надежности оборудования систем водоснабжения, водоотведения, отопления жилищно-коммунального хозяйства на стадиях конструирования, изготовления, эксплуатации;"]
[null,"выполнять замену участков трубопроводов, отопительных приборов и их секций, запорно-регулирующей, водоразборной арматуры, внутренних пожарных кранов, контрольно-измерительных приборов с использованием ручного и механизированного инструмента приспособлений и материалов;","основные методы, технологию измерений, средства измерений;"]
[null,"перекладывать канализационный выпуск;","классификацию, принцип действия измерительных преобразователей;"]
[null,"ремонтировать и менять гидрозатворы, санитарно-технические приборы, повысительные, пожарные и циркуляционные насосы, расширительные баки и водоподогреватели;","классификацию и назначение чувствительных элементов;"]
[null,"проводить испытания отремонтированных систем и оборудования жилищно-коммунального хозяйства;","структуру средств измерений;"]
[null,"использовать необходимые инструменты, приспособления и материалы при выполнении ремонтных работ.","понятие о государственной системе приборов;"]
[null,null,"весовые устройства;"]
[null,null,"назначение и принцип действия контрольно-измерительных приборов и аппаратов средней сложности;"]
[null,null,"оптико-механические средства измерений;"]
[null,null,"основные понятия систем автоматического управления и регулирования;"]
[null,null,"основные этапы профилактических работ;"]
[null,null,"способы и средства выполнения профилактических работ;"]
[null,null,"правила применения универсальных и специальных приспособлений и контрольно-измерительного инструмента;"]
[null,null,"влияние температуры на точность измерений;"]
[null,null,"методы и средства испытаний;"]
[null,null,"технические документы на испытание и готовность к работе сооружений, конструкций, оборудования систем водоснабжения, водоотведения, отопления жилищно-коммунального хозяйства;"]
[null,null,"сущность, назначение и содержание технического обслуживания и ремонта зданий, сооружений, конструкций жилищно-коммунального хозяйства;"]
[null,null,"сущность, назначение и содержание ремонта и монтажа отдельных узлов и оборудования систем водоснабжения, водоотведения, отопления объектов жилищно-коммунального хозяйства;"]
[null,null,"методы и приемы расчета необходимых материалов и оборудования при ремонте и монтаже отдельных узлов систем водоснабжения, водоотведения, отопления;"]
[null,null,"нормативно-техническую документацию;"]
[null,null,"ремонтную базу жилищно-коммунального хозяйства;"]
[null,null,"основы слесарного дела;"]
[null,null,"санитарно-техническую систему здания;"]
[null,null,"отопительную систему здания;"]
[null,null,"виды ремонта оборудования: текущий, капитальный (объем, периодичность, продолжительность, трудоемкость, количество);"]
[null,null,"формы организации ремонтных служб (децентрализованная, централизованная, смешанная);"]
[null,null,"формы подготовки ремонта (конструкторская, технологическая, материально-техническая, организационная);"]
[null,null,"применение контрольно-диагностической аппаратуры;"]
[null,null,"ремонтную документацию;"]
[null,null,"методы проведения ремонта;"]
[null,null,"общие принципы технологии ремонта;"]
[null,null,"технические документы на испытание и готовность к работе оборудования систем водоснабжения, водоотведения, отопления объектов жилищно-коммунального хозяйства;"]
[null,null,"предъявляемые требования готовности к проведению испытания отопительной системы;"]
[null,null,"порядок сдачи после ремонта и испытаний оборудования систем водоснабжения, водоотведения, отопления объектов жилищно-коммунального хозяйства;"]
[null,null,"устройство и правила эксплуатации применяемых инструментов, приспособлений;"]
[null,null,"компьютерные системы управления обслуживанием и ремонтом."]
[]
["ФГОС 08.01.14 МОНТАЖНИК САНИТАРНО-ТЕХНИЧЕСКИХ, ВЕНТИЛЯЦИОННЫХ СИСТЕМ И ОБОРУДОВАНИЯ"]
["3.4.1. Выполнение работ по монтажу систем отопления, водоснабжения, водоотведения и газоснабжения:"]
["ПК 1.1. Выполнять подготовительные работы при монтаже систем отопления, водоснабжения, водоотведения и газоснабжения;"]
["ПК 1.2. Осуществлять подбор и проверку оборудования, инструмента, приспособлений и фасонных частей, необходимых при выполнении монтажа систем отопления, водоснабжения, водоотведения и газоснабжения;"]
["ПК 1.3. Осуществлять монтаж систем отопления водоснабжения, водоотведения и газоснабжения в соответствии с требованиями нормативно-технической документации."]
["Иметь практический опыт в","Уметь","Знать"]
["подготовке инструмента, оборудования, узлов и деталей к монтажу систем отопления, водоснабжения, водоотведения и газоснабжения в соответствии с проектом производства работ;","использовать сопроводительную документацию для проверки комплектности и качества санитарно-технических инструментов и оборудования;","виды и назначение санитарно-технических материалов, арматуры и оборудования;"]
["выполнении подготовительных работ при монтаже и ремонте систем отопления, водоснабжения, водоотведения и газоснабжения;","изучать и использовать при монтаже санитарно-технических систем проектную и техническую документацию;","виды и назначение основной проектной и технической документации для производства монтажных работ;"]
["выполнении работ средней сложности при монтаже и ремонте внутренних систем отопления, водоснабжения, водоотведения и газоснабжения;","выполнять слесарные операции при монтаже и ремонте санитарно-технических систем;","правила выполнения слесарных работ при монтаже и ремонте санитарно-технических систем;"]
["выполнении работ средней сложности при монтаже и ремонте наружных систем отопления, водоснабжения, водоотведения и газоснабжения.","использовать ручной и механизированный инструмент и приспособления при монтаже санитарно-технических систем и оборудования;","назначение и правила применения ручного и механизированного инструмента и приспособлений, необходимых при монтаже санитарно-технических систем и оборудования;"]
[null,"разбирать, ремонтировать и собирать детали и узлы систем отопления, водоснабжения, канализации, газоснабжения и водостоков;","назначение, устройство и принцип действия систем отопления, водоснабжения, водоотведения и газоснабжения;"]
[null,"соединять трубопроводы систем отопления, водоснабжения, канализации, газоснабжения и водостоков;","технологию и последовательность подготовительных и монтажных работ наружных сетей систем отопления, водоснабжения, водоотведения и газоснабжения;"]
[null,"выполнять укрупненную сборку узлов внутренних санитарно-технических систем;","технологию, последовательность подготовительных работ и особенности монтажа оборудования и трубопроводов внутренних систем отопления, водоснабжения, водоотведения и газоснабжения;"]
[null,"выполнять установку и крепление санитарно-технического оборудования и трубопроводов;","правила проведения испытаний оборудования и трубопроводов;"]
[null,"соблюдать требования охраны труда, пожарной экологической безопасности при выполнении работ;","правила безопасной эксплуатации монтажного оборудования;"]
[null,"проводить ревизию и испытания санитарно-технической арматуры;","санитарные нормы и правила проведения монтажных работ;"]
[null,"проводить испытания смонтированных санитарно-технических систем;","требования охраны труда."]
[null,"соблюдать требования охраны труда, пожарной и экологической безопасности при выполнении работ."]
[]
["08.01.26 МАСТЕР ПО РЕМОНТУ И ОБСЛУЖИВАНИЮ ИНЖЕНЕРНЫХ СИСТЕМ ЖИЛИЩНО-КОММУНАЛЬНОГО ХОЗЯЙСТВА"]
["3.4.1. Поддержание рабочего состояния оборудования систем водоснабжения, водоотведения, отопления объектов жилищно-коммунального хозяйства:\n"]
["ПК 1.1. Осуществлять техническое обслуживание в соответствии с заданием (нарядом) системы водоснабжения, водоотведения, отопления объектов жилищно-коммунального хозяйства."]
["ПК 1.2. Проводить ремонт и монтаж отдельных узлов системы водоснабжения, водоотведения."]
["Иметь практический опыт в","Уметь","Знать"]
["техническом обслуживании в соответствии с заданием/нарядом системы водоснабжения, водоотведения, отопления объектов жилищно-коммунального хозяйства;","оценивать состояние рабочего места на соответствие требованиям охраны труда и полученному заданию/наряду;","требования по охране труда при проведении работ по техническому обслуживанию, ремонту и монтажу отдельных узлов оборудования систем водоснабжения, водоотведения, отопления объектов жилищно-коммунального хозяйства;"]
["ремонте и монтаже отдельных узлов системы водоснабжения, водоотведения;","определять исправность средств индивидуальной защиты;","виды и основные правила построения чертежей, эскизов и схем систем водоснабжения, водоотведения, отопления объектов жилищно-коммунального хозяйства;"]
["ремонте и монтаже отдельных узлов системы отопления","читать и выполнять чертежи, эскизы и схемы систем водоснабжения, водоотведения, отопления объектов жилищно-коммунального хозяйства;","правила чтения технической и конструкторско-технологической документации;"]
[null,"подбирать материалы, инструменты и оборудование согласно технологическому процессу и сменному заданию/наряду;","правила заполнения технической документации;"]
[null,"проводить техническое обслуживание оборудования систем водоснабжения, водоотведения, отопления объектов жилищно-коммунального хозяйства;","сущности и содержания технической эксплуатации оборудования систем водоснабжения, водоотведения, отопления объектов жилищно-коммунального хозяйства;"]
[null,"заполнять техническую документацию по результатам осмотра;","виды деятельности объектов жилищно-коммунального хозяйства, оказывающих негативное влияние на окружающую среду;"]
[null,"выполнять расчет необходимых материалов и оборудования при ремонте и монтаже отдельных узлов систем водоснабжения, водоотведения, отопления объектов жилищно-коммунального хозяйства;","виды, назначение, устройство, принципы работы домовых санитарно-технических систем и оборудования, домовых системы водоснабжения, в том числе поливочной системы и системы противопожарного водопровода, систем отопления, отопительных приборов, циркуляционных насосов, элеваторных и тепловых узлов, запорно-регулирующей и водоразборной арматуры и вспомогательного оборудования;"]
[null,"использовать инструменты, при выполнении ремонтных работ;","технологию техники обслуживания домовых санитарно-технических систем и оборудования;"]
[null,"устранять неисправности санитарно-технических систем и оборудования;","виды, назначение и принципы работы систем контроля технического состояния оборудования объектов жилищно-коммунального хозяйства;"]
[null,"проводить испытания отремонтированных систем и оборудования водоснабжения, водоотведения, отопления объектов жилищно-коммунального хозяйства;","основные понятия систем автоматического управления и регулирования;"]
[null,"подготавливать внутридомовые системы водоснабжения, отопления, в том числе поливочной системы и системы противопожарного водопровода к сезонной эксплуатации;","назначение и принципы действия контрольно-измерительных приборов и аппаратов;"]
[null,"выполнять консервацию внутридомовых систем.","правила применения контрольно-диагностической аппаратуры;"]
[null,null,"правила применения универсальных и специальных приспособлений и контрольно-измерительного инструмента;"]
[null,null,"сущность и содержание ремонта и монтажа систем водоснабжения, водоотведения, отопления объектов жилищно-коммунального хозяйства;"]
[null,null,"подготовку внутридомовой системы отопления, системы холодного водоснабжения, в том числе поливочной системы и системы противопожарного водопровода к сезонной эксплуатации, опрессовки системы отопления;"]
[null,null,"порядок обслуживания элеваторных и тепловых узлов и вспомогательного оборудования;"]
[null,null,"технические документы на испытание и готовность к работе оборудования систем водоснабжения, водоотведения, отопления объектов жилищно-коммунального хозяйства;"]
[null,null,"порядок сдачи после ремонта и испытаний оборудования систем водоснабжения, водоотведения, отопления объектов жилищно-коммунального хозяйства."]
[]
["ФГОС 08.02.07 МОНТАЖ И ЭКСПЛУАТАЦИЯ ВНУТРЕННИХ САНТЕХНИЧЕСКИХ УСТРОЙСТВ, КОНДИЦИОНИРОВАНИЯ ВОЗДУХА И ВЕНТИЛЯЦИИ"]
["3.4.1. Организация и контроль работ по монтажу систем водоснабжения и водоотведения, отопления, вентиляции и кондиционирования воздуха:"]
["ПК 1.1. Организовывать и выполнять подготовку систем и объектов к монтажу;"]
["ПК 1.2. Организовывать и выполнять монтаж систем водоснабжения и водоотведения, отопления, вентиляции и кондиционирования воздуха;"]
["ПК 1.3. Организовывать и выполнять производственный контроль качества монтажных работ;"]
["ПК 1.4. Выполнять пусконаладочные работы систем водоснабжения и водоотведения, отопления, вентиляции и кондиционирование воздуха;"]
["Иметь практический опыт в","Уметь","Знать"]
["организации и выполнении монтажа систем водоснабжения и водоотведения, отопления, вентиляции и кондиционирования воздуха;","использовать сопроводительную документацию для проверки комплектности и качества изготовления оборудования санитарно-технических систем, вентиляции и кондиционирования воздуха;","классификацию систем водоснабжения и водоотведения, отопления, вентиляции и кондиционирования воздуха;"]
["выполнении пусконаладочных работ систем водоснабжения и водоотведения, отопления, вентиляции и кондиционирования воздуха.","читать и разрабатывать монтажные чертежи систем водоснабжения и водоотведения, отопления, вентиляции и кондиционирования воздуха;","назначение и правила применения ручных инструментов и приспособлений, необходимых при монтаже систем водоснабжения и водоотведения, отопления, вентиляции и кондиционирования воздуха;"]
[null,"составлять ведомости выявленных дефектов (для поставщика оборудования) с целью их устранения;","состав комплекта технической документации и комплектность оборудования и материалов;"]
[null,"оформлять техническую документацию по результатам испытаний;","проектную и нормативную документацию в области монтажа и испытаний систем водоснабжения и водоотведения, отопления, вентиляции и кондиционирования воздуха;"]
[null,"проводить регулирование смонтированных сантехнических систем, вентиляции и кондиционирования воздуха для достижения проектных и паспортных характеристик;","технологию изготовления узлов и деталей трубопроводов и воздуховодов из различных материалов;"]
[null,"руководить работниками в рамках подразделения при выполнении работ по монтажу систем водоснабжения и водоотведения, отопления, вентиляции и кондиционирования воздуха;","технологию сборки монтажных узлов и требования к качеству их изготовления;"]
[null,"производить измерение производительности и давления вентилятора в характерных точках системы;","основы монтажного проектирования;"]
[null,"пользоваться контрольно-измерительными приборами.","правила по охране труда при подготовке оборудования, узлов и деталей к монтажу в соответствии с проектом производства работ;"]
[null,null,"правила по охране труда при монтаже систем вентиляции и кондиционирования воздуха;"]
[null,null,"технологию монтажных работ систем вентиляции;"]
[null,null,"проектную и нормативную документацию по монтажу систем кондиционирования;"]
[null,null,"способы соединения медных труб;"]
[null,null,"методы проведения измерений гидравлических и аэродинамических характеристик монтируемой системы;"]
[null,null,"принципы работы измерительных приборов и правила пуска и регулирования отдельных элементов и системы в целом;"]
[null,null,"принципы работы монтируемых систем и их элементов;"]
[null,null,"методику проведения регулирования смонтированных систем и отдельных элементов;"]
[null,null,"теплоизоляционный материал и способы работы с ним;"]
[null,null,"правила пайки твердым припоем;"]
[null,null,"особенности менеджмента в соответствующей области профессиональной деятельности."]
[]
["ЕТКС работ и профессий рабочих. Выпуск 3. § 201. Монтажник санитарно-технических систем и оборудования 3-го разряда"]
["Характеристика работ.","Выполнение простых работ при монтаже и ремонте систем центрального отопления, водоснабжения, канализации, газоснабжения и водостоков."]
[null,"Свертывание и сборка простых узлов."]
[null,"Сборка фланцевых соединений."]
[null,"Разборка отдельных узлов трубопроводов (при монтаже)."]
[null,"Установка и заделка креплений под приборы и трубопроводы."]
[null,"Сверление или пробивка отверстий в конструкциях."]
[null,"Заделка раструбов чугунных трубопроводов."]
[null,"Нарезка резьбы на трубах вручную."]
[null,"Комплектование труб и фасонных частей стояков."]
[null,"Установка ручного пресса для опрессовки систем."]
[null,"Отсоединение чугунных котлов от трубопроводов."]
[null,"Обрубка кромок швов жаротрубного котла для последующей подварки."]
[null,"Очистка секций чугунного котла снаружи и изнутри с промывкой."]
[null,"Срубка заклепок жаротрубного котла с выбиванием их."]
[null,"Смена манжет у унитаза."]
[null,"Зачистка сварных швов шлифмашинкой."]
[null,"Прокачка канализационных стояков и отводов."]
[null,"Смена прокладок кранов, вентилей."]
["Должен знать:","виды основных деталей санитарно-технических систем, соединений труб и креплений трубопроводов; "]
[null,"назначение, устройство и особенности монтажа внутренних систем центрального отопления, водоснабжения, канализации, газоснабжения и водостоков;"]
[null,"способы сверления и пробивки отверстий;"]
[null,"правила транспортировки баллонов с кислородом и ацетиленом;"]
[null,"правила техники безопасности при транспортировке баллонов;"]
[null,"правила пользования механизированным инструментом."]
[]
["ЕТКС работ и профессий рабочих. Выпуск 2. Часть 2. § 161. Слесарь-сантехник 3-го разряда"]
["Характеристика работ.","Разборка, ремонт и сборка различных деталей и узлов санитарно-технических систем центрального отопления, водоснабжения, канализации и водостоков."]
[null,"Сверление или пробивка отверстий в конструкциях."]
[null,"Нарезка резьб на трубах вручную."]
[null,"Установка и заделка креплений под трубопроводы и приборы."]
[null,"Комплектование труб и фасонных частей стояков."]
["Должен знать:","принцип действия, назначение и особенности ремонта санитарно-технических трубопроводных систем центрального отопления, водоснабжения, канализации и водостоков;"]
[null,"виды основных деталей санитарно-технических систем, соединений труб и креплений трубопроводов;"]
[null,"способы сверления и пробивки отверстий;"]
[null,"правила обращения и транспортирования баллонов с кислородом и ацетиленом;"]
[null,"назначение и правила пользования механизированным инструментом."]

{"sheet":"ПС 16.086 B 05.3 6; 7; 8; 13","index":12,"n_rows":196,"n_cols":3,"rows_kept":196,"merged":[[0,0,0,2],[32,0,32,2],[33,0,33,2],[34,0,34,2],[89,0,89,2],[90,0,90,2],[91,0,91,2],[92,0,92,2],[93,0,93,2],[108,0,108,2],[109,0,109,2],[110,0,110,2],[111,0,111,2],[132,0,132,2],[133,0,133,2],[134,0,134,2],[135,0,135,2],[136,0,136,2],[137,0,137,2],[159,0,159,2],[160,0,177,0],[160,1,160,2],[161,1,161,2],[162,1,162,2],[163,1,163,2],[164,1,164,2],[165,1,165,2],[166,1,166,2],[167,1,167,2],[168,1,168,2],[169,1,169,2],[170,1,170,2],[171,1,171,2],[172,1,172,2],[173,1,173,2],[174,1,174,2],[175,1,175,2],[176,1,176,2],[177,1,177,2],[178,0,183,0],[178,1,178,2],[179,1,179,2],[180,1,180,2],[181,1,181,2],[182,1,182,2],[183,1,183,2],[185,0,185,2],[186,0,190,0],[186,1,186,2],[187,1,187,2],[188,1,188,2],[189,1,189,2],[190,1,190,2],[191,0,195,0],[191,1,191,2],[192,1,192,2],[193,1,193,2],[194,1,194,2],[195,1,195,2]]}
["Профстандарт 16.086 B/05.3"]
["Трудовые действия","Умения","Знания"]
["Выбор и проверка средств индивидуальной защиты в соответствии с требованиями охраны труда","Оценивать состояние основного и вспомогательного оборудования системы водоснабжения, в том числе поливочной системы и системы противопожарного водопровода","Требования охраны труда при проведении работ по подготовке домовых санитарно-технических систем и оборудования к сезонной эксплуатации"]
["Подбор и проверка материалов и инструментов в соответствии с полученным заданием","Выполнять крепление трубопроводов, приборов и оборудования","Виды, назначение, устройство, принцип работы домовых санитарно-технических систем и оборудования"]
["Выполнение консервации и расконсервации поливочной системы","Выполнять смену прокладок, набивку сальников","Виды, назначение и правила применения ручного и механизированного инструмента"]
["Выполнение ревизии запорно-регулирующей, водоразборной арматуры и внутренних пожарных кранов","Выполнять замену отдельных участков трубопроводов","Виды, назначение, устройство, принцип работы циркуляционных, повысительных и пожарных насосов"]
["Сборка фланцевых соединений","Выполнять замену фасонных частей, трапов, гидрозатворов (сифонов), ревизий","Виды, назначение, устройство, принцип работы запорно-регулирующей и водоразборной арматуры"]
["Промывка централизованных систем теплоснабжения для удаления накипно-коррозионных отложений","Выполнять перекладку канализационного выпуска","Виды, назначение, устройство, принцип работы систем отопления и водоснабжения"]
["Проведение вспомогательных работ при гидравлических и тепловых испытаниях оборудования индивидуальных тепловых пунктов и водоподкачек, узлов ввода и систем отопления","Промывать водонапорные баки, участки водопровода и системы водоснабжения в целом","Виды, назначение, устройство, принцип работы контрольно-измерительных приборов"]
["Выполнение вспомогательных работ при проведении пробных пусконаладочных работ (пробных топок)","Выполнять ремонт и замену отдельных санитарно-технических приборов","Виды, назначение, устройство, принцип работы отопительных приборов"]
["Удаление воздуха из системы отопления","Пользоваться средствами связи","Способы разметки мест установки креплений и приборов"]
["Проведение простых вспомогательных работ по очистке теплообменного оборудования для удаления накипно-коррозионных отложений",null,"Виды шаблонов для разметки отверстий при установке приборов и правила пользования ими"]
["Выполнение вспомогательных работ в ходе регулировки и технического обслуживания насосов, запорной арматуры, расширительных баков и элементов, скрытых от постоянного наблюдения (разводящих трубопроводов и оборудования на чердаках, в подвалах и каналах)",null,"Устройство и принцип действия электродвигателей, трансформаторов, сварочного оборудования"]
["Свертывание и сборка простых узлов",null,"Свойства металлов и сплавов, неметаллических материалов"]
["Установка и заделка креплений под приборы и трубопроводы",null,"Технология и техника подготовки домовых санитарно-технических систем и оборудования к сезонной эксплуатации"]
["Сверление и пробивка отверстий в конструкциях",null,"Технология и техника проведения работ по ремонту систем отопления и горячего водоснабжения"]
["Заделка раструбов чугунных трубопроводов"]
["Нарезка резьбы на трубах вручную"]
["Смена манжет у унитаза"]
["Смена прокладок кранов, вентилей"]
["Присоединение подводок к трубам с помощью фланцев (заглушек)"]
["Выполнение вспомогательных работ при подсоединении к трубопроводам отопительных приборов"]
["Соединение полимерных труб"]
["Сборка стальных труб на фланцах и с помощью накидной гайки"]
["Ремонт и замена неисправных гидрозатворов (сифонов)"]
["Мелкий ремонт и замена неисправных частей санитарно-технических приборов"]
["Ремонт и утепление наружных водоразборных кранов и колонок"]
["Утепление трубопроводов в чердачных и подвальных помещениях"]
["Консервация (расконсервация) и ремонт поливочной системы"]
["Укрепление водосточных труб, колен и воронок"]
["Информирование работника более высокого уровня квалификации при выявлении неисправностей, обнаружении дефектов или низкого качества материалов, а также работ, выполненных с отклонением от проекта или технических условий"]
[]
["ФГОС 08.01.10 МАСТЕР ЖИЛИЩНО-КОММУНАЛЬНОГО ХОЗЯЙСТВА"]
["3.4.1. Выполнение работ по эксплуатации и ремонту оборудования систем водоснабжения, водоотведения, отопления жилищно-коммунального хозяйства:"]
["ПК 1.1. Обеспечивать эксплуатацию и ремонт системы водоснабжения и водоотведения здания;"]
["Иметь практический опыт в","Уметь","Знать"]
["работах по эксплуатации зданий, сооружений, конструкций, оборудования систем водоснабжения, водоотведения, отопления зданий и сооружений, жилищно-коммунального хозяйства;","оценивать состояние рабочего места на соответствие требованиям охраны труда и полученному заданию/наряду;","требования по охране труда при проведении работ по техническому обслуживанию, ремонту и монтажу отдельных узлов оборудования систем водоснабжения, водоотведения, отопления объектов жилищно-коммунального хозяйства;"]
["совершении действий в критических ситуациях при эксплуатации зданий, сооружений, конструкций, оборудования систем водоснабжения, водоотведения, отопления, жилищно-коммунального хозяйства.","определять исправность средств индивидуальной защиты;","виды и основные правила построения чертежей, эскизов и схем систем водоснабжения, водоотведения, отопления объектов жилищно-коммунального хозяйства;"]
[null,"читать и выполнять чертежи, эскизы и схемы систем водоснабжения, водоотведения, отопления объектов жилищно-коммунального хозяйства;","виды, назначение, устройство, принципы работы домовых санитарно-технических систем и оборудования, домовых систем водоснабжения, в том числе поливочной системы и системы противопожарного водопровода, систем отопления, отопительных приборов, циркуляционных насосов, элеваторных и тепловых узлов, запорно-регулирующей и водоразборной арматуры и вспомогательного оборудования;"]
[null,"подбирать материалы, инструменты и оборудование согласно технологическому процессу и сменному заданию/наряду;","сущность и содержание технической эксплуатации оборудования систем водоснабжения, водоотведения, отопления;"]
[null,"проводить техническое обслуживание оборудования систем водоснабжения, водоотведения, отопления объектов жилищно-коммунального хозяйства;","правила рациональной эксплуатации зданий, сооружений, конструкций, оборудования систем водоснабжения, водоотведения, отопления;"]
[null,"определять признаки неисправности при эксплуатации зданий, сооружений, конструкций, оборудования систем водоснабжения, водоотведения, отопления жилищно-коммунального хозяйства;","показатели технического уровня эксплуатации оборудования систем водоснабжения, водоотведения, отопления;"]
[null,"проводить плановый осмотр зданий, сооружений, конструкций, оборудования систем водоснабжения, водоотведения, отопления жилищно-коммунального хозяйства;","виды технического обслуживания: текущее (внутрисменное) обслуживание, профилактические осмотры, периодические осмотры, надзор;"]
[null,"заполнять техническую документацию по результатам осмотра;","приемы и методы минимизации издержек на объектах жилищно-коммунального хозяйства;"]
[null,"выполнять профилактические работы, способствующие эффективной работе санитарно-технической системы, системы отопления;","основы \"бережливого производства\", повышающие качество и производительность труда на объектах жилищно-коммунального хозяйства;"]
[null,"выполнять гидравлическое испытание системы водоснабжения, в том числе поливочной системы и системы противопожарного водопровода;","состав и требования к проведению профилактических и регламентных работ в системе водоснабжения, в том числе поливочной системы и системы противопожарного водопровода, повысительных и пожарных насосов, запорно-регулирующей и водоразборной арматуры, системе водоотведения, внутренних водостоков, санитарно-технических приборов и системе отопления объектов жилищно-коммунального хозяйства;"]
[null,"подготавливать внутридомовые системы водоснабжения, отопления, в том числе поливочные системы и системы противопожарного водопровода к сезонной эксплуатации;","технологию и технику обслуживания элеваторных и тепловых узлов и вспомогательного оборудования;"]
[null,"выполнять консервацию внутридомовых систем;","виды деятельности объектов жилищно-коммунального хозяйства, оказывающие негативное влияние на окружающую среду;"]
[null,"применять ручной и механизированный инструмент по назначению и в соответствии с видом работ;","нормативную базу технической эксплуатации;"]
[null,"обнаружить с помощью приборов опасные вещества в воздухе, в воде и в грунте;","эксплуатационную техническую документацию, виды и основное содержание;"]
[null,"определять причины и устранять неисправности конструкций зданий, сооружений, оборудования систем водоснабжения, водоотведения, отопления жилищно-коммунального хозяйства;","правила заполнения технической документации;"]
[null,"проводить слесарные работы при ремонте;","основные понятия, положения и показатели, предусмотренные ГОСТами, по определению надежности оборудования систем водоснабжения, водоотведения, отопления жилищно-коммунального хозяйства, их технико-экономическое значение;"]
[null,"осуществлять ремонт санитарно-технического оборудования и системы отопления;","инженерные показатели и методы обеспечения надежности оборудования систем водоснабжения, водоотведения, отопления жилищно-коммунального хозяйства на стадиях конструирования, изготовления, эксплуатации;"]
[null,"выполнять замену участков трубопроводов, отопительных приборов и их секций, запорно-регулирующей, водоразборной арматуры, внутренних пожарных кранов, контрольно-измерительных приборов с использованием ручного и механизированного инструмента приспособлений и материалов;","основные методы, технологию измерений, средства измерений;"]
[null,"перекладывать канализационный выпуск;","классификацию, принцип действия измерительных преобразователей;"]
[null,"ремонтировать и менять гидрозатворы, санитарно-технические приборы, повысительные, пожарные и циркуляционные насосы, расширительные баки и водоподогреватели;","классификацию и назначение чувствительных элементов;"]
[null,"проводить испытания отремонтированных систем и оборудования жилищно-коммунального хозяйства;","структуру средств измерений;"]
[null,"использовать необходимые инструменты, приспособления и материалы при выполнении ремонтных работ.","понятие о государственной системе приборов;"]
[null,null,"весовые устройства;"]
[null,null,"назначение и принцип действия контрольно-измерительных приборов и аппаратов средней сложности;"]
[null,null,"оптико-механические средства измерений;"]
[null,null,"основные понятия систем автоматического управления и регулирования;"]
[null,null,"основные этапы профилактических работ;"]
[null,null,"способы и средства выполнения профилактических работ;"]
[null,null,"правила применения универсальных и специальных приспособлений и контрольно-измерительного инструмента;"]
[null,null,"влияние температуры на точность измерений;"]
[null,null,"методы и средства испытаний;"]
[null,null,"технические документы на испытание и готовность к работе сооружений, конструкций, оборудования систем водоснабжения, водоотведения, отопления жилищно-коммунального хозяйства;"]
[null,null,"сущность, назначение и содержание технического обслуживания и ремонта зданий, сооружений, конструкций жилищно-коммунального хозяйства;"]
[null,null,"сущность, назначение и содержание ремонта и монтажа отдельных узлов и оборудования систем водоснабжения, водоотведения, отопления объектов жилищно-коммунального хозяйства;"]
[null,null,"методы и приемы расчета необходимых материалов и оборудования при ремонте и монтаже отдельных узлов систем водоснабжения, водоотведения, отопления;"]
[null,null,"нормативно-техническую документацию;"]
[null,null,"ремонтную базу жилищно-коммунального хозяйства;"]
[null,null,"основы слесарного дела;"]
[null,null,"санитарно-техническую систему здания;"]
[null,null,"отопительную систему здания;"]
[null,null,"виды ремонта оборудования: текущий, капитальный (объем, периодичность, продолжительность, трудоемкость, количество);"]
[null,null,"формы организации ремонтных служб (децентрализованная, централизованная, смешанная);"]
[null,null,"формы подготовки ремонта (конструкторская, технологическая, материально-техническая, организационная);"]
[null,null,"применение контрольно-диагностической аппаратуры;"]
[null,null,"ремонтную документацию;"]
[null,null,"методы проведения ремонта;"]
[null,null,"общие принципы технологии ремонта;"]
[null,null,"технические документы на испытание и готовность к работе оборудования систем водоснабжения, водоотведения, отопления объектов жилищно-коммунального хозяйства;"]
[null,null,"предъявляемые требования готовности к проведению испытания отопительной системы;"]
[null,null,"порядок сдачи после ремонта и испытаний оборудования систем водоснабжения, водоотведения, отопления объектов жилищно-коммунального хозяйства;"]
[null,null,"устройство и правила эксплуатации применяемых инструментов, приспособлений;"]
[null,null,"компьютерные системы управления обслуживанием и ремонтом."]
[]
["ФГОС 08.01.14 МОНТАЖНИК САНИТАРНО-ТЕХНИЧЕСКИХ, ВЕНТИЛЯЦИОННЫХ СИСТЕМ И ОБОРУДОВАНИЯ"]
["3.4.1. Выполнение работ по монтажу систем отопления, водоснабжения, водоотведения и газоснабжения:"]
["ПК 1.1. Выполнять подготовительные работы при монтаже систем отопления, водоснабжения, водоотведения и газоснабжения;"]
["ПК 1.2. Осуществлять подбор и проверку оборудования, инструмента, приспособлений и фасонных частей, необходимых при выполнении монтажа систем отопления, водоснабжения, водоотведения и газоснабжения;"]
["ПК 1.3. Осуществлять монтаж систем отопления водоснабжения, водоотведения и газоснабжения в соответствии с требованиями нормативно-технической документации."]
["Иметь практический опыт в","Уметь","Знать"]
["подготовке инструмента, оборудования, узлов и деталей к монтажу систем отопления, водоснабжения, водоотведения и газоснабжения в соответствии с проектом производства работ;","использовать сопроводительную документацию для проверки комплектности и качества санитарно-технических инструментов и оборудования;","виды и назначение санитарно-технических материалов, арматуры и оборудования;"]
["выполнении подготовительных работ при монтаже и ремонте систем отопления, водоснабжения, водоотведения и газоснабжения;","изучать и использовать при монтаже санитарно-технических систем проектную и техническую документацию;","виды и назначение основной проектной и технической документации для производства монтажных работ;"]
["выполнении работ средней сложности при монтаже и ремонте внутренних систем отопления, водоснабжения, водоотведения и газоснабжения;","выполнять слесарные операции при монтаже и ремонте санитарно-технических систем;","правила выполнения слесарных работ при монтаже и ремонте санитарно-технических систем;"]
["выполнении работ средней сложности при монтаже и ремонте наружных систем отопления, водоснабжения, водоотведения и газоснабжения.","использовать ручной и механизированный инструмент и приспособления при монтаже санитарно-технических систем и оборудования;","назначение и правила применения ручного и механизированного инструмента и приспособлений, необходимых при монтаже санитарно-технических систем и оборудования;"]
[null,"разбирать, ремонтировать и собирать детали и узлы систем отопления, водоснабжения, канализации, газоснабжения и водостоков;","назначение, устройство и принцип действия систем отопления, водоснабжения, водоотведения и газоснабжения;"]
[null,"соединять трубопроводы систем отопления, водоснабжения, канализации, газоснабжения и водостоков;","технологию и последовательность подготовительных и монтажных работ наружных сетей систем отопления, водоснабжения, водоотведения и газоснабжения;"]
[null,"выполнять укрупненную сборку узлов внутренних санитарно-технических систем;","технологию, последовательность подготовительных работ и особенности монтажа оборудования и трубопроводов внутренних систем отопления, водоснабжения, водоотведения и газоснабжения;"]
[null,"выполнять установку и крепление санитарно-технического оборудования и трубопроводов;","правила проведения испытаний оборудования и трубопроводов;"]
[null,"соблюдать требования охраны труда, пожарной экологической безопасности при выполнении работ;","правила безопасной эксплуатации монтажного оборудования;"]
[null,"проводить ревизию и испытания санитарно-технической арматуры;","санитарные нормы и правила проведения монтажных работ;"]
[null,"проводить испытания смонтированных санитарно-технических систем;","требования охраны труда."]
[null,"соблюдать требования охраны труда, пожарной и экологической безопасности при выполнении работ."]
[]
["08.01.26 МАСТЕР ПО РЕМОНТУ И ОБСЛУЖИВАНИЮ ИНЖЕНЕРНЫХ СИСТЕМ ЖИЛИЩНО-КОММУНАЛЬНОГО ХОЗЯЙСТВА"]
["3.4.1. Поддержание рабочего состояния оборудования систем водоснабжения, водоотведения, отопления объектов жилищно-коммунального хозяйства:\n"]
["ПК 1.1. Осуществлять техническое обслуживание в соответствии с заданием (нарядом) системы водоснабжения, водоотведения, отопления объектов жилищно-коммунального хозяйства."]
["ПК 1.2. Проводить ремонт и монтаж отдельных узлов системы водоснабжения, водоотведения."]
["Иметь практический опыт в","Уметь","Знать"]
["техническом обслуживании в соответствии с заданием/нарядом системы водоснабжения, водоотведения, отопления объектов жилищно-коммунального хозяйства;","оценивать состояние рабочего места на соответствие требованиям охраны труда и полученному заданию/наряду;","требования по охране труда при проведении работ по техническому обслуживанию, ремонту и монтажу отдельных узлов оборудования систем водоснабжения, водоотведения, отопления объектов жилищно-коммунального хозяйства;"]
["ремонте и монтаже отдельных узлов системы водоснабжения, водоотведения;","определять исправность средств индивидуальной защиты;","виды и основные правила построения чертежей, эскизов и схем систем водоснабжения, водоотведения, отопления объектов жилищно-коммунального хозяйства;"]
["ремонте и монтаже отдельных узлов системы отопления","читать и выполнять чертежи, эскизы и схемы систем водоснабжения, водоотведения, отопления объектов жилищно-коммунального хозяйства;","правила чтения технической и конструкторско-технологической документации;"]
[null,"подбирать материалы, инструменты и оборудование согласно технологическому процессу и сменному заданию/наряду;","правила заполнения технической документации;"]
[null,"проводить техническое обслуживание оборудования систем водоснабжения, водоотведения, отопления объектов жилищно-коммунального хозяйства;","сущности и содержания технической эксплуатации оборудования систем водоснабжения, водоотведения, отопления объектов жилищно-коммунального хозяйства;"]
[null,"заполнять техническую документацию по результатам осмотра;","виды деятельности объектов жилищно-коммунального хозяйства, оказывающих негативное влияние на окружающую среду;"]
[null,"выполнять расчет необходимых материалов и оборудования при ремонте и монтаже отдельных узлов систем водоснабжения, водоотведения, отопления объектов жилищно-коммунального хозяйства;","виды, назначение, устройство, принципы работы домовых санитарно-технических систем и оборудования, домовых системы водоснабжения, в том числе поливочной системы и системы противопожарного водопровода, систем отопления, отопительных приборов, циркуляционных насосов, элеваторных и тепловых узлов, запорно-регулирующей и водоразборной арматуры и вспомогательного оборудования;"]
[null,"использовать инструменты, при выполнении ремонтных работ;","технологию техники обслуживания домовых санитарно-технических систем и оборудования;"]
[null,"устранять неисправности санитарно-технических систем и оборудования;","виды, назначение и принципы работы систем контроля технического состояния оборудования объектов жилищно-коммунального хозяйства;"]
[null,"проводить испытания отремонтированных систем и оборудования водоснабжения, водоотведения, отопления объектов жилищно-коммунального хозяйства;","основные понятия систем автоматического управления и регулирования;"]
[null,"подготавливать внутридомовые системы водоснабжения, отопления, в том числе поливочной системы и системы противопожарного водопровода к сезонной эксплуатации;","назначение и принципы действия контрольно-измерительных приборов и аппаратов;"]
[null,"выполнять консервацию внутридомовых систем.","правила применения контрольно-диагностической аппаратуры;"]
[null,null,"правила применения универсальных и специальных приспособлений и контрольно-измерительного инструмента;"]
[null,null,"сущность и содержание ремонта и монтажа систем водоснабжения, водоотведения, отопления объектов жилищно-коммунального хозяйства;"]
[null,null,"подготовку внутридомовой системы отопления, системы холодного водоснабжения, в том числе поливочной системы и системы противопожарного водопровода к сезонной эксплуатации, опрессовки системы отопления;"]
[null,null,"порядок обслуживания элеваторных и тепловых узлов и вспомогательного оборудования;"]
[null,null,"технические документы на испытание и готовность к работе оборудования систем водоснабжения, водоотведения, отопления объектов жилищно-коммунального хозяйства;"]
[null,null,"порядок сдачи после ремонта и испытаний оборудования систем водоснабжения, водоотведения, отопления объектов жилищно-коммунального хозяйства."]
[]
["ФГОС 08.02.07 МОНТАЖ И ЭКСПЛУАТАЦИЯ ВНУТРЕННИХ САНТЕХНИЧЕСКИХ УСТРОЙСТВ, КОНДИЦИОНИРОВАНИЯ ВОЗДУХА И ВЕНТИЛЯЦИИ"]
["3.4.1. Организация и контроль работ по монтажу систем водоснабжения и водоотведения, отопления, вентиляции и кондиционирования воздуха:"]
["ПК 1.1. Организовывать и выполнять подготовку систем и объектов к монтажу;"]
["ПК 1.2. Организовывать и выполнять монтаж систем водоснабжения и водоотведения, отопления, вентиляции и кондиционирования воздуха;"]
["ПК 1.3. Организовывать и выполнять производственный контроль качества монтажных работ;"]
["ПК 1.4. Выполнять пусконаладочные работы систем водоснабжения и водоотведения, отопления, вентиляции и кондиционирование воздуха;"]
["Иметь практический опыт в","Уметь","Знать"]
["организации и выполнении монтажа систем водоснабжения и водоотведения, отопления, вентиляции и кондиционирования воздуха;","использовать сопроводительную документацию для проверки комплектности и качества изготовления оборудования санитарно-технических систем, вентиляции и кондиционирования воздуха;","классификацию систем водоснабжения и водоотведения, отопления, вентиляции и кондиционирования воздуха;"]
["выполнении пусконаладочных работ систем водоснабжения и водоотведения, отопления, вентиляции и кондиционирования воздуха.","читать и разрабатывать монтажные чертежи систем водоснабжения и водоотведения, отопления, вентиляции и кондиционирования воздуха;","назначение и правила применения ручных инструментов и приспособлений, необходимых при монтаже систем водоснабжения и водоотведения, отопления, вентиляции и кондиционирования воздуха;"]
[null,"составлять ведомости выявленных дефектов (для поставщика оборудования) с целью их устранения;","состав комплекта технической документации и комплектность оборудования и материалов;"]
[null,"оформлять техническую документацию по результатам испытаний;","проектную и нормативную документацию в области монтажа и испытаний систем водоснабжения и водоотведения, отопления, вентиляции и кондиционирования воздуха;"]
[null,"проводить регулирование смонтированных сантехнических систем, вентиляции и кондиционирования воздуха для достижения проектных и паспортных характеристик;","технологию изготовления узлов и деталей трубопроводов и воздуховодов из различных материалов;"]
[null,"руководить работниками в рамках подразделения при выполнении работ по монтажу систем водоснабжения и водоотведения, отопления, вентиляции и кондиционирования воздуха;","технологию сборки монтажных узлов и требования к качеству их изготовления;"]
[null,"производить измерение производительности и давления вентилятора в характерных точках системы;","основы монтажного проектирования;"]
[null,"пользоваться контрольно-измерительными приборами.","правила по охране труда при подготовке оборудования, узлов и деталей к монтажу в соответствии с проектом производства работ;"]
[null,null,"правила по охране труда при монтаже систем вентиляции и кондиционирования воздуха;"]
[null,null,"технологию монтажных работ систем вентиляции;"]
[null,null,"проектную и нормативную документацию по монтажу систем кондиционирования;"]
[null,null,"способы соединения медных труб;"]
[null,null,"методы проведения измерений гидравлических и аэродинамических характеристик монтируемой системы;"]
[null,null,"принципы работы измерительных приборов и правила пуска и регулирования отдельных элементов и системы в целом;"]
[null,null,"принципы работы монтируемых систем и их элементов;"]
[null,null,"методику проведения регулирования смонтированных систем и отдельных элементов;"]
[null,null,"теплоизоляционный материал и способы работы с ним;"]
[null,null,"правила пайки твердым припоем;"]
[null,null,"особенности менеджмента в соответствующей области профессиональной деятельности."]
[]
["ЕТКС работ и профессий рабочих. Выпуск 3. § 201. Монтажник санитарно-технических систем и оборудования 3-го разряда"]
["Характеристика работ.","Выполнение простых работ при монтаже и ремонте систем центрального отопления, водоснабжения, канализации, газоснабжения и водостоков."]
[null,"Свертывание и сборка простых узлов."]
[null,"Сборка фланцевых соединений."]
[null,"Разборка отдельных узлов трубопроводов (при монтаже)."]
[null,"Установка и заделка креплений под приборы и трубопроводы."]
[null,"Сверление или пробивка отверстий в конструкциях."]
[null,"Заделка раструбов чугунных трубопроводов."]
[null,"Нарезка резьбы на трубах вручную."]
[null,"Комплектование труб и фасонных частей стояков."]
[null,"Установка ручного пресса для опрессовки систем."]
[null,"Отсоединение чугунных котлов от трубопроводов."]
[null,"Обрубка кромок швов жаротрубного котла для последующей подварки."]
[null,"Очистка секций чугунного котла снаружи и изнутри с промывкой."]
[null,"Срубка заклепок жаротрубного котла с выбиванием их."]
[null,"Смена манжет у унитаза."]
[null,"Зачистка сварных швов шлифмашинкой."]
[null,"Прокачка канализационных стояков и отводов."]
[null,"Смена прокладок кранов, вентилей."]
["Должен знать:","виды основных деталей санитарно-технических систем, соединений труб и креплений трубопроводов; "]
[null,"назначение, устройство и особенности монтажа внутренних систем центрального отопления, водоснабжения, канализации, газоснабжения и водостоков;"]
[null,"способы сверления и пробивки отверстий;"]
[null,"правила транспортировки баллонов с кислородом и ацетиленом;"]
[null,"правила техники безопасности при транспортировке баллонов;"]
[null,"правила пользования механизированным инструментом."]
[]
["ЕТКС работ и профессий рабочих. Выпуск 2. Часть 2. § 161. Слесарь-сантехник 3-го разряда"]
["Характеристика работ.","Разборка, ремонт и сборка различных деталей и узлов санитарно-технических систем центрального отопления, водоснабжения, канализации и водостоков."]
[null,"Сверление или пробивка отверстий в конструкциях."]
[null,"Нарезка резьб на трубах вручную."]
[null,"Установка и заделка креплений под трубопроводы и приборы."]
[null,"Комплектование труб и фасонных частей стояков."]
["Должен знать:","принцип действия, назначение и особенности ремонта санитарно-технических трубопроводных систем центрального отопления, водоснабжения, канализации и водостоков;"]
[null,"виды основных деталей санитарно-технических систем, соединений труб и креплений трубопроводов;"]
[null,"способы сверления и пробивки отверстий;"]
[null,"правила обращения и транспортирования баллонов с кислородом и ацетиленом;"]
[null,"назначение и правила пользования механизированным инструментом."]

{"sheet":"ПС16.089 B 01.3 9; 10; 13","index":13,"n_rows":192,"n_cols":3,"rows_kept":192,"merged":[[0,0,0,2],[28,0,28,2],[29,0,29,2],[30,0,30,2],[85,0,85,2],[86,0,86,2],[87,0,87,2],[88,0,88,2],[89,0,89,2],[104,0,104,2],[105,0,105,2],[106,0,106,2],[107,0,107,2],[128,0,128,2],[129,0,129,2],[130,0,130,2],[131,0,131,2],[132,0,132,2],[133,0,133,2],[154,0,154,2],[155,0,155,2],[156,0,173,0],[156,1,156,2],[157,1,157,2],[158,1,158,2],[159,1,159,2],[160,1,160,2],[161,1,161,2],[162,1,162,2],[163,1,163,2],[164,1,164,2],[165,1,165,2],[166,1,166,2],[167,1,167,2],[168,1,168,2],[169,1,169,2],[170,1,170,2],[171,1,171,2],[172,1,172,2],[173,1,173,2],[174,0,179,0],[174,1,174,2],[175,1,175,2],[176,1,176,2],[177,1,177,2],[178,1,178,2],[179,1,179,2],[181,0,181,2],[182,0,186,0],[182,1,182,2],[183,1,183,2],[184,1,184,2],[185,1,185,2],[186,1,186,2],[187,0,191,0],[187,1,187,2],[188,1,188,2],[189,1,189,2],[190,1,190,2],[191,1,191,2],[192,0,192,2],[193,0,193,2],[194,0,194,2],[195,0,195,2],[196,0,196,2]]}
["Профстандарт 16.089 B/01.3"]
["Трудовые действия","Умения","Знания"]
["Монтаж емкостных и секционных водоподогревателей (бойлеров)","Использовать проектную и нормативную техническую документацию в области монтажа систем отопления","Назначение каждого вида оборудования, основных деталей и узлов системы отопления"]
["Монтаж воздухонагревателей, воздушно-отопительных агрегатов","Читать монтажные чертежи систем отопления","Системы разводок от стояков"]
["Монтаж насосов и насосных агрегатов","Разбирать, ремонтировать и собирать средней сложности детали и узлы систем отопления и тепловых пунктов","Технология работ по монтажу систем отопления"]
["Установка грязевиков и водяных фильтров","Размечать места установки приборов и крепления систем отопления","Устройство и способы монтажа и ремонта трубопроводных систем из стальных, медных, латунных, полимерных, металлополимерных, нержавеющих и оцинкованных труб"]
["Установка узлов учета тепловой энергии и теплоносителя","Группировать и догруппировывать секционные радиаторы на месте монтажа и ремонта","Правила установки санитарных и отопительных приборов"]
["Монтаж трубопроводов и запорно-регулирующей арматуры диаметром до 400 мм","Соединять трубопроводы систем отопления","Способы разметки мест установки приборов и крепления"]
["Разметка мест установки отопительных приборов, насосов, прохода трубопроводов, смесительных установок систем водяного отопления, средств креплений","Крепить детали и приборы систем отопления при помощи монтажных пистолетов","Виды шаблонов для разметки отверстий при установке приборов и правила пользования ими"]
["Крепление кронштейнов, радиаторных планок","Выявлять дефектные места при испытании трубопроводов","Устройство монтажных поршневых пистолетов и правила работы с ними"]
["Монтаж отопительных приборов (радиаторов, конвекторов)","Использовать ручной, механизированный и измерительный инструмент для монтажа систем отопления","Способы выявления дефектных мест при испытании трубопроводов"]
["Монтаж солнечных коллекторов","Использовать графические компьютерные программы и комплексы при монтаже систем отопления","Назначение и правила применения ручных и механизированных инструментов и приспособлений, необходимых при монтаже систем отопления"]
["Прокладка стояков отопления и подводок","Подбирать инструмент согласно технологическому процессу монтажа систем отопления","Правила применения средств индивидуальной защиты при монтаже систем отопления"]
["Присоединение подводок к трубам с помощью фланцев (заглушек)","Выполнять работы по монтажу систем отопления с соблюдением требований охраны труда, пожарной и экологической безопасности","Требования, предъявляемые к качеству выполняемых работ"]
["Подсоединение к трубопроводам отопительных приборов",null,"Основы и правила программирования электронных блоков управления систем отопления (типа \"умный дом\")"]
["Установка закрытых расширительных баков",null,"Правила рациональной организации труда на рабочем месте"]
["Установка и покрытие тепловой изоляцией открытых расширительных баков",null,"Санитарные нормы и правила проведения работ по монтажу систем отопления"]
["Установка воздухосборников",null,"Правила технической эксплуатации тепловых энергоустановок"]
["Установка контрольно-измерительных приборов и предохранительных устройств",null,"Способы и технологии гибки труб"]
["Монтаж смесительных установок систем водяного отопления",null,"Назначение и правила использования контрольно-измерительного инструмента при монтаже систем отопления"]
["Присоединение смесительных установок систем водяного отопления к тепловой сети и разводящей магистрали",null,"Основные принципы гидравлики; основные химические свойства воды"]
["Крепление деталей и приборов с помощью монтажных поршневых пистолетов",null,"Виды контрольно-измерительных приборов и средств, применяемых при монтаже систем отопления"]
["Гибка элементов трубопроводов по заданным размерам",null,"Виды первой помощи и принципы ее оказания"]
["Замена отдельных секций и отопительных приборов",null,"Виды и предназначение общестроительных работ"]
["Монтаж и укладка системы теплого пола",null,"Нормативные технические документы по монтажу систем отопления"]
["Балансировка системы отопления",null,"Требования охраны труда при эксплуатации теплопотребляющих установок и тепловых сетей потребителей"]
["Проверка и сдача в эксплуатацию санитарно-технического, насосного и котельного оборудования"]
[]
["ФГОС 08.01.10 МАСТЕР ЖИЛИЩНО-КОММУНАЛЬНОГО ХОЗЯЙСТВА"]
["3.4.1. Выполнение работ по эксплуатации и ремонту оборудования систем водоснабжения, водоотведения, отопления жилищно-коммунального хозяйства:"]
["ПК 1.2. Обеспечивать эксплуатацию и ремонт системы отопления здания."]
["Иметь практический опыт в","Уметь","Знать"]
["работах по эксплуатации зданий, сооружений, конструкций, оборудования систем водоснабжения, водоотведения, отопления зданий и сооружений, жилищно-коммунального хозяйства;","оценивать состояние рабочего места на соответствие требованиям охраны труда и полученному заданию/наряду;","требования по охране труда при проведении работ по техническому обслуживанию, ремонту и монтажу отдельных узлов оборудования систем водоснабжения, водоотведения, отопления объектов жилищно-коммунального хозяйства;"]
["совершении действий в критических ситуациях при эксплуатации зданий, сооружений, конструкций, оборудования систем водоснабжения, водоотведения, отопления, жилищно-коммунального хозяйства.","определять исправность средств индивидуальной защиты;","виды и основные правила построения чертежей, эскизов и схем систем водоснабжения, водоотведения, отопления объектов жилищно-коммунального хозяйства;"]
[null,"читать и выполнять чертежи, эскизы и схемы систем водоснабжения, водоотведения, отопления объектов жилищно-коммунального хозяйства;","виды, назначение, устройство, принципы работы домовых санитарно-технических систем и оборудования, домовых систем водоснабжения, в том числе поливочной системы и системы противопожарного водопровода, систем отопления, отопительных приборов, циркуляционных насосов, элеваторных и тепловых узлов, запорно-регулирующей и водоразборной арматуры и вспомогательного оборудования;"]
[null,"подбирать материалы, инструменты и оборудование согласно технологическому процессу и сменному заданию/наряду;","сущность и содержание технической эксплуатации оборудования систем водоснабжения, водоотведения, отопления;"]
[null,"проводить техническое обслуживание оборудования систем водоснабжения, водоотведения, отопления объектов жилищно-коммунального хозяйства;","правила рациональной эксплуатации зданий, сооружений, конструкций, оборудования систем водоснабжения, водоотведения, отопления;"]
[null,"определять признаки неисправности при эксплуатации зданий, сооружений, конструкций, оборудования систем водоснабжения, водоотведения, отопления жилищно-коммунального хозяйства;","показатели технического уровня эксплуатации оборудования систем водоснабжения, водоотведения, отопления;"]
[null,"проводить плановый осмотр зданий, сооружений, конструкций, оборудования систем водоснабжения, водоотведения, отопления жилищно-коммунального хозяйства;","виды технического обслуживания: текущее (внутрисменное) обслуживание, профилактические осмотры, периодические осмотры, надзор;"]
[null,"заполнять техническую документацию по результатам осмотра;","приемы и методы минимизации издержек на объектах жилищно-коммунального хозяйства;"]
[null,"выполнять профилактические работы, способствующие эффективной работе санитарно-технической системы, системы отопления;","основы \"бережливого производства\", повышающие качество и производительность труда на объектах жилищно-коммунального хозяйства;"]
[null,"выполнять гидравлическое испытание системы водоснабжения, в том числе поливочной системы и системы противопожарного водопровода;","состав и требования к проведению профилактических и регламентных работ в системе водоснабжения, в том числе поливочной системы и системы противопожарного водопровода, повысительных и пожарных насосов, запорно-регулирующей и водоразборной арматуры, системе водоотведения, внутренних водостоков, санитарно-технических приборов и системе отопления объектов жилищно-коммунального хозяйства;"]
[null,"подготавливать внутридомовые системы водоснабжения, отопления, в том числе поливочные системы и системы противопожарного водопровода к сезонной эксплуатации;","технологию и технику обслуживания элеваторных и тепловых узлов и вспомогательного оборудования;"]
[null,"выполнять консервацию внутридомовых систем;","виды деятельности объектов жилищно-коммунального хозяйства, оказывающие негативное влияние на окружающую среду;"]
[null,"применять ручной и механизированный инструмент по назначению и в соответствии с видом работ;","нормативную базу технической эксплуатации;"]
[null,"обнаружить с помощью приборов опасные вещества в воздухе, в воде и в грунте;","эксплуатационную техническую документацию, виды и основное содержание;"]
[null,"определять причины и устранять неисправности конструкций зданий, сооружений, оборудования систем водоснабжения, водоотведения, отопления жилищно-коммунального хозяйства;","правила заполнения технической документации;"]
[null,"проводить слесарные работы при ремонте;","основные понятия, положения и показатели, предусмотренные ГОСТами, по определению надежности оборудования систем водоснабжения, водоотведения, отопления жилищно-коммунального хозяйства, их технико-экономическое значение;"]
[null,"осуществлять ремонт санитарно-технического оборудования и системы отопления;","инженерные показатели и методы обеспечения надежности оборудования систем водоснабжения, водоотведения, отопления жилищно-коммунального хозяйства на стадиях конструирования, изготовления, эксплуатации;"]
[null,"выполнять замену участков трубопроводов, отопительных приборов и их секций, запорно-регулирующей, водоразборной арматуры, внутренних пожарных кранов, контрольно-измерительных приборов с использованием ручного и механизированного инструмента приспособлений и материалов;","основные методы, технологию измерений, средства измерений;"]
[null,"перекладывать канализационный выпуск;","классификацию, принцип действия измерительных преобразователей;"]
[null,"ремонтировать и менять гидрозатворы, санитарно-технические приборы, повысительные, пожарные и циркуляционные насосы, расширительные баки и водоподогреватели;","классификацию и назначение чувствительных элементов;"]
[null,"проводить испытания отремонтированных систем и оборудования жилищно-коммунального хозяйства;","структуру средств измерений;"]
[null,"использовать необходимые инструменты, приспособления и материалы при выполнении ремонтных работ.","понятие о государственной системе приборов;"]
[null,null,"весовые устройства;"]
[null,null,"назначение и принцип действия контрольно-измерительных приборов и аппаратов средней сложности;"]
[null,null,"оптико-механические средства измерений;"]
[null,null,"основные понятия систем автоматического управления и регулирования;"]
[null,null,"основные этапы профилактических работ;"]
[null,null,"способы и средства выполнения профилактических работ;"]
[null,null,"правила применения универсальных и специальных приспособлений и контрольно-измерительного инструмента;"]
[null,null,"влияние температуры на точность измерений;"]
[null,null,"методы и средства испытаний;"]
[null,null,"технические документы на испытание и готовность к работе сооружений, конструкций, оборудования систем водоснабжения, водоотведения, отопления жилищно-коммунального хозяйства;"]
[null,null,"сущность, назначение и содержание технического обслуживания и ремонта зданий, сооружений, конструкций жилищно-коммунального хозяйства;"]
[null,null,"сущность, назначение и содержание ремонта и монтажа отдельных узлов и оборудования систем водоснабжения, водоотведения, отопления объектов жилищно-коммунального хозяйства;"]
[null,null,"методы и приемы расчета необходимых материалов и оборудования при ремонте и монтаже отдельных узлов систем водоснабжения, водоотведения, отопления;"]
[null,null,"нормативно-техническую документацию;"]
[null,null,"ремонтную базу жилищно-коммунального хозяйства;"]
[null,null,"основы слесарного дела;"]
[null,null,"санитарно-техническую систему здания;"]
[null,null,"отопительную систему здания;"]
[null,null,"виды ремонта оборудования: текущий, капитальный (объем, периодичность, продолжительность, трудоемкость, количество);"]
[null,null,"формы организации ремонтных служб (децентрализованная, централизованная, смешанная);"]
[null,null,"формы подготовки ремонта (конструкторская, технологическая, материально-техническая, организационная);"]
[null,null,"применение контрольно-диагностической аппаратуры;"]
[null,null,"ремонтную документацию;"]
[null,null,"методы проведения ремонта;"]
[null,null,"общие принципы технологии ремонта;"]
[null,null,"технические документы на испытание и готовность к работе оборудования систем водоснабжения, водоотведения, отопления объектов жилищно-коммунального хозяйства;"]
[null,null,"предъявляемые требования готовности к проведению испытания отопительной системы;"]
[null,null,"порядок сдачи после ремонта и испытаний оборудования систем водоснабжения, водоотведения, отопления объектов жилищно-коммунального хозяйства;"]
[null,null,"устройство и правила эксплуатации применяемых инструментов, приспособлений;"]
[null,null,"компьютерные системы управления обслуживанием и ремонтом."]
[]
["ФГОС 08.01.14 МОНТАЖНИК САНИТАРНО-ТЕХНИЧЕСКИХ, ВЕНТИЛЯЦИОННЫХ СИСТЕМ И ОБОРУДОВАНИЯ"]
["3.4.1. Выполнение работ по монтажу систем отопления, водоснабжения, водоотведения и газоснабжения:"]
["ПК 1.1. Выполнять подготовительные работы при монтаже систем отопления, водоснабжения, водоотведения и газоснабжения;"]
["ПК 1.2. Осуществлять подбор и проверку оборудования, инструмента, приспособлений и фасонных частей, необходимых при выполнении монтажа систем отопления, водоснабжения, водоотведения и газоснабжения;"]
["ПК 1.3. Осуществлять монтаж систем отопления водоснабжения, водоотведения и газоснабжения в соответствии с требованиями нормативно-технической документации."]
["Иметь практический опыт в","Уметь","Знать"]
["подготовке инструмента, оборудования, узлов и деталей к монтажу систем отопления, водоснабжения, водоотведения и газоснабжения в соответствии с проектом производства работ;","использовать сопроводительную документацию для проверки комплектности и качества санитарно-технических инструментов и оборудования;","виды и назначение санитарно-технических материалов, арматуры и оборудования;"]
["выполнении подготовительных работ при монтаже и ремонте систем отопления, водоснабжения, водоотведения и газоснабжения;","изучать и использовать при монтаже санитарно-технических систем проектную и техническую документацию;","виды и назначение основной проектной и технической документации для производства монтажных работ;"]
["выполнении работ средней сложности при монтаже и ремонте внутренних систем отопления, водоснабжения, водоотведения и газоснабжения;","выполнять слесарные операции при монтаже и ремонте санитарно-технических систем;","правила выполнения слесарных работ при монтаже и ремонте санитарно-технических систем;"]
["выполнении работ средней сложности при монтаже и ремонте наружных систем отопления, водоснабжения, водоотведения и газоснабжения.","использовать ручной и механизированный инструмент и приспособления при монтаже санитарно-технических систем и оборудования;","назначение и правила применения ручного и механизированного инструмента и приспособлений, необходимых при монтаже санитарно-технических систем и оборудования;"]
[null,"разбирать, ремонтировать и собирать детали и узлы систем отопления, водоснабжения, канализации, газоснабжения и водостоков;","назначение, устройство и принцип действия систем отопления, водоснабжения, водоотведения и газоснабжения;"]
[null,"соединять трубопроводы систем отопления, водоснабжения, канализации, газоснабжения и водостоков;","технологию и последовательность подготовительных и монтажных работ наружных сетей систем отопления, водоснабжения, водоотведения и газоснабжения;"]
[null,"выполнять укрупненную сборку узлов внутренних санитарно-технических систем;","технологию, последовательность подготовительных работ и особенности монтажа оборудования и трубопроводов внутренних систем отопления, водоснабжения, водоотведения и газоснабжения;"]
[null,"выполнять установку и крепление санитарно-технического оборудования и трубопроводов;","правила проведения испытаний оборудования и трубопроводов;"]
[null,"соблюдать требования охраны труда, пожарной экологической безопасности при выполнении работ;","правила безопасной эксплуатации монтажного оборудования;"]
[null,"проводить ревизию и испытания санитарно-технической арматуры;","санитарные нормы и правила проведения монтажных работ;"]
[null,"проводить испытания смонтированных санитарно-технических систем;","требования охраны труда."]
[null,"соблюдать требования охраны труда, пожарной и экологической безопасности при выполнении работ."]
[]
["08.01.26 МАСТЕР ПО РЕМОНТУ И ОБСЛУЖИВАНИЮ ИНЖЕНЕРНЫХ СИСТЕМ ЖИЛИЩНО-КОММУНАЛЬНОГО ХОЗЯЙСТВА"]
["3.4.1. Поддержание рабочего состояния оборудования систем водоснабжения, водоотведения, отопления объектов жилищно-коммунального хозяйства:\n"]
["ПК 1.1. Осуществлять техническое обслуживание в соответствии с заданием (нарядом) системы водоснабжения, водоотведения, отопления объектов жилищно-коммунального хозяйства."]
["ПК 1.3. Проводить ремонт и монтаж отдельных узлов системы отопления."]
["Иметь практический опыт в","Уметь","Знать"]
["техническом обслуживании в соответствии с заданием/нарядом системы водоснабжения, водоотведения, отопления объектов жилищно-коммунального хозяйства;","оценивать состояние рабочего места на соответствие требованиям охраны труда и полученному заданию/наряду;","требования по охране труда при проведении работ по техническому обслуживанию, ремонту и монтажу отдельных узлов оборудования систем водоснабжения, водоотведения, отопления объектов жилищно-коммунального хозяйства;"]
["ремонте и монтаже отдельных узлов системы водоснабжения, водоотведения;","определять исправность средств индивидуальной защиты;","виды и основные правила построения чертежей, эскизов и схем систем водоснабжения, водоотведения, отопления объектов жилищно-коммунального хозяйства;"]
["ремонте и монтаже отдельных узлов системы отопления","читать и выполнять чертежи, эскизы и схемы систем водоснабжения, водоотведения, отопления объектов жилищно-коммунального хозяйства;","правила чтения технической и конструкторско-технологической документации;"]
[null,"подбирать материалы, инструменты и оборудование согласно технологическому процессу и сменному заданию/наряду;","правила заполнения технической документации;"]
[null,"проводить техническое обслуживание оборудования систем водоснабжения, водоотведения, отопления объектов жилищно-коммунального хозяйства;","сущности и содержания технической эксплуатации оборудования систем водоснабжения, водоотведения, отопления объектов жилищно-коммунального хозяйства;"]
[null,"заполнять техническую документацию по результатам осмотра;","виды деятельности объектов жилищно-коммунального хозяйства, оказывающих негативное влияние на окружающую среду;"]
[null,"выполнять расчет необходимых материалов и оборудования при ремонте и монтаже отдельных узлов систем водоснабжения, водоотведения, отопления объектов жилищно-коммунального хозяйства;","виды, назначение, устройство, принципы работы домовых санитарно-технических систем и оборудования, домовых системы водоснабжения, в том числе поливочной системы и системы противопожарного водопровода, систем отопления, отопительных приборов, циркуляционных насосов, элеваторных и тепловых узлов, запорно-регулирующей и водоразборной арматуры и вспомогательного оборудования;"]
[null,"использовать инструменты, при выполнении ремонтных работ;","технологию техники обслуживания домовых санитарно-технических систем и оборудования;"]
[null,"устранять неисправности санитарно-технических систем и оборудования;","виды, назначение и принципы работы систем контроля технического состояния оборудования объектов жилищно-коммунального хозяйства;"]
[null,"проводить испытания отремонтированных систем и оборудования водоснабжения, водоотведения, отопления объектов жилищно-коммунального хозяйства;","основные понятия систем автоматического управления и регулирования;"]
[null,"подготавливать внутридомовые системы водоснабжения, отопления, в том числе поливочной системы и системы противопожарного водопровода к сезонной эксплуатации;","назначение и принципы действия контрольно-измерительных приборов и аппаратов;"]
[null,"выполнять консервацию внутридомовых систем.","правила применения контрольно-диагностической аппаратуры;"]
[null,null,"правила применения универсальных и специальных приспособлений и контрольно-измерительного инструмента;"]
[null,null,"сущность и содержание ремонта и монтажа систем водоснабжения, водоотведения, отопления объектов жилищно-коммунального хозяйства;"]
[null,null,"подготовку внутридомовой системы отопления, системы холодного водоснабжения, в том числе поливочной системы и системы противопожарного водопровода к сезонной эксплуатации, опрессовки системы отопления;"]
[null,null,"порядок обслуживания элеваторных и тепловых узлов и вспомогательного оборудования;"]
[null,null,"технические документы на испытание и готовность к работе оборудования систем водоснабжения, водоотведения, отопления объектов жилищно-коммунального хозяйства;"]
[null,null,"порядок сдачи после ремонта и испытаний оборудования систем водоснабжения, водоотведения, отопления объектов жилищно-коммунального хозяйства."]
[]
["ФГОС 08.02.07 МОНТАЖ И ЭКСПЛУАТАЦИЯ ВНУТРЕННИХ САНТЕХНИЧЕСКИХ УСТРОЙСТВ, КОНДИЦИОНИРОВАНИЯ ВОЗДУХА И ВЕНТИЛЯЦИИ"]
["3.4.1. Организация и контроль работ по монтажу систем водоснабжения и водоотведения, отопления, вентиляции и кондиционирования воздуха:"]
["ПК 1.1. Организовывать и выполнять подготовку систем и объектов к монтажу;"]
["ПК 1.2. Организовывать и выполнять монтаж систем водоснабжения и водоотведения, отопления, вентиляции и кондиционирования воздуха;"]
["ПК 1.3. Организовывать и выполнять производственный контроль качества монтажных работ;"]
["ПК 1.4. Выполнять пусконаладочные работы систем водоснабжения и водоотведения, отопления, вентиляции и кондиционирование воздуха;"]
["Иметь практический опыт в","Уметь","Знать"]
["организации и выполнении монтажа систем водоснабжения и водоотведения, отопления, вентиляции и кондиционирования воздуха;","использовать сопроводительную документацию для проверки комплектности и качества изготовления оборудования санитарно-технических систем, вентиляции и кондиционирования воздуха;","классификацию систем водоснабжения и водоотведения, отопления, вентиляции и кондиционирования воздуха;"]
["выполнении пусконаладочных работ систем водоснабжения и водоотведения, отопления, вентиляции и кондиционирования воздуха.","читать и разрабатывать монтажные чертежи систем водоснабжения и водоотведения, отопления, вентиляции и кондиционирования воздуха;","назначение и правила применения ручных инструментов и приспособлений, необходимых при монтаже систем водоснабжения и водоотведения, отопления, вентиляции и кондиционирования воздуха;"]
[null,"составлять ведомости выявленных дефектов (для поставщика оборудования) с целью их устранения;","состав комплекта технической документации и комплектность оборудования и материалов;"]
[null,"оформлять техническую документацию по результатам испытаний;","проектную и нормативную документацию в области монтажа и испытаний систем водоснабжения и водоотведения, отопления, вентиляции и кондиционирования воздуха;"]
[null,"проводить регулирование смонтированных сантехнических систем, вентиляции и кондиционирования воздуха для достижения проектных и паспортных характеристик;","технологию изготовления узлов и деталей трубопроводов и воздуховодов из различных материалов;"]
[null,"руководить работниками в рамках подразделения при выполнении работ по монтажу систем водоснабжения и водоотведения, отопления, вентиляции и кондиционирования воздуха;","технологию сборки монтажных узлов и требования к качеству их изготовления;"]
[null,"производить измерение производительности и давления вентилятора в характерных точках системы;","основы монтажного проектирования;"]
[null,"пользоваться контрольно-измерительными приборами.","правила по охране труда при подготовке оборудования, узлов и деталей к монтажу в соответствии с проектом производства работ;"]
[null,null,"правила по охране труда при монтаже систем вентиляции и кондиционирования воздуха;"]
[null,null,"технологию монтажных работ систем вентиляции;"]
[null,null,"проектную и нормативную документацию по монтажу систем кондиционирования;"]
[null,null,"способы соединения медных труб;"]
[null,null,"методы проведения измерений гидравлических и аэродинамических характеристик монтируемой системы;"]
[null,null,"принципы работы измерительных приборов и правила пуска и регулирования отдельных элементов и системы в целом;"]
[null,null,"принципы работы монтируемых систем и их элементов;"]
[null,null,"методику проведения регулирования смонтированных систем и отдельных элементов;"]
[null,null,"теплоизоляционный материал и способы работы с ним;"]
[null,null,"правила пайки твердым припоем;"]
[null,null,"особенности менеджмента в соответствующей области профессиональной деятельности."]
[]
["ЕТКС работ и профессий рабочих. Выпуск 3. § 201. Монтажник санитарно-технических систем и оборудования 3-го разряда"]
["Характеристика работ.","Выполнение простых работ при монтаже и ремонте систем центрального отопления, водоснабжения, канализации, газоснабжения и водостоков."]
[null,"Свертывание и сборка простых узлов."]
[null,"Сборка фланцевых соединений."]
[null,"Разборка отдельных узлов трубопроводов (при монтаже)."]
[null,"Установка и заделка креплений под приборы и трубопроводы."]
[null,"Сверление или пробивка отверстий в конструкциях."]
[null,"Заделка раструбов чугунных трубопроводов."]
[null,"Нарезка резьбы на трубах вручную."]
[null,"Комплектование труб и фасонных частей стояков."]
[null,"Установка ручного пресса для опрессовки систем."]
[null,"Отсоединение чугунных котлов от трубопроводов."]
[null,"Обрубка кромок швов жаротрубного котла для последующей подварки."]
[null,"Очистка секций чугунного котла снаружи и изнутри с промывкой."]
[null,"Срубка заклепок жаротрубного котла с выбиванием их."]
[null,"Смена манжет у унитаза."]
[null,"Зачистка сварных швов шлифмашинкой."]
[null,"Прокачка канализационных стояков и отводов."]
[null,"Смена прокладок кранов, вентилей."]
["Должен знать:","виды основных деталей санитарно-технических систем, соединений труб и креплений трубопроводов; "]
[null,"назначение, устройство и особенности монтажа внутренних систем центрального отопления, водоснабжения, канализации, газоснабжения и водостоков;"]
[null,"способы сверления и пробивки отверстий;"]
[null,"правила транспортировки баллонов с кислородом и ацетиленом;"]
[null,"правила техники безопасности при транспортировке баллонов;"]
[null,"правила пользования механизированным инструментом."]
[]
["ЕТКС работ и профессий рабочих. Выпуск 2. Часть 2. § 161. Слесарь-сантехник 3-го разряда"]
["Характеристика работ.","Разборка, ремонт и сборка различных деталей и узлов санитарно-технических систем центрального отопления, водоснабжения, канализации и водостоков."]
[null,"Сверление или пробивка отверстий в конструкциях."]
[null,"Нарезка резьб на трубах вручную."]
[null,"Установка и заделка креплений под трубопроводы и приборы."]
[null,"Комплектование труб и фасонных частей стояков."]
["Должен знать:","принцип действия, назначение и особенности ремонта санитарно-технических трубопроводных систем центрального отопления, водоснабжения, канализации и водостоков;"]
[null,"виды основных деталей санитарно-технических систем, соединений труб и креплений трубопроводов;"]
[null,"способы сверления и пробивки отверстий;"]
[null,"правила обращения и транспортирования баллонов с кислородом и ацетиленом;"]
[null,"назначение и правила пользования механизированным инструментом."]

{"sheet":"ПС16.089 B 02.3 1;2;3;4;5 ","index":14,"n_rows":190,"n_cols":3,"rows_kept":190,"merged":[[0,0,0,2],[26,0,26,2],[27,0,27,2],[28,0,28,2],[83,0,83,2],[84,0,84,2],[85,0,85,2],[86,0,86,2],[87,0,87,2],[102,0,102,2],[103,0,103,2],[104,0,104,2],[105,0,105,2],[126,0,126,2],[127,0,127,2],[128,0,128,2],[129,0,129,2],[130,0,130,2],[131,0,131,2],[153,0,153,2],[154,0,171,0],[154,1,154,2],[155,1,155,2],[156,1,156,2],[157,1,157,2],[158,1,158,2],[159,1,159,2],[160,1,160,2],[161,1,161,2],[162,1,162,2],[163,1,163,2],[164,1,164,2],[165,1,165,2],[166,1,166,2],[167,1,167,2],[168,1,168,2],[169,1,169,2],[170,1,170,2],[171,1,171,2],[172,0,177,0],[172,1,172,2],[173,1,173,2],[174,1,174,2],[175,1,175,2],[176,1,176,2],[177,1,177,2],[179,0,179,2],[180,0,184,0],[180,1,180,2],[181,1,181,2],[182,1,182,2],[183,1,183,2],[184,1,184,2],[185,0,189,0],[185,1,185,2],[186,1,186,2],[187,1,187,2],[188,1,188,2],[189,1,189,2]]}
["Профстандарт 16.089 B/02.3"]
["Трудовые действия","Умения","Знания"]
["Разметка мест установки приборов, насосов, прохода трубопроводов, средств креплений","Использовать проектную и нормативную техническую документацию в области монтажа внутренних систем горячего и холодного водоснабжения, канализации и водостоков","Назначение каждого вида оборудования, основных деталей и узлов внутренних систем горячего и холодного водоснабжения, канализации и водостоков"]
["Установка средств крепления и крепление их к строительным конструкциям","Читать монтажные чертежи внутренних систем горячего и холодного водоснабжения, канализации и водостоков, в том числе при помощи графических программ с использованием электронных устройств","Системы разводок от водопроводного, канализационного, водосточного стояков"]
["Монтаж трубопроводов и запорно-регулирующей арматуры диаметром до 400 мм","Разбирать, ремонтировать и собирать средней сложности детали и узлы внутренних систем горячего и холодного водоснабжения, канализации и водостоков","Устройство и способы монтажа трубопроводных систем из стальных, медных и полимерных труб"]
["Гибка элементов трубопроводов по заданным размерам","Соединять трубопроводы внутренних систем горячего и холодного водоснабжения и водостоков","Технология работ по монтажу систем горячего и холодного водоснабжения, канализации и водостоков"]
["Изготовление и установка полотенцесушителей и присоединение их к системе горячего водоснабжения","Крепить детали и приборы внутренних систем горячего и холодного водоснабжения, канализации и водостоков при помощи монтажных пистолетов","Устройство и способы монтажа оборудования систем холодного и горячего водоснабжения"]
["Монтаж водомерного узла и присоединение его к магистральному трубопроводу","Менять участки трубопроводов из чугунных и полимерных труб","Правила установки санитарных приборов"]
["Установка водоразборной арматуры с подсоединением к трубопроводам и уплотнением резьбовых соединений","Выявлять дефектные места при испытании трубопроводов","Способы разметки мест установки санитарных приборов и креплений"]
["Монтаж емкостных и секционных водоподогревателей (бойлеров), центробежных насосов и насосных агрегатов","Использовать ручной, механизированный и измерительный инструмент для монтажа внутренних систем горячего и холодного водоснабжения и водостоков","Виды шаблонов для разметки отверстий при установке приборов и правила пользования ими"]
["Подсоединение к трубопроводам санитарных приборов с арматурой (раковины, умывальники, мойки, трапы, ванны, унитазы, смывные бачки)","Выполнять работы по монтажу внутренних систем горячего и холодного водоснабжения, канализации и водостоков с соблюдением требований охраны труда, пожарной и экологической безопасности","Способы ремонта трубопроводных санитарно-технических систем из стальных, медных и полимерных труб"]
["Установка арматуры к смывному бачку",null,"Устройство монтажных поршневых пистолетов и правила работы с ними"]
["Установка полуавтоматического смывного крана",null,"Назначение и правила применения ручных и механизированных инструментов и приспособлений, необходимых при монтаже внутренних систем горячего и холодного водоснабжения и водостоков"]
["Сборка пожарных рукавов",null,"Правила применения средств индивидуальной защиты при монтаже систем горячего и холодного водоснабжения, канализации и водостоков"]
["Крепление деталей и приборов с помощью монтажных пистолетов",null,"Требования, предъявляемые к качеству выполняемых работ по монтажу систем горячего и холодного водоснабжения, канализации и водостоков"]
["Установка приборов учета расхода воды",null,"Правила рациональной организации труда на рабочем месте"]
["Прокладка водопроводного, канализационного, водосточного стояков",null,"Санитарные нормы и правила проведения работ по монтажу внутренних систем горячего и холодного водоснабжения, канализации и водостоков"]
["Монтаж глубинных, погружных, фекальных, дренажных насосов и насосных станций и присоединение их к существующим санитарно-техническим системам и оборудованию",null,"Правила технической эксплуатации тепловых энергоустановок"]
["Проверка рабочих точек насосных агрегатов на соответствие проектным данным и требованиям",null,"Требования охраны труда при эксплуатации теплопотребляющих установок и тепловых сетей потребителей"]
["Проверка и сдача в эксплуатацию санитарно-технических систем и оборудования",null,"Назначение и правила использования контрольно-измерительного инструмента, применяемого при монтаже внутренних систем горячего и холодного водоснабжения, канализации и водостоков"]
["Установка систем водоподготовки и водоочистки",null,"Основные принципы гидравлики; основные химические свойства воды"]
["Промывка и хлорирование трубопроводов водоснабжения",null,"Виды контрольно-измерительных приборов и средств, применяемых при монтаже внутренних систем горячего и холодного водоснабжения, канализации и водостоков"]
[null,null,"Виды первой помощи и принципы ее оказания"]
[null,null,"Виды и предназначение общестроительных работ"]
[null,null,"Нормативные технические документы по монтажу внутренних систем горячего и холодного водоснабжения, канализации и водостоков"]
[]
["ФГОС 08.01.10 МАСТЕР ЖИЛИЩНО-КОММУНАЛЬНОГО ХОЗЯЙСТВА"]
["3.4.1. Выполнение работ по эксплуатации и ремонту оборудования систем водоснабжения, водоотведения, отопления жилищно-коммунального хозяйства:"]
["ПК 1.1. Обеспечивать эксплуатацию и ремонт системы водоснабжения и водоотведения здания;"]
["Иметь практический опыт в","Уметь","Знать"]
["работах по эксплуатации зданий, сооружений, конструкций, оборудования систем водоснабжения, водоотведения, отопления зданий и сооружений, жилищно-коммунального хозяйства;","оценивать состояние рабочего места на соответствие требованиям охраны труда и полученному заданию/наряду;","требования по охране труда при проведении работ по техническому обслуживанию, ремонту и монтажу отдельных узлов оборудования систем водоснабжения, водоотведения, отопления объектов жилищно-коммунального хозяйства;"]
["совершении действий в критических ситуациях при эксплуатации зданий, сооружений, конструкций, оборудования систем водоснабжения, водоотведения, отопления, жилищно-коммунального хозяйства.","определять исправность средств индивидуальной защиты;","виды и основные правила построения чертежей, эскизов и схем систем водоснабжения, водоотведения, отопления объектов жилищно-коммунального хозяйства;"]
[null,"читать и выполнять чертежи, эскизы и схемы систем водоснабжения, водоотведения, отопления объектов жилищно-коммунального хозяйства;","виды, назначение, устройство, принципы работы домовых санитарно-технических систем и оборудования, домовых систем водоснабжения, в том числе поливочной системы и системы противопожарного водопровода, систем отопления, отопительных приборов, циркуляционных насосов, элеваторных и тепловых узлов, запорно-регулирующей и водоразборной арматуры и вспомогательного оборудования;"]
[null,"подбирать материалы, инструменты и оборудование согласно технологическому процессу и сменному заданию/наряду;","сущность и содержание технической эксплуатации оборудования систем водоснабжения, водоотведения, отопления;"]
[null,"проводить техническое обслуживание оборудования систем водоснабжения, водоотведения, отопления объектов жилищно-коммунального хозяйства;","правила рациональной эксплуатации зданий, сооружений, конструкций, оборудования систем водоснабжения, водоотведения, отопления;"]
[null,"определять признаки неисправности при эксплуатации зданий, сооружений, конструкций, оборудования систем водоснабжения, водоотведения, отопления жилищно-коммунального хозяйства;","показатели технического уровня эксплуатации оборудования систем водоснабжения, водоотведения, отопления;"]
[null,"проводить плановый осмотр зданий, сооружений, конструкций, оборудования систем водоснабжения, водоотведения, отопления жилищно-коммунального хозяйства;","виды технического обслуживания: текущее (внутрисменное) обслуживание, профилактические осмотры, периодические осмотры, надзор;"]
[null,"заполнять техническую документацию по результатам осмотра;","приемы и методы минимизации издержек на объектах жилищно-коммунального хозяйства;"]
[null,"выполнять профилактические работы, способствующие эффективной работе санитарно-технической системы, системы отопления;","основы \"бережливого производства\", повышающие качество и производительность труда на объектах жилищно-коммунального хозяйства;"]
[null,"выполнять гидравлическое испытание системы водоснабжения, в том числе поливочной системы и системы противопожарного водопровода;","состав и требования к проведению профилактических и регламентных работ в системе водоснабжения, в том числе поливочной системы и системы противопожарного водопровода, повысительных и пожарных насосов, запорно-регулирующей и водоразборной арматуры, системе водоотведения, внутренних водостоков, санитарно-технических приборов и системе отопления объектов жилищно-коммунального хозяйства;"]
[null,"подготавливать внутридомовые системы водоснабжения, отопления, в том числе поливочные системы и системы противопожарного водопровода к сезонной эксплуатации;","технологию и технику обслуживания элеваторных и тепловых узлов и вспомогательного оборудования;"]
[null,"выполнять консервацию внутридомовых систем;","виды деятельности объектов жилищно-коммунального хозяйства, оказывающие негативное влияние на окружающую среду;"]
[null,"применять ручной и механизированный инструмент по назначению и в соответствии с видом работ;","нормативную базу технической эксплуатации;"]
[null,"обнаружить с помощью приборов опасные вещества в воздухе, в воде и в грунте;","эксплуатационную техническую документацию, виды и основное содержание;"]
[null,"определять причины и устранять неисправности конструкций зданий, сооружений, оборудования систем водоснабжения, водоотведения, отопления жилищно-коммунального хозяйства;","правила заполнения технической документации;"]
[null,"проводить слесарные работы при ремонте;","основные понятия, положения и показатели, предусмотренные ГОСТами, по определению надежности оборудования систем водоснабжения, водоотведения, отопления жилищно-коммунального хозяйства, их технико-экономическое значение;"]
[null,"осуществлять ремонт санитарно-технического оборудования и системы отопления;","инженерные показатели и методы обеспечения надежности оборудования систем водоснабжения, водоотведения, отопления жилищно-коммунального хозяйства на стадиях конструирования, изготовления, эксплуатации;"]
[null,"выполнять замену участков трубопроводов, отопительных приборов и их секций, запорно-регулирующей, водоразборной арматуры, внутренних пожарных кранов, контрольно-измерительных приборов с использованием ручного и механизированного инструмента приспособлений и материалов;","основные методы, технологию измерений, средства измерений;"]
[null,"перекладывать канализационный выпуск;","классификацию, принцип действия измерительных преобразователей;"]
[null,"ремонтировать и менять гидрозатворы, санитарно-технические приборы, повысительные, пожарные и циркуляционные насосы, расширительные баки и водоподогреватели;","классификацию и назначение чувствительных элементов;"]
[null,"проводить испытания отремонтированных систем и оборудования жилищно-коммунального хозяйства;","структуру средств измерений;"]
[null,"использовать необходимые инструменты, приспособления и материалы при выполнении ремонтных работ.","понятие о государственной системе приборов;"]
[null,null,"весовые устройства;"]
[null,null,"назначение и принцип действия контрольно-измерительных приборов и аппаратов средней сложности;"]
[null,null,"оптико-механические средства измерений;"]
[null,null,"основные понятия систем автоматического управления и регулирования;"]
[null,null,"основные этапы профилактических работ;"]
[null,null,"способы и средства выполнения профилактических работ;"]
[null,null,"правила применения универсальных и специальных приспособлений и контрольно-измерительного инструмента;"]
[null,null,"влияние температуры на точность измерений;"]
[null,null,"методы и средства испытаний;"]
[null,null,"технические документы на испытание и готовность к работе сооружений, конструкций, оборудования систем водоснабжения, водоотведения, отопления жилищно-коммунального хозяйства;"]
[null,null,"сущность, назначение и содержание технического обслуживания и ремонта зданий, сооружений, конструкций жилищно-коммунального хозяйства;"]
[null,null,"сущность, назначение и содержание ремонта и монтажа отдельных узлов и оборудования систем водоснабжения, водоотведения, отопления объектов жилищно-коммунального хозяйства;"]
[null,null,"методы и приемы расчета необходимых материалов и оборудования при ремонте и монтаже отдельных узлов систем водоснабжения, водоотведения, отопления;"]
[null,null,"нормативно-техническую документацию;"]
[null,null,"ремонтную базу жилищно-коммунального хозяйства;"]
[null,null,"основы слесарного дела;"]
[null,null,"санитарно-техническую систему здания;"]
[null,null,"отопительную систему здания;"]
[null,null,"виды ремонта оборудования: текущий, капитальный (объем, периодичность, продолжительность, трудоемкость, количество);"]
[null,null,"формы организации ремонтных служб (децентрализованная, централизованная, смешанная);"]
[null,null,"формы подготовки ремонта (конструкторская, технологическая, материально-техническая, организационная);"]
[null,null,"применение контрольно-диагностической аппаратуры;"]
[null,null,"ремонтную документацию;"]
[null,null,"методы проведения ремонта;"]
[null,null,"общие принципы технологии ремонта;"]
[null,null,"технические документы на испытание и готовность к работе оборудования систем водоснабжения, водоотведения, отопления объектов жилищно-коммунального хозяйства;"]
[null,null,"предъявляемые требования готовности к проведению испытания отопительной системы;"]
[null,null,"порядок сдачи после ремонта и испытаний оборудования систем водоснабжения, водоотведения, отопления объектов жилищно-коммунального хозяйства;"]
[null,null,"устройство и правила эксплуатации применяемых инструментов, приспособлений;"]
[null,null,"компьютерные системы управления обслуживанием и ремонтом."]
[]
["ФГОС 08.01.14 МОНТАЖНИК САНИТАРНО-ТЕХНИЧЕСКИХ, ВЕНТИЛЯЦИОННЫХ СИСТЕМ И ОБОРУДОВАНИЯ"]
["3.4.1. Выполнение работ по монтажу систем отопления, водоснабжения, водоотведения и газоснабжения:"]
["ПК 1.1. Выполнять подготовительные работы при монтаже систем отопления, водоснабжения, водоотведения и газоснабжения;"]
["ПК 1.2. Осуществлять подбор и проверку оборудования, инструмента, приспособлений и фасонных частей, необходимых при выполнении монтажа систем отопления, водоснабжения, водоотведения и газоснабжения;"]
["ПК 1.3. Осуществлять монтаж систем отопления водоснабжения, водоотведения и газоснабжения в соответствии с требованиями нормативно-технической документации."]
["Иметь практический опыт в","Уметь","Знать"]
["подготовке инструмента, оборудования, узлов и деталей к монтажу систем отопления, водоснабжения, водоотведения и газоснабжения в соответствии с проектом производства работ;","использовать сопроводительную документацию для проверки комплектности и качества санитарно-технических инструментов и оборудования;","виды и назначение санитарно-технических материалов, арматуры и оборудования;"]
["выполнении подготовительных работ при монтаже и ремонте систем отопления, водоснабжения, водоотведения и газоснабжения;","изучать и использовать при монтаже санитарно-технических систем проектную и техническую документацию;","виды и назначение основной проектной и технической документации для производства монтажных работ;"]
["выполнении работ средней сложности при монтаже и ремонте внутренних систем отопления, водоснабжения, водоотведения и газоснабжения;","выполнять слесарные операции при монтаже и ремонте санитарно-технических систем;","правила выполнения слесарных работ при монтаже и ремонте санитарно-технических систем;"]
["выполнении работ средней сложности при монтаже и ремонте наружных систем отопления, водоснабжения, водоотведения и газоснабжения.","использовать ручной и механизированный инструмент и приспособления при монтаже санитарно-технических систем и оборудования;","назначение и правила применения ручного и механизированного инструмента и приспособлений, необходимых при монтаже санитарно-технических систем и оборудования;"]
[null,"разбирать, ремонтировать и собирать детали и узлы систем отопления, водоснабжения, канализации, газоснабжения и водостоков;","назначение, устройство и принцип действия систем отопления, водоснабжения, водоотведения и газоснабжения;"]
[null,"соединять трубопроводы систем отопления, водоснабжения, канализации, газоснабжения и водостоков;","технологию и последовательность подготовительных и монтажных работ наружных сетей систем отопления, водоснабжения, водоотведения и газоснабжения;"]
[null,"выполнять укрупненную сборку узлов внутренних санитарно-технических систем;","технологию, последовательность подготовительных работ и особенности монтажа оборудования и трубопроводов внутренних систем отопления, водоснабжения, водоотведения и газоснабжения;"]
[null,"выполнять установку и крепление санитарно-технического оборудования и трубопроводов;","правила проведения испытаний оборудования и трубопроводов;"]
[null,"соблюдать требования охраны труда, пожарной экологической безопасности при выполнении работ;","правила безопасной эксплуатации монтажного оборудования;"]
[null,"проводить ревизию и испытания санитарно-технической арматуры;","санитарные нормы и правила проведения монтажных работ;"]
[null,"проводить испытания смонтированных санитарно-технических систем;","требования охраны труда."]
[null,"соблюдать требования охраны труда, пожарной и экологической безопасности при выполнении работ."]
[]
["08.01.26 МАСТЕР ПО РЕМОНТУ И ОБСЛУЖИВАНИЮ ИНЖЕНЕРНЫХ СИСТЕМ ЖИЛИЩНО-КОММУНАЛЬНОГО ХОЗЯЙСТВА"]
["3.4.1. Поддержание рабочего состояния оборудования систем водоснабжения, водоотведения, отопления объектов жилищно-коммунального хозяйства:\n"]
["ПК 1.1. Осуществлять техническое обслуживание в соответствии с заданием (нарядом) системы водоснабжения, водоотведения, отопления объектов жилищно-коммунального хозяйства."]
["ПК 1.2. Проводить ремонт и монтаж отдельных узлов системы водоснабжения, водоотведения."]
["Иметь практический опыт в","Уметь","Знать"]
["техническом обслуживании в соответствии с заданием/нарядом системы водоснабжения, водоотведения, отопления объектов жилищно-коммунального хозяйства;","оценивать состояние рабочего места на соответствие требованиям охраны труда и полученному заданию/наряду;","требования по охране труда при проведении работ по техническому обслуживанию, ремонту и монтажу отдельных узлов оборудования систем водоснабжения, водоотведения, отопления объектов жилищно-коммунального хозяйства;"]
["ремонте и монтаже отдельных узлов системы водоснабжения, водоотведения;","определять исправность средств индивидуальной защиты;","виды и основные правила построения чертежей, эскизов и схем систем водоснабжения, водоотведения, отопления объектов жилищно-коммунального хозяйства;"]
["ремонте и монтаже отдельных узлов системы отопления","читать и выполнять чертежи, эскизы и схемы систем водоснабжения, водоотведения, отопления объектов жилищно-коммунального хозяйства;","правила чтения технической и конструкторско-технологической документации;"]
[null,"подбирать материалы, инструменты и оборудование согласно технологическому процессу и сменному заданию/наряду;","правила заполнения технической документации;"]
[null,"проводить техническое обслуживание оборудования систем водоснабжения, водоотведения, отопления объектов жилищно-коммунального хозяйства;","сущности и содержания технической эксплуатации оборудования систем водоснабжения, водоотведения, отопления объектов жилищно-коммунального хозяйства;"]
[null,"заполнять техническую документацию по результатам осмотра;","виды деятельности объектов жилищно-коммунального хозяйства, оказывающих негативное влияние на окружающую среду;"]
[null,"выполнять расчет необходимых материалов и оборудования при ремонте и монтаже отдельных узлов систем водоснабжения, водоотведения, отопления объектов жилищно-коммунального хозяйства;","виды, назначение, устройство, принципы работы домовых санитарно-технических систем и оборудования, домовых системы водоснабжения, в том числе поливочной системы и системы противопожарного водопровода, систем отопления, отопительных приборов, циркуляционных насосов, элеваторных и тепловых узлов, запорно-регулирующей и водоразборной арматуры и вспомогательного оборудования;"]
[null,"использовать инструменты, при выполнении ремонтных работ;","технологию техники обслуживания домовых санитарно-технических систем и оборудования;"]
[null,"устранять неисправности санитарно-технических систем и оборудования;","виды, назначение и принципы работы систем контроля технического состояния оборудования объектов жилищно-коммунального хозяйства;"]
[null,"проводить испытания отремонтированных систем и оборудования водоснабжения, водоотведения, отопления объектов жилищно-коммунального хозяйства;","основные понятия систем автоматического управления и регулирования;"]
[null,"подготавливать внутридомовые системы водоснабжения, отопления, в том числе поливочной системы и системы противопожарного водопровода к сезонной эксплуатации;","назначение и принципы действия контрольно-измерительных приборов и аппаратов;"]
[null,"выполнять консервацию внутридомовых систем.","правила применения контрольно-диагностической аппаратуры;"]
[null,null,"правила применения универсальных и специальных приспособлений и контрольно-измерительного инструмента;"]
[null,null,"сущность и содержание ремонта и монтажа систем водоснабжения, водоотведения, отопления объектов жилищно-коммунального хозяйства;"]
[null,null,"подготовку внутридомовой системы отопления, системы холодного водоснабжения, в том числе поливочной системы и системы противопожарного водопровода к сезонной эксплуатации, опрессовки системы отопления;"]
[null,null,"порядок обслуживания элеваторных и тепловых узлов и вспомогательного оборудования;"]
[null,null,"технические документы на испытание и готовность к работе оборудования систем водоснабжения, водоотведения, отопления объектов жилищно-коммунального хозяйства;"]
[null,null,"порядок сдачи после ремонта и испытаний оборудования систем водоснабжения, водоотведения, отопления объектов жилищно-коммунального хозяйства."]
[]
["ФГОС 08.02.07 МОНТАЖ И ЭКСПЛУАТАЦИЯ ВНУТРЕННИХ САНТЕХНИЧЕСКИХ УСТРОЙСТВ, КОНДИЦИОНИРОВАНИЯ ВОЗДУХА И ВЕНТИЛЯЦИИ"]
["3.4.1. Организация и контроль работ по монтажу систем водоснабжения и водоотведения, отопления, вентиляции и кондиционирования воздуха:"]
["ПК 1.1. Организовывать и выполнять подготовку систем и объектов к монтажу;"]
["ПК 1.2. Организовывать и выполнять монтаж систем водоснабжения и водоотведения, отопления, вентиляции и кондиционирования воздуха;"]
["ПК 1.3. Организовывать и выполнять производственный контроль качества монтажных работ;"]
["ПК 1.4. Выполнять пусконаладочные работы систем водоснабжения и водоотведения, отопления, вентиляции и кондиционирование воздуха;"]
["Иметь практический опыт в","Уметь","Знать"]
["организации и выполнении монтажа систем водоснабжения и водоотведения, отопления, вентиляции и кондиционирования воздуха;","использовать сопроводительную документацию для проверки комплектности и качества изготовления оборудования санитарно-технических систем, вентиляции и кондиционирования воздуха;","классификацию систем водоснабжения и водоотведения, отопления, вентиляции и кондиционирования воздуха;"]
["выполнении пусконаладочных работ систем водоснабжения и водоотведения, отопления, вентиляции и кондиционирования воздуха.","читать и разрабатывать монтажные чертежи систем водоснабжения и водоотведения, отопления, вентиляции и кондиционирования воздуха;","назначение и правила применения ручных инструментов и приспособлений, необходимых при монтаже систем водоснабжения и водоотведения, отопления, вентиляции и кондиционирования воздуха;"]
[null,"составлять ведомости выявленных дефектов (для поставщика оборудования) с целью их устранения;","состав комплекта технической документации и комплектность оборудования и материалов;"]
[null,"оформлять техническую документацию по результатам испытаний;","проектную и нормативную документацию в области монтажа и испытаний систем водоснабжения и водоотведения, отопления, вентиляции и кондиционирования воздуха;"]
[null,"проводить регулирование смонтированных сантехнических систем, вентиляции и кондиционирования воздуха для достижения проектных и паспортных характеристик;","технологию изготовления узлов и деталей трубопроводов и воздуховодов из различных материалов;"]
[null,"руководить работниками в рамках подразделения при выполнении работ по монтажу систем водоснабжения и водоотведения, отопления, вентиляции и кондиционирования воздуха;","технологию сборки монтажных узлов и требования к качеству их изготовления;"]
[null,"производить измерение производительности и давления вентилятора в характерных точках системы;","основы монтажного проектирования;"]
[null,"пользоваться контрольно-измерительными приборами.","правила по охране труда при подготовке оборудования, узлов и деталей к монтажу в соответствии с проектом производства работ;"]
[null,null,"правила по охране труда при монтаже систем вентиляции и кондиционирования воздуха;"]
[null,null,"технологию монтажных работ систем вентиляции;"]
[null,null,"проектную и нормативную документацию по монтажу систем кондиционирования;"]
[null,null,"способы соединения медных труб;"]
[null,null,"методы проведения измерений гидравлических и аэродинамических характеристик монтируемой системы;"]
[null,null,"принципы работы измерительных приборов и правила пуска и регулирования отдельных элементов и системы в целом;"]
[null,null,"принципы работы монтируемых систем и их элементов;"]
[null,null,"методику проведения регулирования смонтированных систем и отдельных элементов;"]
[null,null,"теплоизоляционный материал и способы работы с ним;"]
[null,null,"правила пайки твердым припоем;"]
[null,null,"особенности менеджмента в соответствующей области профессиональной деятельности."]
[]
["ЕТКС работ и профессий рабочих. Выпуск 3. § 201. Монтажник санитарно-технических систем и оборудования 3-го разряда"]
["Характеристика работ.","Выполнение простых работ при монтаже и ремонте систем центрального отопления, водоснабжения, канализации, газоснабжения и водостоков."]
[null,"Свертывание и сборка простых узлов."]
[null,"Сборка фланцевых соединений."]
[null,"Разборка отдельных узлов трубопроводов (при монтаже)."]
[null,"Установка и заделка креплений под приборы и трубопроводы."]
[null,"Сверление или пробивка отверстий в конструкциях."]
[null,"Заделка раструбов чугунных трубопроводов."]
[null,"Нарезка резьбы на трубах вручную."]
[null,"Комплектование труб и фасонных частей стояков."]
[null,"Установка ручного пресса для опрессовки систем."]
[null,"Отсоединение чугунных котлов от трубопроводов."]
[null,"Обрубка кромок швов жаротрубного котла для последующей подварки."]
[null,"Очистка секций чугунного котла снаружи и изнутри с промывкой."]
[null,"Срубка заклепок жаротрубного котла с выбиванием их."]
[null,"Смена манжет у унитаза."]
[null,"Зачистка сварных швов шлифмашинкой."]
[null,"Прокачка канализационных стояков и отводов."]
[null,"Смена прокладок кранов, вентилей."]
["Должен знать:","виды основных деталей санитарно-технических систем, соединений труб и креплений трубопроводов; "]
[null,"назначение, устройство и особенности монтажа внутренних систем центрального отопления, водоснабжения, канализации, газоснабжения и водостоков;"]
[null,"способы сверления и пробивки отверстий;"]
[null,"правила транспортировки баллонов с кислородом и ацетиленом;"]
[null,"правила техники безопасности при транспортировке баллонов;"]
[null,"правила пользования механизированным инструментом."]
[]
["ЕТКС работ и профессий рабочих. Выпуск 2. Часть 2. § 161. Слесарь-сантехник 3-го разряда"]
["Характеристика работ.","Разборка, ремонт и сборка различных деталей и узлов санитарно-технических систем центрального отопления, водоснабжения, канализации и водостоков."]
[null,"Сверление или пробивка отверстий в конструкциях."]
[null,"Нарезка резьб на трубах вручную."]
[null,"Установка и заделка креплений под трубопроводы и приборы."]
[null,"Комплектование труб и фасонных частей стояков."]
["Должен знать:","принцип действия, назначение и особенности ремонта санитарно-технических трубопроводных систем центрального отопления, водоснабжения, канализации и водостоков;"]
[null,"виды основных деталей санитарно-технических систем, соединений труб и креплений трубопроводов;"]
[null,"способы сверления и пробивки отверстий;"]
[null,"правила обращения и транспортирования баллонов с кислородом и ацетиленом;"]
[null,"назначение и правила пользования механизированным инструментом."]

{"sheet":"ПС16.089B02.3 6;7;8;11;12;13 ","index":15,"n_rows":190,"n_cols":3,"rows_kept":190,"merged":[[0,0,0,2],[26,0,26,2],[27,0,27,2],[28,0,28,2],[83,0,83,2],[84,0,84,2],[85,0,85,2],[86,0,86,2],[87,0,87,2],[102,0,102,2],[103,0,103,2],[104,0,104,2],[105,0,105,2],[126,0,126,2],[127,0,127,2],[128,0,128,2],[129,0,129,2],[130,0,130,2],[131,0,131,2],[153,0,153,2],[154,0,171,0],[154,1,154,2],[155,1,155,2],[156,1,156,2],[157,1,157,2],[158,1,158,2],[159,1,159,2],[160,1,160,2],[161,1,161,2],[162,1,162,2],[163,1,163,2],[164,1,164,2],[165,1,165,2],[166,1,166,2],[167,1,167,2],[168,1,168,2],[169,1,169,2],[170,1,170,2],[171,1,171,2],[172,0,177,0],[172,1,172,2],[173,1,173,2],[174,1,174,2],[175,1,175,2],[176,1,176,2],[177,1,177,2],[179,0,179,2],[180,0,184,0],[180,1,180,2],[181,1,181,2],[182,1,182,2],[183,1,183,2],[184,1,184,2],[185,0,189,0],[185,1,185,2],[186,1,186,2],[187,1,187,2],[188,1,188,2],[189,1,189,2]]}
["Профстандарт 16.089 B/02.3"]
["Трудовые действия","Умения","Знания"]
["Разметка мест установки приборов, насосов, прохода трубопроводов, средств креплений","Использовать проектную и нормативную техническую документацию в области монтажа внутренних систем горячего и холодного водоснабжения, канализации и водостоков","Назначение каждого вида оборудования, основных деталей и узлов внутренних систем горячего и холодного водоснабжения, канализации и водостоков"]
["Установка средств крепления и крепление их к строительным конструкциям","Читать монтажные чертежи внутренних систем горячего и холодного водоснабжения, канализации и водостоков, в том числе при помощи графических программ с использованием электронных устройств","Системы разводок от водопроводного, канализационного, водосточного стояков"]
["Монтаж трубопроводов и запорно-регулирующей арматуры диаметром до 400 мм","Разбирать, ремонтировать и собирать средней сложности детали и узлы внутренних систем горячего и холодного водоснабжения, канализации и водостоков","Устройство и способы монтажа трубопроводных систем из стальных, медных и полимерных труб"]
["Гибка элементов трубопроводов по заданным размерам","Соединять трубопроводы внутренних систем горячего и холодного водоснабжения и водостоков","Технология работ по монтажу систем горячего и холодного водоснабжения, канализации и водостоков"]
["Изготовление и установка полотенцесушителей и присоединение их к системе горячего водоснабжения","Крепить детали и приборы внутренних систем горячего и холодного водоснабжения, канализации и водостоков при помощи монтажных пистолетов","Устройство и способы монтажа оборудования систем холодного и горячего водоснабжения"]
["Монтаж водомерного узла и присоединение его к магистральному трубопроводу","Менять участки трубопроводов из чугунных и полимерных труб","Правила установки санитарных приборов"]
["Установка водоразборной арматуры с подсоединением к трубопроводам и уплотнением резьбовых соединений","Выявлять дефектные места при испытании трубопроводов","Способы разметки мест установки санитарных приборов и креплений"]
["Монтаж емкостных и секционных водоподогревателей (бойлеров), центробежных насосов и насосных агрегатов","Использовать ручной, механизированный и измерительный инструмент для монтажа внутренних систем горячего и холодного водоснабжения и водостоков","Виды шаблонов для разметки отверстий при установке приборов и правила пользования ими"]
["Подсоединение к трубопроводам санитарных приборов с арматурой (раковины, умывальники, мойки, трапы, ванны, унитазы, смывные бачки)","Выполнять работы по монтажу внутренних систем горячего и холодного водоснабжения, канализации и водостоков с соблюдением требований охраны труда, пожарной и экологической безопасности","Способы ремонта трубопроводных санитарно-технических систем из стальных, медных и полимерных труб"]
["Установка арматуры к смывному бачку",null,"Устройство монтажных поршневых пистолетов и правила работы с ними"]
["Установка полуавтоматического смывного крана",null,"Назначение и правила применения ручных и механизированных инструментов и приспособлений, необходимых при монтаже внутренних систем горячего и холодного водоснабжения и водостоков"]
["Сборка пожарных рукавов",null,"Правила применения средств индивидуальной защиты при монтаже систем горячего и холодного водоснабжения, канализации и водостоков"]
["Крепление деталей и приборов с помощью монтажных пистолетов",null,"Требования, предъявляемые к качеству выполняемых работ по монтажу систем горячего и холодного водоснабжения, канализации и водостоков"]
["Установка приборов учета расхода воды",null,"Правила рациональной организации труда на рабочем месте"]
["Прокладка водопроводного, канализационного, водосточного стояков",null,"Санитарные нормы и правила проведения работ по монтажу внутренних систем горячего и холодного водоснабжения, канализации и водостоков"]
["Монтаж глубинных, погружных, фекальных, дренажных насосов и насосных станций и присоединение их к существующим санитарно-техническим системам и оборудованию",null,"Правила технической эксплуатации тепловых энергоустановок"]
["Проверка рабочих точек насосных агрегатов на соответствие проектным данным и требованиям",null,"Требования охраны труда при эксплуатации теплопотребляющих установок и тепловых сетей потребителей"]
["Проверка и сдача в эксплуатацию санитарно-технических систем и оборудования",null,"Назначение и правила использования контрольно-измерительного инструмента, применяемого при монтаже внутренних систем горячего и холодного водоснабжения, канализации и водостоков"]
["Установка систем водоподготовки и водоочистки",null,"Основные принципы гидравлики; основные химические свойства воды"]
["Промывка и хлорирование трубопроводов водоснабжения",null,"Виды контрольно-измерительных приборов и средств, применяемых при монтаже внутренних систем горячего и холодного водоснабжения, канализации и водостоков"]
[null,null,"Виды первой помощи и принципы ее оказания"]
[null,null,"Виды и предназначение общестроительных работ"]
[null,null,"Нормативные технические документы по монтажу внутренних систем горячего и холодного водоснабжения, канализации и водостоков"]
[]
["ФГОС 08.01.10 МАСТЕР ЖИЛИЩНО-КОММУНАЛЬНОГО ХОЗЯЙСТВА"]
["3.4.1. Выполнение работ по эксплуатации и ремонту оборудования систем водоснабжения, водоотведения, отопления жилищно-коммунального хозяйства:"]
["ПК 1.1. Обеспечивать эксплуатацию и ремонт системы водоснабжения и водоотведения здания;"]
["Иметь практический опыт в","Уметь","Знать"]
["работах по эксплуатации зданий, сооружений, конструкций, оборудования систем водоснабжения, водоотведения, отопления зданий и сооружений, жилищно-коммунального хозяйства;","оценивать состояние рабочего места на соответствие требованиям охраны труда и полученному заданию/наряду;","требования по охране труда при проведении работ по техническому обслуживанию, ремонту и монтажу отдельных узлов оборудования систем водоснабжения, водоотведения, отопления объектов жилищно-коммунального хозяйства;"]
["совершении действий в критических ситуациях при эксплуатации зданий, сооружений, конструкций, оборудования систем водоснабжения, водоотведения, отопления, жилищно-коммунального хозяйства.","определять исправность средств индивидуальной защиты;","виды и основные правила построения чертежей, эскизов и схем систем водоснабжения, водоотведения, отопления объектов жилищно-коммунального хозяйства;"]
[null,"читать и выполнять чертежи, эскизы и схемы систем водоснабжения, водоотведения, отопления объектов жилищно-коммунального хозяйства;","виды, назначение, устройство, принципы работы домовых санитарно-технических систем и оборудования, домовых систем водоснабжения, в том числе поливочной системы и системы противопожарного водопровода, систем отопления, отопительных приборов, циркуляционных насосов, элеваторных и тепловых узлов, запорно-регулирующей и водоразборной арматуры и вспомогательного оборудования;"]
[null,"подбирать материалы, инструменты и оборудование согласно технологическому процессу и сменному заданию/наряду;","сущность и содержание технической эксплуатации оборудования систем водоснабжения, водоотведения, отопления;"]
[null,"проводить техническое обслуживание оборудования систем водоснабжения, водоотведения, отопления объектов жилищно-коммунального хозяйства;","правила рациональной эксплуатации зданий, сооружений, конструкций, оборудования систем водоснабжения, водоотведения, отопления;"]
[null,"определять признаки неисправности при эксплуатации зданий, сооружений, конструкций, оборудования систем водоснабжения, водоотведения, отопления жилищно-коммунального хозяйства;","показатели технического уровня эксплуатации оборудования систем водоснабжения, водоотведения, отопления;"]
[null,"проводить плановый осмотр зданий, сооружений, конструкций, оборудования систем водоснабжения, водоотведения, отопления жилищно-коммунального хозяйства;","виды технического обслуживания: текущее (внутрисменное) обслуживание, профилактические осмотры, периодические осмотры, надзор;"]
[null,"заполнять техническую документацию по результатам осмотра;","приемы и методы минимизации издержек на объектах жилищно-коммунального хозяйства;"]
[null,"выполнять профилактические работы, способствующие эффективной работе санитарно-технической системы, системы отопления;","основы \"бережливого производства\", повышающие качество и производительность труда на объектах жилищно-коммунального хозяйства;"]
[null,"выполнять гидравлическое испытание системы водоснабжения, в том числе поливочной системы и системы противопожарного водопровода;","состав и требования к проведению профилактических и регламентных работ в системе водоснабжения, в том числе поливочной системы и системы противопожарного водопровода, повысительных и пожарных насосов, запорно-регулирующей и водоразборной арматуры, системе водоотведения, внутренних водостоков, санитарно-технических приборов и системе отопления объектов жилищно-коммунального хозяйства;"]
[null,"подготавливать внутридомовые системы водоснабжения, отопления, в том числе поливочные системы и системы противопожарного водопровода к сезонной эксплуатации;","технологию и технику обслуживания элеваторных и тепловых узлов и вспомогательного оборудования;"]
[null,"выполнять консервацию внутридомовых систем;","виды деятельности объектов жилищно-коммунального хозяйства, оказывающие негативное влияние на окружающую среду;"]
[null,"применять ручной и механизированный инструмент по назначению и в соответствии с видом работ;","нормативную базу технической эксплуатации;"]
[null,"обнаружить с помощью приборов опасные вещества в воздухе, в воде и в грунте;","эксплуатационную техническую документацию, виды и основное содержание;"]
[null,"определять причины и устранять неисправности конструкций зданий, сооружений, оборудования систем водоснабжения, водоотведения, отопления жилищно-коммунального хозяйства;","правила заполнения технической документации;"]
[null,"проводить слесарные работы при ремонте;","основные понятия, положения и показатели, предусмотренные ГОСТами, по определению надежности оборудования систем водоснабжения, водоотведения, отопления жилищно-коммунального хозяйства, их технико-экономическое значение;"]
[null,"осуществлять ремонт санитарно-технического оборудования и системы отопления;","инженерные показатели и методы обеспечения надежности оборудования систем водоснабжения, водоотведения, отопления жилищно-коммунального хозяйства на стадиях конструирования, изготовления, эксплуатации;"]
[null,"выполнять замену участков трубопроводов, отопительных приборов и их секций, запорно-регулирующей, водоразборной арматуры, внутренних пожарных кранов, контрольно-измерительных приборов с использованием ручного и механизированного инструмента приспособлений и материалов;","основные методы, технологию измерений, средства измерений;"]
[null,"перекладывать канализационный выпуск;","классификацию, принцип действия измерительных преобразователей;"]
[null,"ремонтировать и менять гидрозатворы, санитарно-технические приборы, повысительные, пожарные и циркуляционные насосы, расширительные баки и водоподогреватели;","классификацию и назначение чувствительных элементов;"]
[null,"проводить испытания отремонтированных систем и оборудования жилищно-коммунального хозяйства;","структуру средств измерений;"]
[null,"использовать необходимые инструменты, приспособления и материалы при выполнении ремонтных работ.","понятие о государственной системе приборов;"]
[null,null,"весовые устройства;"]
[null,null,"назначение и принцип действия контрольно-измерительных приборов и аппаратов средней сложности;"]
[null,null,"оптико-механические средства измерений;"]
[null,null,"основные понятия систем автоматического управления и регулирования;"]
[null,null,"основные этапы профилактических работ;"]
[null,null,"способы и средства выполнения профилактических работ;"]
[null,null,"правила применения универсальных и специальных приспособлений и контрольно-измерительного инструмента;"]
[null,null,"влияние температуры на точность измерений;"]
[null,null,"методы и средства испытаний;"]
[null,null,"технические документы на испытание и готовность к работе сооружений, конструкций, оборудования систем водоснабжения, водоотведения, отопления жилищно-коммунального хозяйства;"]
[null,null,"сущность, назначение и содержание технического обслуживания и ремонта зданий, сооружений, конструкций жилищно-коммунального хозяйства;"]
[null,null,"сущность, назначение и содержание ремонта и монтажа отдельных узлов и оборудования систем водоснабжения, водоотведения, отопления объектов жилищно-коммунального хозяйства;"]
[null,null,"методы и приемы расчета необходимых материалов и оборудования при ремонте и монтаже отдельных узлов систем водоснабжения, водоотведения, отопления;"]
[null,null,"нормативно-техническую документацию;"]
[null,null,"ремонтную базу жилищно-коммунального хозяйства;"]
[null,null,"основы слесарного дела;"]
[null,null,"санитарно-техническую систему здания;"]
[null,null,"отопительную систему здания;"]
[null,null,"виды ремонта оборудования: текущий, капитальный (объем, периодичность, продолжительность, трудоемкость, количество);"]
[null,null,"формы организации ремонтных служб (децентрализованная, централизованная, смешанная);"]
[null,null,"формы подготовки ремонта (конструкторская, технологическая, материально-техническая, организационная);"]
[null,null,"применение контрольно-диагностической аппаратуры;"]
[null,null,"ремонтную документацию;"]
[null,null,"методы проведения ремонта;"]
[null,null,"общие принципы технологии ремонта;"]
[null,null,"технические документы на испытание и готовность к работе оборудования систем водоснабжения, водоотведения, отопления объектов жилищно-коммунального хозяйства;"]
[null,null,"предъявляемые требования готовности к проведению испытания отопительной системы;"]
[null,null,"порядок сдачи после ремонта и испытаний оборудования систем водоснабжения, водоотведения, отопления объектов жилищно-коммунального хозяйства;"]
[null,null,"устройство и правила эксплуатации применяемых инструментов, приспособлений;"]
[null,null,"компьютерные системы управления обслуживанием и ремонтом."]
[]
["ФГОС 08.01.14 МОНТАЖНИК САНИТАРНО-ТЕХНИЧЕСКИХ, ВЕНТИЛЯЦИОННЫХ СИСТЕМ И ОБОРУДОВАНИЯ"]
["3.4.1. Выполнение работ по монтажу систем отопления, водоснабжения, водоотведения и газоснабжения:"]
["ПК 1.1. Выполнять подготовительные работы при монтаже систем отопления, водоснабжения, водоотведения и газоснабжения;"]
["ПК 1.2. Осуществлять подбор и проверку оборудования, инструмента, приспособлений и фасонных частей, необходимых при выполнении монтажа систем отопления, водоснабжения, водоотведения и газоснабжения;"]
["ПК 1.3. Осуществлять монтаж систем отопления водоснабжения, водоотведения и газоснабжения в соответствии с требованиями нормативно-технической документации."]
["Иметь практический опыт в","Уметь","Знать"]
["подготовке инструмента, оборудования, узлов и деталей к монтажу систем отопления, водоснабжения, водоотведения и газоснабжения в соответствии с проектом производства работ;","использовать сопроводительную документацию для проверки комплектности и качества санитарно-технических инструментов и оборудования;","виды и назначение санитарно-технических материалов, арматуры и оборудования;"]
["выполнении подготовительных работ при монтаже и ремонте систем отопления, водоснабжения, водоотведения и газоснабжения;","изучать и использовать при монтаже санитарно-технических систем проектную и техническую документацию;","виды и назначение основной проектной и технической документации для производства монтажных работ;"]
["выполнении работ средней сложности при монтаже и ремонте внутренних систем отопления, водоснабжения, водоотведения и газоснабжения;","выполнять слесарные операции при монтаже и ремонте санитарно-технических систем;","правила выполнения слесарных работ при монтаже и ремонте санитарно-технических систем;"]
["выполнении работ средней сложности при монтаже и ремонте наружных систем отопления, водоснабжения, водоотведения и газоснабжения.","использовать ручной и механизированный инструмент и приспособления при монтаже санитарно-технических систем и оборудования;","назначение и правила применения ручного и механизированного инструмента и приспособлений, необходимых при монтаже санитарно-технических систем и оборудования;"]
[null,"разбирать, ремонтировать и собирать детали и узлы систем отопления, водоснабжения, канализации, газоснабжения и водостоков;","назначение, устройство и принцип действия систем отопления, водоснабжения, водоотведения и газоснабжения;"]
[null,"соединять трубопроводы систем отопления, водоснабжения, канализации, газоснабжения и водостоков;","технологию и последовательность подготовительных и монтажных работ наружных сетей систем отопления, водоснабжения, водоотведения и газоснабжения;"]
[null,"выполнять укрупненную сборку узлов внутренних санитарно-технических систем;","технологию, последовательность подготовительных работ и особенности монтажа оборудования и трубопроводов внутренних систем отопления, водоснабжения, водоотведения и газоснабжения;"]
[null,"выполнять установку и крепление санитарно-технического оборудования и трубопроводов;","правила проведения испытаний оборудования и трубопроводов;"]
[null,"соблюдать требования охраны труда, пожарной экологической безопасности при выполнении работ;","правила безопасной эксплуатации монтажного оборудования;"]
[null,"проводить ревизию и испытания санитарно-технической арматуры;","санитарные нормы и правила проведения монтажных работ;"]
[null,"проводить испытания смонтированных санитарно-технических систем;","требования охраны труда."]
[null,"соблюдать требования охраны труда, пожарной и экологической безопасности при выполнении работ."]
[]
["08.01.26 МАСТЕР ПО РЕМОНТУ И ОБСЛУЖИВАНИЮ ИНЖЕНЕРНЫХ СИСТЕМ ЖИЛИЩНО-КОММУНАЛЬНОГО ХОЗЯЙСТВА"]
["3.4.1. Поддержание рабочего состояния оборудования систем водоснабжения, водоотведения, отопления объектов жилищно-коммунального хозяйства:\n"]
["ПК 1.1. Осуществлять техническое обслуживание в соответствии с заданием (нарядом) системы водоснабжения, водоотведения, отопления объектов жилищно-коммунального хозяйства."]
["ПК 1.2. Проводить ремонт и монтаж отдельных узлов системы водоснабжения, водоотведения."]
["Иметь практический опыт в","Уметь","Знать"]
["техническом обслуживании в соответствии с заданием/нарядом системы водоснабжения, водоотведения, отопления объектов жилищно-коммунального хозяйства;","оценивать состояние рабочего места на соответствие требованиям охраны труда и полученному заданию/наряду;","требования по охране труда при проведении работ по техническому обслуживанию, ремонту и монтажу отдельных узлов оборудования систем водоснабжения, водоотведения, отопления объектов жилищно-коммунального хозяйства;"]
["ремонте и монтаже отдельных узлов системы водоснабжения, водоотведения;","определять исправность средств индивидуальной защиты;","виды и основные правила построения чертежей, эскизов и схем систем водоснабжения, водоотведения, отопления объектов жилищно-коммунального хозяйства;"]
["ремонте и монтаже отдельных узлов системы отопления","читать и выполнять чертежи, эскизы и схемы систем водоснабжения, водоотведения, отопления объектов жилищно-коммунального хозяйства;","правила чтения технической и конструкторско-технологической документации;"]
[null,"подбирать материалы, инструменты и оборудование согласно технологическому процессу и сменному заданию/наряду;","правила заполнения технической документации;"]
[null,"проводить техническое обслуживание оборудования систем водоснабжения, водоотведения, отопления объектов жилищно-коммунального хозяйства;","сущности и содержания технической эксплуатации оборудования систем водоснабжения, водоотведения, отопления объектов жилищно-коммунального хозяйства;"]
[null,"заполнять техническую документацию по результатам осмотра;","виды деятельности объектов жилищно-коммунального хозяйства, оказывающих негативное влияние на окружающую среду;"]
[null,"выполнять расчет необходимых материалов и оборудования при ремонте и монтаже отдельных узлов систем водоснабжения, водоотведения, отопления объектов жилищно-коммунального хозяйства;","виды, назначение, устройство, принципы работы домовых санитарно-технических систем и оборудования, домовых системы водоснабжения, в том числе поливочной системы и системы противопожарного водопровода, систем отопления, отопительных приборов, циркуляционных насосов, элеваторных и тепловых узлов, запорно-регулирующей и водоразборной арматуры и вспомогательного оборудования;"]
[null,"использовать инструменты, при выполнении ремонтных работ;","технологию техники обслуживания домовых санитарно-технических систем и оборудования;"]
[null,"устранять неисправности санитарно-технических систем и оборудования;","виды, назначение и принципы работы систем контроля технического состояния оборудования объектов жилищно-коммунального хозяйства;"]
[null,"проводить испытания отремонтированных систем и оборудования водоснабжения, водоотведения, отопления объектов жилищно-коммунального хозяйства;","основные понятия систем автоматического управления и регулирования;"]
[null,"подготавливать внутридомовые системы водоснабжения, отопления, в том числе поливочной системы и системы противопожарного водопровода к сезонной эксплуатации;","назначение и принципы действия контрольно-измерительных приборов и аппаратов;"]
[null,"выполнять консервацию внутридомовых систем.","правила применения контрольно-диагностической аппаратуры;"]
[null,null,"правила применения универсальных и специальных приспособлений и контрольно-измерительного инструмента;"]
[null,null,"сущность и содержание ремонта и монтажа систем водоснабжения, водоотведения, отопления объектов жилищно-коммунального хозяйства;"]
[null,null,"подготовку внутридомовой системы отопления, системы холодного водоснабжения, в том числе поливочной системы и системы противопожарного водопровода к сезонной эксплуатации, опрессовки системы отопления;"]
[null,null,"порядок обслуживания элеваторных и тепловых узлов и вспомогательного оборудования;"]
[null,null,"технические документы на испытание и готовность к работе оборудования систем водоснабжения, водоотведения, отопления объектов жилищно-коммунального хозяйства;"]
[null,null,"порядок сдачи после ремонта и испытаний оборудования систем водоснабжения, водоотведения, отопления объектов жилищно-коммунального хозяйства."]
[]
["ФГОС 08.02.07 МОНТАЖ И ЭКСПЛУАТАЦИЯ ВНУТРЕННИХ САНТЕХНИЧЕСКИХ УСТРОЙСТВ, КОНДИЦИОНИРОВАНИЯ ВОЗДУХА И ВЕНТИЛЯЦИИ"]
["3.4.1. Организация и контроль работ по монтажу систем водоснабжения и водоотведения, отопления, вентиляции и кондиционирования воздуха:"]
["ПК 1.1. Организовывать и выполнять подготовку систем и объектов к монтажу;"]
["ПК 1.2. Организовывать и выполнять монтаж систем водоснабжения и водоотведения, отопления, вентиляции и кондиционирования воздуха;"]
["ПК 1.3. Организовывать и выполнять производственный контроль качества монтажных работ;"]
["ПК 1.4. Выполнять пусконаладочные работы систем водоснабжения и водоотведения, отопления, вентиляции и кондиционирование воздуха;"]
["Иметь практический опыт в","Уметь","Знать"]
["организации и выполнении монтажа систем водоснабжения и водоотведения, отопления, вентиляции и кондиционирования воздуха;","использовать сопроводительную документацию для проверки комплектности и качества изготовления оборудования санитарно-технических систем, вентиляции и кондиционирования воздуха;","классификацию систем водоснабжения и водоотведения, отопления, вентиляции и кондиционирования воздуха;"]
["выполнении пусконаладочных работ систем водоснабжения и водоотведения, отопления, вентиляции и кондиционирования воздуха.","читать и разрабатывать монтажные чертежи систем водоснабжения и водоотведения, отопления, вентиляции и кондиционирования воздуха;","назначение и правила применения ручных инструментов и приспособлений, необходимых при монтаже систем водоснабжения и водоотведения, отопления, вентиляции и кондиционирования воздуха;"]
[null,"составлять ведомости выявленных дефектов (для поставщика оборудования) с целью их устранения;","состав комплекта технической документации и комплектность оборудования и материалов;"]
[null,"оформлять техническую документацию по результатам испытаний;","проектную и нормативную документацию в области монтажа и испытаний систем водоснабжения и водоотведения, отопления, вентиляции и кондиционирования воздуха;"]
[null,"проводить регулирование смонтированных сантехнических систем, вентиляции и кондиционирования воздуха для достижения проектных и паспортных характеристик;","технологию изготовления узлов и деталей трубопроводов и воздуховодов из различных материалов;"]
[null,"руководить работниками в рамках подразделения при выполнении работ по монтажу систем водоснабжения и водоотведения, отопления, вентиляции и кондиционирования воздуха;","технологию сборки монтажных узлов и требования к качеству их изготовления;"]
[null,"производить измерение производительности и давления вентилятора в характерных точках системы;","основы монтажного проектирования;"]
[null,"пользоваться контрольно-измерительными приборами.","правила по охране труда при подготовке оборудования, узлов и деталей к монтажу в соответствии с проектом производства работ;"]
[null,null,"правила по охране труда при монтаже систем вентиляции и кондиционирования воздуха;"]
[null,null,"технологию монтажных работ систем вентиляции;"]
[null,null,"проектную и нормативную документацию по монтажу систем кондиционирования;"]
[null,null,"способы соединения медных труб;"]
[null,null,"методы проведения измерений гидравлических и аэродинамических характеристик монтируемой системы;"]
[null,null,"принципы работы измерительных приборов и правила пуска и регулирования отдельных элементов и системы в целом;"]
[null,null,"принципы работы монтируемых систем и их элементов;"]
[null,null,"методику проведения регулирования смонтированных систем и отдельных элементов;"]
[null,null,"теплоизоляционный материал и способы работы с ним;"]
[null,null,"правила пайки твердым припоем;"]
[null,null,"особенности менеджмента в соответствующей области профессиональной деятельности."]
[]
["ЕТКС работ и профессий рабочих. Выпуск 3. § 201. Монтажник санитарно-технических систем и оборудования 3-го разряда"]
["Характеристика работ.","Выполнение простых работ при монтаже и ремонте систем центрального отопления, водоснабжения, канализации, газоснабжения и водостоков."]
[null,"Свертывание и сборка простых узлов."]
[null,"Сборка фланцевых соединений."]
[null,"Разборка отдельных узлов трубопроводов (при монтаже)."]
[null,"Установка и заделка креплений под приборы и трубопроводы."]
[null,"Сверление или пробивка отверстий в конструкциях."]
[null,"Заделка раструбов чугунных трубопроводов."]
[null,"Нарезка резьбы на трубах вручную."]
[null,"Комплектование труб и фасонных частей стояков."]
[null,"Установка ручного пресса для опрессовки систем."]
[null,"Отсоединение чугунных котлов от трубопроводов."]
[null,"Обрубка кромок швов жаротрубного котла для последующей подварки."]
[null,"Очистка секций чугунного котла снаружи и изнутри с промывкой."]
[null,"Срубка заклепок жаротрубного котла с выбиванием их."]
[null,"Смена манжет у унитаза."]
[null,"Зачистка сварных швов шлифмашинкой."]
[null,"Прокачка канализационных стояков и отводов."]
[null,"Смена прокладок кранов, вентилей."]
["Должен знать:","виды основных деталей санитарно-технических систем, соединений труб и креплений трубопроводов; "]
[null,"назначение, устройство и особенности монтажа внутренних систем центрального отопления, водоснабжения, канализации, газоснабжения и водостоков;"]
[null,"способы сверления и пробивки отверстий;"]
[null,"правила транспортировки баллонов с кислородом и ацетиленом;"]
[null,"правила техники безопасности при транспортировке баллонов;"]
[null,"правила пользования механизированным инструментом."]
[]
["ЕТКС работ и профессий рабочих. Выпуск 2. Часть 2. § 161. Слесарь-сантехник 3-го разряда"]
["Характеристика работ.","Разборка, ремонт и сборка различных деталей и узлов санитарно-технических систем центрального отопления, водоснабжения, канализации и водостоков."]
[null,"Сверление или пробивка отверстий в конструкциях."]
[null,"Нарезка резьб на трубах вручную."]
[null,"Установка и заделка креплений под трубопроводы и приборы."]
[null,"Комплектование труб и фасонных частей стояков."]
["Должен знать:","принцип действия, назначение и особенности ремонта санитарно-технических трубопроводных систем центрального отопления, водоснабжения, канализации и водостоков;"]
[null,"виды основных деталей санитарно-технических систем, соединений труб и креплений трубопроводов;"]
[null,"способы сверления и пробивки отверстий;"]
[null,"правила обращения и транспортирования баллонов с кислородом и ацетиленом;"]
[null,"назначение и правила пользования механизированным инструментом."]